Workbook

Sheet Inicio
O1: 6
D2: Indicadores Sistema Eléctrico CCAA | I2: www.ree.es
I3: Fecha de actualización: | K3: 2017-12-20

Sheet Cuadro mando
A3: Principales Indicadores Aragón 2016
B7: GENERACIÓN | H7: DEMANDA B.C.
A26: POTENCIA INSTALADA | H26: RED DE TRANSPORTE1
I45: (1) km líneas de la Red de Transporte

Sheet Generacion
A3: Generación Aragón 2016
B7: BALANCE (GWh) | H7: ESTRUCTURA DE LA GENERACIÓN
B8: Balance | D8: =generacion_bruta!D142 -> Aragón | E8: España | F8: % del total
B9: Hidráulica | D9: =generacion_bruta!D146 -> 3333.331622 | E9: =generacion_bruta!V146 -> 39176.95389 | F9: =IF(OR(E9=0,D9=0),"-",D9*100/E9) -> 8.508399176
B10: Nuclear | D10: =generacion_bruta!D147 -> 0 | E10: =generacion_bruta!V147 -> 56098.972 | F10: =IF(OR(E10=0,D10=0),"-",D10*100/E10) -> -
B11: Carbón | D11: =generacion_bruta!D148 -> 3317.603 | E11: =generacion_bruta!V148 -> 37491.273 | F11: 8.849000673
B12: Fuel / gas | D12: =generacion_bruta!D149 -> 0 | E12: =generacion_bruta!V149 -> 6764.538 | F12: -
B13: Ciclo combinado | D13: =generacion_bruta!D150 -> 175.51 | E13: =generacion_bruta!V150 -> 29260.398 | F13: 0.5998209594
B14: Consumos generación | D14: =generacion_bruta!D151 -> 0 | E14: =generacion_bruta!V151 -> 0 | F14: -
B15: Hidroeólica | D15: =generacion_bruta!D152 -> 0 | E15: =generacion_bruta!V152 -> 18.102639 | F15: -
B16: Eólica | D16: =generacion_bruta!D153 -> 4225.959252 | E16: =generacion_bruta!V153 -> 47696.6703 | F16: 8.860071836
B17: Solar fotovoltaica | D17: =generacion_bruta!D154 -> 295.295939 | E17: =generacion_bruta!V154 -> 7977.599848 | F17: 3.701563686
B18: Solar térmica | D18: =generacion_bruta!D155 -> 0 | E18: =generacion_bruta!V155 -> 5071.201702 | F18: -
B19: Otras renovables | D19: =generacion_bruta!D156 -> 53.330302 | E19: =generacion_bruta!V156 -> 3424.557179 | F19: 1.557290453
B20: Cogeneración | D20: =generacion_bruta!D157 -> 2498.912457 | E20: =generacion_bruta!V157 -> 25906.61603 | F20: 9.645846661
B21: Residuos | D21: =generacion_bruta!D158 -> 366.541587 | E21: =generacion_bruta!V158 -> 3392.358794 | F21: =IF(OR(E21=0,D21=0,D21="-"),"-",D21*100/E21) -> 10.80491803
B22: Generación neta | D22: =generacion_bruta!D159 -> 14266.48416 | E22: =generacion_bruta!V159 -> 262279.2414 | F22: =IF(OR(E22=0,D22=0),"-",D22*100/E22) -> 5.439425585
B23: Consumos en bombeo | D23: =generacion_bruta!D160 -> -421.737 | E23: =generacion_bruta!V160 -> -4819.416 | F23: =IF(OR(E23=0,D23=0),"-",D23*100/E23) -> 8.750790552
B24: Saldo Intercambios | D24: =generacion_bruta!D161 -> -3406.842 | E24: =generacion_bruta!V161 -> 7667.323 | F24: -
B25: Demanda B.C | D25: =generacion_bruta!D162 -> 10437.90516 | E25: =generacion_bruta!V162 -> 265127.1484 | F25: =IF(OR(E25=0,D25=0),"-",D25*100/E25) -> 3.93694317
B28: EVOLUCIÓN DE LA GENERACIÓN NETA | H28: GENERACIÓN RENOVABLE Y NO RENOVABLE

Sheet Potencia
A3: Potencia Aragón 2016
B7: BALANCE DE POTENCIA INSTALADA (MW) | H7: VARIACIONES DE LA POTENCIA INSTALADA
D9: =Potencias!D97 -> Aragón | E9: España | F9: % del total
B10: Hidráulica | D10: =Potencias!D99 -> 1548.157 | E10: =Potencias!V99 -> 20356.27058 | F10: =IF(OR(E10=0,D10=0),"-",IF(D10*100/E10>200,"-",D10*100/E10)) -> 7.605307632
B11: Nuclear | D11: =Potencias!D100 -> 0 | E11: =Potencias!V81 -> 7572.58 | F11: =IF(OR(E11=0,D11=0,),"-",IF(D11*100/E11>200,"-",D11*100/E11)) -> -
B12: Carbón | D12: =Potencias!D101 -> 1055.77 | E12: =Potencias!V101 -> 10004.27 | F12: =IF(OR(E12=0,D12=0),"-",IF(D12*100/E12>200,"-",D12*100/E12)) -> 10.55319379
B13: Fuel / gas | D13: =Potencias!D102 -> 0 | E13: =Potencias!V102 -> 2490.06 | F13: =IF(OR(E13=0,D13=0),"-",IF(D13*100/E13>200,"-",D13*100/E13)) -> -
B14: Ciclo combinado | D14: =Potencias!D103 -> 1869.68 | E14: =Potencias!V103 -> 26669.86 | F14: 7.010460497
B15: Hidroeólica | D15: =Potencias!D104 -> 0 | E15: =Potencias!V104 -> 11.39 | F15: -
B16: Eólica | D16: =Potencias!D105 -> 1815.51 | E16: =Potencias!V105 -> 23066.41085 | F16: 7.870795382
B17: Solar fotovoltaica | D17: =Potencias!D106 -> 167.4932 | E17: =Potencias!V106 -> 4672.61976 | F17: 3.584567301
B18: Solar térmica | D18: =Potencias!D107 -> 0 | E18: =Potencias!V107 -> 2299.4275 | F18: -
B19: Otras renovables | D19: =Potencias!D108 -> 16.216 | E19: =Potencias!V108 -> 748.40341 | F19: 2.166745873
B20: Cogeneración | D20: =Potencias!D109 -> 581.713 | E20: =Potencias!V109 -> 6459.6157 | F20: 9.005380924
B21: Residuos | D21: =Potencias!D110 -> 80.884 | E21: =Potencias!V110 -> 754.374 | F21: 10.72200261
B22: Total 2016 | D22: =Potencias!D111 -> 7135.4232 | E22: =Potencias!V111 -> 105105.2818 | F22: =IF(OR(E22=0,D22=0),"-",IF(D22*100/E22>200,"-",D22*100/E22)) -> 6.788834089
B23: Total 2015 | D23: =Potencias!D92 -> 7136.4344 | E23: =Potencias!V92 -> 106172.7777 | F23: =IF(OR(E23=0,D23=0,D23="-"),"-",IF(D23*100/E23>200,"-",D23*100/E23)) -> 6.721529334
B24: Δ 2016/2015 | D24: =IF(D23="-","-",(D22/D23-1)) -> -0.0001416954102 | E24: =IF(E23="-","-",(E22/E23-1)) -> -0.01005432798
B27: EVOLUCIÓN DE LA POTENCIA INSTALADA (MW) | H27: ESTRUCTURA DE LA POTENCIA INSTALADA

Sheet Demanda
A3: Demanda Aragón 2016
B7: EVOLUCIÓN DE LA DEMANDA | H7: VARIACIÓN DE LA DEMANDA
B26: GENERACIÓN NETA C.A. vs. DEMANDA C.A. | H26: % DEMANDA C.A. vs. DEMANDA NACIONAL

Sheet Red_de_transporte
A3: Red de transporte Aragón 2016
B7: RED DE TRANSPORTE | H7: VARIACIONES DE LA RdT
B11: AÑO 2016 | D11: =datos_RdT!D72 -> Aragón | E11: España | F11: % del total
B12: km circuitos 400 kV | D12: =datos_RdT!D73 -> 1520.63494 | E12: =datos_RdT!V73 -> 21618.9814 | F12: =D12*100/E12 -> 7.033795498
B13: km circuitos 220 kV | D13: =datos_RdT!D74 -> 1848.84 | E13: =datos_RdT!V74 -> 19587.97784 | F13: =D13*100/E13 -> 9.438646575
B14: km circuitos <220 kV | D14: =datos_RdT!D75 -> 0 | E14: =datos_RdT!V75 -> 2576.471 | F14: 0
B15: km circuitos | D15: =datos_RdT!D76 -> 3369.47494 | E15: =datos_RdT!V76 -> 43783.43024 | F15: 7.695776511
B16: Posiciones 400 kV | D16: =datos_RdT!D78 -> 98 | E16: =datos_RdT!V78 -> 1458 | F16: =D16*100/E16 -> 6.721536351
B17: Posiciones 220 kV | D17: =datos_RdT!D79 -> 214 | E17: =datos_RdT!V79 -> 3265 | F17: =D17*100/E17 -> 6.554364472
B18: Posiciones <220 kV | D18: =datos_RdT!D80 -> 0 | E18: =datos_RdT!V80 -> 888 | F18: 0
B19: Posiciones | D19: =datos_RdT!D81 -> 312 | E19: =datos_RdT!V81 -> 5611 | F19: 5.560506149
B20: Transformadores (MVA) | D20: =datos_RdT!D83 -> 4974 | E20: =datos_RdT!V83 -> 85444.475 | F20: 5.821324316
B22: Incluye los activos de la red de transporte del resto de empresas.
B26: EVOLUCIÓN DE LA RdT | H26: % km LÍNEAS C.A. vs. KILÓMETROS TOTALES

Sheet AVISO LEGAL

Sheet generacion_bruta (hidden)
B1: 2011
B2: CCAA | C2: Andalucía | D2: Aragón | E2: Asturias | F2: Baleares | G2: C. Valenciana | H2: Canarias | I2: Cantabria | J2: Castilla-La Mancha | K2: Castilla y León | L2: Cataluña | M2: Ceuta | N2: Extremadura | O2: Galicia | P2: La Rioja | Q2: Madrid | R2: Melilla | S2: Murcia | T2: Navarra | U2: País Vasco | V2: España | W2: PENINSULAR | X2: NO PENINSULAR
B6: Hidráulica | C6: 1410.802301 | D6: 2756.013441 | E6: 1283.31285 | F6: 0 | G6: 1313.849514 | H6: 1.675408 | I6: 628.5001387 | J6: 991.7118138 | K6: 9030.928262 | L6: 3936.325731 | M6: 0 | N6: 3516.54536 | O6: 6430.280244 | P6: 138.4303762 | Q6: 244.5265792 | R6: 0 | S6: 110.8419762 | T6: 426.0136072 | U6: 302.1399822 | V6: 44954.22052 | W6: 44954.22052 | X6: 0
B7: Nuclear | C7: 0 | D7: 0 | E7: 0 | F7: 0 | G7: 7588.829 | H7: 0 | I7: 0 | J7: 7834.508 | K7: 3576.987 | L7: 20854.211 | M7: 0 | N7: 15249.396 | O7: 0 | P7: 0 | Q7: 0 | R7: 0 | S7: 0 | T7: 0 | U7: 0 | V7: =SUM(C7:U7) -> 55103.931 | W7: =V7-F7-H7-M7-R7 -> 55103.931 | X7: =F7+H7+M7+R7 -> 0
B8: Carbón | C8: 8190.58 | D8: 6135.081 | E8: 7237.303 | F8: 2764.867 | G8: 0 | H8: 0 | I8: 0 | J8: 1458.417 | K8: 9029.328 | L8: 11.689 | M8: 0 | N8: 0 | O8: 8099.336 | P8: 0 | Q8: 0 | R8: 0 | S8: 0 | T8: 0 | U8: 340.093 | V8: 43266.694 | W8: 40501.827 | X8: 2764.867
B9: Fuel / gas | C9: 0 | D9: 0 | E9: 0 | F9: 1283.414 | G9: 0 | H9: 5330.241485 | I9: 0 | J9: 0 | K9: 0 | L9: 0 | M9: 202.977 | N9: 0 | O9: 0 | P9: 0 | Q9: 0 | R9: 207.799894 | S9: 0 | T9: 0 | U9: 0 | V9: 7024.432379 | W9: -3.694822226e-13 | X9: 7024.432379
B10: Ciclo combinado | C10: 13707.538 | D10: 1455.274 | E10: 1770.412 | F10: 1326.735 | G10: 6703.781 | H10: 2918.875237 | I10: 0 | J10: 3267.006 | K10: 0 | L10: 9288.028 | M10: 0 | N10: 0 | O10: 2236.705 | P10: 969.807 | Q10: 0 | R10: 0 | S10: 5398.342 | T10: 1184.17 | U10: 3430.594 | V10: 53657.26724 | W10: 49411.657 | X10: 4245.610237
B11: Consumos generación | V11: 0 | W11: 0 | X11: 0
B12: Hidroeólica | C12: 0 | D12: 0 | E12: 0 | F12: 0 | G12: 0 | H12: 0 | I12: 0 | J12: 0 | K12: 0 | L12: 0 | M12: 0 | N12: 0 | O12: 0 | P12: 0 | Q12: 0 | R12: 0 | S12: 0 | T12: 0 | U12: 0 | V12: 0 | W12: 0 | X12: 0
B13: Eólica | C13: 6220.839045 | D13: 3850.018531 | E13: 677.451925 | F13: 5.828257 | G13: 1968.392594 | H13: 354.155113 | I13: 62.816259 | J13: 6827.344728 | K13: 8932.136042 | L13: 1929.497932 | M13: 0 | N13: 0 | O13: 7432.761868 | P13: 936.956756 | Q13: 0 | R13: 0 | S13: 308.955818 | T13: 2606.162161 | U13: 352.098922 | V13: 42465.41595 | W13: 42105.43258 | X13: 359.98337
B14: Solar fotovoltaica | C14: 1403.847436 | D14: 267.267879 | E14: 0.6527 | F14: 101.220757 | G14: 443.512721 | H14: 232.139978 | I14: 2.057955 | J14: 1660.969432 | K14: 764.075673 | L14: 358.767106 | M14: 0 | N14: 1013.327131 | O14: 15.168364 | P14: 135.544298 | Q14: 59.462192 | R14: 0.071472 | S14: 653.359282 | T14: 288.557236 | U14: 25.11789 | V14: 7425.119502 | W14: 7091.687295 | X14: 333.432207
B15: Solar termoeléctrica | C15: 853.175229 | D15: 0 | E15: 0 | F15: 0 | G15: 0 | H15: 0 | I15: 0 | J15: 236.233022 | K15: 0 | L15: 0 | M15: 0 | N15: 742.750939 | O15: 0 | P15: 0 | Q15: 0 | R15: 0 | S15: 0.198689 | T15: 0 | U15: 0 | V15: 1832.357879 | W15: 1832.357879 | X15: 0
B16: Térmica renovable/Otras renovables | C16: 1306.369732 | D16: 144.323288 | E16: 653.32137 | F16: 0 | G16: 46.790627 | H16: 33.148213 | I16: 14.08182 | J16: 265.414611 | K16: 157.26787 | L16: 194.758561 | M16: 0 | N16: 144.721376 | O16: 571.000883 | P16: 9.241383 | Q16: 311.643361 | R16: 0 | S16: 22.972127 | T16: 276.370736 | U16: 166.564071 | V16: 4317.990029 | W16: 4284.841816 | X16: 33.148213
B17: Cogeneración/Cogeneración y resto | C17: 5568.600099 | D17: 3334.036493 | E17: 704.806026 | F17: 260.747524 | G17: 2095.323074 | H17: 0 | I17: 1351.119613 | J17: 1769.386232 | K17: 3380.518144 | L17: 5608.776871 | M17: 0 | N17: 30.167911 | O17: 1895.297029 | P17: 173.77921 | Q17: 1134.117065 | R17: 7.035221 | S17: 1598.858151 | T17: 848.98653 | U17: 2557.237537 | V17: 32318.79273 | W17: 32051.00999 | X17: 267.782745
B18: Residuos | C18: 0 | D18: 0 | E18: 0 | F18: 0 | G18: 0 | H18: 0 | I18: 0 | J18: 0 | K18: 0 | L18: 0 | M18: 0 | N18: 0 | O18: 0 | P18: 0 | Q18: 0 | R18: 0 | S18: 0 | T18: 0 | U18: 0 | V18: =SUM(C18:U18) -> 0 | W18: =V18-F18-H18-M18-R18 -> 0 | X18: =F18+H18+M18+R18 -> 0
B19: Generación neta | C19: 38661.75184 | D19: 17942.01463 | E19: 12327.25987 | F19: 5742.812538 | G19: 20160.47853 | H19: 8870.235434 | I19: 2058.575786 | J19: 24310.99084 | K19: 34871.24099 | L19: 42182.0542 | M19: 202.977 | N19: 20696.90872 | O19: 26680.54939 | P19: 2363.759023 | Q19: 1749.749197 | R19: 214.906587 | S19: 8093.528043 | T19: 5630.26027 | U19: 7173.845402 | V19: =SUM(C19:U19) -> 279933.8983 | W19: 264902.9667 | X19: 15030.93156
B20: Consumos en bombeo | C20: -301.622 | D20: -278.551 | E20: -25.335 | F20: 0 | G20: -1126.206 | H20: 0 | I20: -498.878 | J20: -129.734 | K20: -367.044 | L20: -276.003 | M20: 0 | N20: -62.634 | O20: -148.955 | P20: 0 | Q20: 0 | R20: 0 | S20: 0 | T20: 0 | U20: 0 | V20: -3214.962 | W20: -3214.962 | X20: 0
B21: Saldo Intercambios | C21: 1613.575 | D21: -7260.331 | E21: -1342.445 | F21: 0.476 | G21: 8191.669 | H21: 0 | I21: 2912.849 | J21: -12181.779 | K21: -20964.058 | L21: 6288.486 | M21: 0 | N21: -15916.135 | O21: -6691.629 | P21: -615.813 | Q21: 29804.43 | R21: 0 | S21: 231.07 | T21: -683.669 | U21: 10523.174 | V21: -6090.13 | W21: -6090.606 | X21: 0.476
B22: Demanda B.C | C22: 39973.70484 | D22: 10403.13263 | E22: 10959.47987 | F22: 5743.288538 | G22: 27225.94153 | H22: 8870.235434 | I22: 4472.546786 | J22: 11999.47784 | K22: 13540.13899 | L22: 48194.5372 | M22: 202.977 | N22: 4718.139717 | O22: 19839.96539 | P22: 1747.946023 | Q22: 31554.1792 | R22: 214.906587 | S22: 8324.598043 | T22: 4946.59127 | U22: 17697.0194 | V22: 270628.8063 | W22: =V22-F22-H22-M22-R22 -> 255597.3987 | X22: 15031.40756
B23: =CONCATENATE("Δ",B1,"/",B1-1) -> Δ2011/2010 | C23: -0.01401045402 | D23: -0.01650989327 | E23: 0.01613865593 | F23: -0.01660881038 | G23: -0.02319202961 | H23: -0.002754477995 | I23: 0.02412199042 | J23: -0.006966717836 | K23: -0.0337955843 | L23: -0.01711676978 | M23: -0.06691398546 | N23: -0.05466614188 | O23: -0.00792896589 | P23: -0.02318609205 | Q23: -0.0368201156 | R23: 0.007460463768 | S23: -0.0005767530873 | T23: 0.005991774882 | U23: -0.04160944556 | V23: - | W23: - | X23: -
B24: Renovable | C24: =C6+0.7*C20+C12+C13+C14+C15+C16 -> 10983.89834 | D24: =D6+0.7*D20+D12+D13+D14+D15+D16 -> 6822.637439 | E24: =E6+0.7*E20+E12+E13+E14+E15+E16 -> 2597.004345 | F24: 107.049014 | G24: 2984.201256 | H24: 621.118712 | I24: 358.2415727 | J24: 9890.859807 | K24: 18627.47705 | L24: 6226.14723 | M24: 0 | N24: 5373.501006 | O24: 14344.94286 | P24: 1220.172813 | Q24: 615.6321322 | R24: 0.071472 | S24: 1096.327892 | T24: 3597.10374 | U24: 845.9208652 | V24: 86312.30754 | W24: =V24-F24-H24-M24-R24 -> 85584.06835 | X24: =F24+H24+M24+R24 -> 728.239198
B25: No renovable | C25: =C7+C8+C9+C10+C17 -> 27466.7181 | D25: =D7+D8+D9+D10+D17 -> 10924.39149 | E25: 9712.521026 | F25: 5635.763524 | G25: 16387.93307 | H25: 8249.116722 | I25: 1351.119613 | J25: 14329.31723 | K25: 15986.83314 | L25: 35762.70487 | M25: 202.977 | N25: 15279.56391 | O25: 12231.33803 | P25: 1143.58621 | Q25: 1134.117065 | R25: 214.835115 | S25: 6997.200151 | T25: 2033.15653 | U25: 6327.924537 | V25: 191371.1173 | W25: =V25-F25-H25-M25-R25 -> 177068.425 | X25: 14302.69236
B26: % Renovable s/total | C26: =(C24)/(C$25+C$24) -> 0.2856624772 | D26: =(D24)/(D$25+D$24) -> 0.3844382891 | E26: =(E24)/(E$25+E$24) -> 0.2109751811 | F26: 0.01864052035 | G26: 0.1540460749 | H26: 0.0700227989 | I26: 0.2095762883 | J26: 0.4083727295 | K26: 0.5381438181 | L26: 0.1482809584 | M26: 0 | N26: 0.26017935 | O26: 0.5397648723 | P26: 0.5162001715 | Q26: 0.3518402141 | R26: 0.0003325724027 | S26: 0.1354573539 | T26: 0.6388876477 | U26: 0.1179173536 | V26: =(V24)/(V$25+V$24) -> 0.3108298869 | W26: =(W24)/(W$25+W$24) -> 0.3258452538 | X26: 0.04844937223
B27: % No renovable s/total | C27: =(C25)/(C$25+C$24) -> 0.7143375228 | D27: =(D25)/(D$25+D$24) -> 0.6155617109 | E27: =(E25)/(E$25+E$24) -> 0.7890248189 | F27: 0.9813594796 | G27: 0.8459539251 | H27: 0.9299772011 | I27: 0.7904237117 | J27: 0.5916272705 | K27: 0.4618561819 | L27: 0.8517190416 | M27: 1 | N27: 0.73982065 | O27: 0.4602351277 | P27: 0.4837998285 | Q27: 0.6481597859 | R27: 0.9996674276 | S27: 0.8645426461 | T27: 0.3611123523 | U27: 0.8820826464 | V27: 0.6891701131 | W27: 0.6741547462 | X27: 0.9515506278
B29: 2012
B30: CCAA | C30: Andalucía | D30: Aragón | E30: Asturias | F30: Baleares | G30: C. Valenciana | H30: Canarias | I30: Cantabria | J30: Castilla-La Mancha | K30: Castilla y León | L30: Cataluña | M30: Ceuta | N30: Extremadura | O30: Galicia | P30: La Rioja | Q30: Madrid | R30: Melilla | S30: Murcia | T30: Navarra | U30: País Vasco | V30: España | W30: PENINSULAR | X30: NO PENINSULAR
B34: Hidráulica | C34: 1017.386024 | D34: 2525.99888 | E34: 1251.210304 | F34: 0 | G34: 1214.917722 | H34: 1.791301 | I34: 877.3730514 | J34: 793.5197509 | K34: 5570.024685 | L34: 3601.511409 | M34: 0 | N34: 1111.64069 | O34: 4759.060469 | P34: 123.6939669 | Q34: 65.607027 | R34: 0 | S34: 108.1870743 | T34: 470.9745565 | U34: 333.2154926 | V34: =SUM(C34:U34) -> 23826.1124 | W34: =V34-F34-H34-M34-R34 -> 23824.3211 | X34: =F34+H34+M34+R34 -> 1.791301
B35: Nuclear | C35: 0 | D35: 0 | E35: 0 | F35: 0 | G35: 9015.062 | H35: 0 | I35: 0 | J35: 7948.401 | K35: 3703.47 | L35: 22950.871 | M35: 0 | N35: 15049.183 | O35: 0 | P35: 0 | Q35: 0 | R35: 0 | S35: 0 | T35: 0 | U35: 0 | V35: =SUM(C35:U35) -> 58666.987 | W35: =V35-F35-H35-M35-R35 -> 58666.987 | X35: 0
B36: Carbón | C36: 10920.123 | D36: 4836.636 | E36: 10061.81 | F36: 2682.533 | G36: 0 | H36: 0 | I36: 0 | J36: 1741.818 | K36: 10341.323 | L36: 0 | M36: 0 | N36: 0 | O36: 12248.726 | P36: 0 | Q36: 0 | R36: 0 | S36: 0 | T36: 0 | U36: 980.45 | V36: 53813.419 | W36: 51130.886 | X36: 2682.533
B37: Fuel / gas | C37: 0 | D37: 0 | E37: 0 | F37: 1284.514 | G37: 0 | H37: 5386.647 | I37: 0 | J37: 0 | K37: 0 | L37: 0 | M37: 212.075 | N37: 0 | O37: 0 | P37: 0 | Q37: 0 | R37: 214.961 | S37: 0 | T37: 0 | U37: 0 | V37: 7098.197 | W37: 0 | X37: 7098.197
B38: Ciclo combinado | C38: 9738.885 | D38: 940.651 | E38: 774.103 | F38: 890.56 | G38: 4774.388 | H38: 2877.771 | I38: 0 | J38: 2553.928 | K38: 0 | L38: 8041.259 | M38: 0 | N38: 0 | O38: 1291.607 | P38: 1311.082 | Q38: 0 | R38: 0 | S38: 3097.972 | T38: 832.767 | U38: 4175.024 | V38: =SUM(C38:U38) -> 41299.997 | W38: =V38-F38-H38-M38-R38 -> 37531.666 | X38: =F38+H38+M38+R38 -> 3768.331
B39: Consumos generación | V39: =SUM(C39:U39) -> 0 | W39: =V39-F39-H39-M39-R39 -> 0 | X39: =F39+H39+M39+R39 -> 0
B40: Hidroeólica | C40: 0 | D40: 0 | E40: 0 | F40: 0 | G40: 0 | H40: 0 | I40: 0 | J40: 0 | K40: 0 | L40: 0 | M40: 0 | N40: 0 | O40: 0 | P40: 0 | Q40: 0 | R40: 0 | S40: 0 | T40: 0 | U40: 0 | V40: =SUM(C40:U40) -> 0 | W40: =V40-F40-H40-M40-R40 -> 0 | X40: =F40+H40+M40+R40 -> 0
B41: Eólica | C41: 5736.308595 | D41: 4453.409486 | E41: 884.396919 | F41: 6.504699 | G41: 2547.695238 | H41: 361.767325 | I41: 62.089362 | J41: 7948.26959 | K41: 11364.71053 | L41: 2647.569039 | M41: 0 | N41: 0 | O41: 8068.618604 | P41: 1005.869132 | Q41: 0 | R41: 0 | S41: 403.316864 | T41: 2677.948193 | U41: 339.864375 | V41: =SUM(C41:U41) -> 48508.33795 | W41: =V41-F41-H41-M41-R41 -> 48140.06593 | X41: =F41+H41+M41+R41 -> 368.272024
B42: Solar fotovoltaica | C42: 1530.531512 | D42: 285.432282 | E42: 0.733964 | F42: 115.593269 | G42: 527.544666 | H42: 256.513386 | I42: 2.136588 | J42: 1753.125784 | K42: 832.012892 | L42: 409.621922 | M42: 0 | N42: 1110.475662 | O42: 17.670515 | P42: 140.938202 | Q42: 80.340488 | R42: 0.083114 | S42: 792.422075 | T42: 317.696116 | U42: 29.217547 | V42: =SUM(C42:U42) -> 8202.089984 | W42: 7829.900215 | X42: 372.189769
B43: Solar termoeléctrica | C43: 1837.631894 | D43: 0 | E43: 0 | F43: 0 | G43: 0 | H43: 0 | I43: 0 | J43: 524.685992 | K43: 0 | L43: 0.568335 | M43: 0 | N43: 1057.869002 | O43: 0 | P43: 0 | Q43: 0 | R43: 0 | S43: 23.378823 | T43: 0 | U43: 0 | V43: 3444.134046 | W43: 3444.134046 | X43: 0
B44: Térmica renovable/Otras renovables | C44: 1458.279697 | D44: 316.07291 | E44: 656.225611 | F44: 0.56983 | G44: 52.936557 | H44: 8.050447 | I44: 16.857638 | J44: 247.085179 | K44: 172.332889 | L44: 256.148812 | M44: 0 | N44: 150.31303 | O44: 597.385213 | P44: 15.679899 | Q44: 298.03054 | R44: 0 | S44: 28.802132 | T44: 290.992634 | U44: 189.007369 | V44: 4754.770387 | W44: 4746.15011 | X44: 8.620277
B45: Cogeneración/Cogeneración y resto | C45: 5795.412355 | D45: 3260.802705 | E45: 724.315327 | F45: 272.075742 | G45: 2117.863985 | H45: 0 | I45: 1669.321387 | J45: 1356.04973 | K45: 3326.20841 | L45: 6185.693079 | M45: 0 | N45: 29.9208 | O45: 2257.787662 | P45: 167.901741 | Q45: 1226.521454 | R45: 2.308958 | S45: 1959.679473 | T45: 960.600308 | U45: 2454.786218 | V45: 33767.24933 | W45: 33492.86463 | X45: 274.3847
B46: Residuos | C46: 0 | D46: 0 | E46: 0 | F46: 0 | G46: 0 | H46: 0 | I46: 0 | J46: 0 | K46: 0 | L46: 0 | M46: 0 | N46: 0 | O46: 0 | P46: 0 | Q46: 0 | R46: 0 | S46: 0 | T46: 0 | U46: 0 | V46: =SUM(C46:U46) -> 0 | W46: =V46-F46-H46-M46-R46 -> 0 | X46: =F46+H46+M46+R46 -> 0
B47: Generación neta | C47: 38034.55808 | D47: 16619.00326 | E47: 14352.79512 | F47: 5252.35054 | G47: 20250.40817 | H47: 8892.540459 | I47: 2627.778026 | J47: 24866.88303 | K47: 35310.08241 | L47: 44093.2426 | M47: 212.075 | N47: 18509.40218 | O47: 29240.85546 | P47: 2765.164941 | Q47: 1670.499509 | R47: 217.353072 | S47: 6413.758441 | T47: 5550.978807 | U47: 8501.565002 | V47: =SUM(C47:U47) -> 283381.2941 | W47: 268806.975 | X47: 14574.31907
B48: Consumos en bombeo | C48: -434.632 | D48: -351.542 | E48: -52.418 | F48: 0 | G48: -1114.342 | H48: 0 | I48: -795.603 | J48: -156.032 | K48: -1401.482 | L48: -381.441 | M48: 0 | N48: -15.193 | O48: -319.864 | P48: 0 | Q48: 0 | R48: 0 | S48: 0 | T48: 0 | U48: 0 | V48: =SUM(C48:U48) -> -5022.549 | W48: -5022.549 | X48: 0
B49: Saldo Intercambios | C49: 2108.937 | D49: -6028.722 | E49: -3960.954 | F49: 570.251 | G49: 7340.41 | H49: 0 | I49: 2567.336 | J49: -12690.622 | K49: -20179.093 | L49: 4039.265 | M49: 0 | N49: -13604.637 | O49: -9270.303 | P49: -1032.283 | Q49: 29330.89 | R49: 0 | S49: 2193.349 | T49: -752.15 | U49: 8168.372 | V49: -11199.954 | W49: -11770.205 | X49: 570.251
B50: Demanda B.C | C50: 39708.86308 | D50: 10238.73926 | E50: 10339.42312 | F50: 5822.60154 | G50: 26476.47617 | H50: 8892.540459 | I50: 4399.511026 | J50: 12020.22903 | K50: 13729.50741 | L50: 47751.0666 | M50: 212.075 | N50: 4889.572184 | O50: 19650.68846 | P50: 1732.881941 | Q50: 31001.38951 | R50: 217.353072 | S50: 8607.107441 | T50: 4798.828807 | U50: 16669.937 | V50: 267158.7911 | W50: 252014.221 | X50: 15144.57007
B51: =CONCATENATE("Δ",B29,"/",B29-1) -> Δ2012/2011 | C51: =(C50/C22-1) -> -0.00662539953 | D51: -0.01580229486 | E51: -0.0565772056 | F51: 0.01380968438 | G51: -0.02752761962 | H51: 0.002514592219 | I51: -0.01632979214 | J51: 0.001729340839 | K51: 0.01398570706 | L51: -0.009201677843 | M51: 0.04482281244 | N51: =(N50/N22-1) -> 0.03633475859 | O51: =(O50/O22-1) -> -0.00954018424 | P51: -0.008618162177 | Q51: -0.01751874719 | R51: 0.01138394609 | S51: 0.0339367014 | T51: -0.02987157311 | U51: -0.05803702744 | V51: -0.01282204667 | W51: -0.01401883475 | X51: 0.007528404213
B52: Renovable | C52: =C34+0.7*C48+C40+C41+C42+C43+C44 -> 11275.89532 | D52: =D34+0.7*D48+D40+D41+D42+D43+D44 -> 7334.834158 | E52: 2755.874198 | F52: 122.667798 | G52: 3563.054783 | H52: 628.122459 | I52: 401.5345394 | J52: 11157.4639 | K52: 16958.0436 | L52: 6648.410817 | M52: 0 | N52: 3419.663284 | O52: 13218.83 | P52: 1286.1812 | Q52: 443.978055 | R52: 0.083114 | S52: 1356.106968 | T52: 3757.611499 | U52: 891.3047836 | V52: =SUM(C52:U52) -> 85219.66047 | W52: =V52-F52-H52-M52-R52 -> 84468.7871 | X52: =F52+H52+M52+R52 -> 750.873371
B53: No renovable | C53: =C35+C36+C37+C38+C45 -> 26454.42036 | D53: =D35+D36+D37+D38+D45 -> 9038.089705 | E53: 11560.22833 | F53: 5129.682742 | G53: 15907.31399 | H53: 8264.418 | I53: 1669.321387 | J53: 13600.19673 | K53: 17371.00141 | L53: 37177.82308 | M53: 212.075 | N53: 15079.1038 | O53: 15798.12066 | P53: 1478.983741 | Q53: 1226.521454 | R53: 217.269958 | S53: 5057.651473 | T53: 1793.367308 | U53: 7610.260218 | V53: =SUM(C53:U53) -> 194645.8493 | W53: =V53-F53-H53-M53-R53 -> 180822.4036 | X53: 13823.4457
B54: % Renovable s/total | C54: =(C52)/(C$52+C$53) -> 0.2988550485 | D54: =(D52)/(D$52+D$53) -> 0.4479856023 | E54: 0.1925017087 | F54: 0.02335483838 | G54: 0.182998834 | H54: 0.07063475976 | I54: 0.1938978633 | J54: 0.4506671315 | K54: 0.4939853 | L54: 0.1516993414 | M54: 0 | N54: 0.1848589838 | O54: 0.4555554494 | P54: 0.465137244 | Q54: 0.2657756274 | R54: 0.0003823916508 | S54: 0.2114371754 | T54: 0.6769277329 | U54: 0.1048400834 | V54: =(V52)/(V$52+V$53) -> 0.3045021894 | W54: 0.3184002713 | X54: =(X52)/(X$52+X$53) -> 0.0515203055
B55: % No renovable s/total | C55: =(C53)/(C$52+C$53) -> 0.7011449515 | D55: 0.5520143977 | E55: 0.8074982913 | F55: 0.9766451616 | G55: 0.817001166 | H55: 0.9293652402 | I55: 0.8061021367 | J55: 0.5493328685 | K55: 0.5060147 | L55: 0.8483006586 | M55: 1 | N55: 0.8151410162 | O55: 0.5444445506 | P55: 0.534862756 | Q55: 0.7342243726 | R55: 0.9996176083 | S55: 0.7885628246 | T55: 0.3230722671 | U55: 0.8951599166 | V55: 0.6954978106 | W55: 0.6815997287 | X55: =(X53)/(X$52+X$53) -> 0.9484796945
B57: 2013
B58: CCAA | C58: Andalucía | D58: Aragón | E58: Asturias | F58: Baleares | G58: C. Valenciana | H58: Canarias | I58: Cantabria | J58: Castilla-La Mancha | K58: Castilla y León | L58: Cataluña | M58: Ceuta | N58: Extremadura | O58: Galicia | P58: La Rioja | Q58: Madrid | R58: Melilla | S58: Murcia | T58: Navarra | U58: País Vasco | V58: España | W58: PENINSULAR | X58: NO PENINSULAR
B62: Hidráulica | C62: 1618.761541 | D62: 4564.947185 | E62: 2220.269494 | F62: 0 | G62: 1590.568062 | H62: 3.049504 | I62: 882.8017005 | J62: 1036.161959 | K62: 8491.589215 | L62: 5651.995676 | M62: 0 | N62: 2860.291086 | O62: 9975.702003 | P62: 173.138124 | Q62: 167.9867334 | R62: 0 | S62: 131.7705803 | T62: 770.7881584 | U62: 539.5644955 | V62: =SUM(C62:U62) -> 40679.38552 | W62: =V62-F62-H62-M62-R62 -> 40676.33601 | X62: =F62+H62+M62+R62 -> 3.049504
B63: Nuclear | C63: 0 | D63: 0 | E63: 0 | F63: 0 | G63: 8004.864 | H63: 0 | I63: 0 | J63: 7484.576 | K63: 0 | L63: 23719.595 | M63: 0 | N63: 15097.852 | O63: 0 | P63: 0 | Q63: 0 | R63: 0 | S63: 0 | T63: 0 | U63: 0 | V63: 54306.887 | W63: =V63-F63-H63-M63-R63 -> 54306.887 | X63: 0
B64: Carbón | C64: 9277.597 | D64: 3435.268 | E64: 8564.474 | F64: 2350.681 | G64: 0 | H64: 0 | I64: 0 | J64: 786.558 | K64: 5717.388 | L64: 0 | M64: 0 | N64: 0 | O64: 9395.598 | P64: 0 | Q64: 0 | R64: 0 | S64: 0 | T64: 0 | U64: 0 | V64: 39527.564 | W64: 37176.883 | X64: 2350.681
B65: Fuel / gas | C65: 0 | D65: 0 | E65: 0 | F65: 1260.156 | G65: 0 | H65: 4910.132 | I65: 0 | J65: 0 | K65: 0 | L65: 0 | M65: 201.959 | N65: 0 | O65: 0 | P65: 0 | Q65: 0 | R65: 201.547 | S65: 0 | T65: 0 | U65: 0 | V65: 6573.794 | W65: =V65-F65-H65-M65-R65 -> -5.96855898e-13 | X65: =F65+H65+M65+R65 -> 6573.794
B66: Ciclo combinado | C66: 5827.214 | D66: 89.443 | E66: 296.952 | F66: 413.575 | G66: 3940.293 | H66: 3052.68 | I66: 0 | J66: 1106.768 | K66: 0 | L66: 5685.038 | M66: 0 | N66: 0 | O66: 1157.169 | P66: 395.643 | Q66: 0 | R66: 0 | S66: 2342.329 | T66: 361.286 | U66: 3158.445 | V66: 27826.835 | W66: =V66-F66-H66-M66-R66 -> 24360.58 | X66: =F66+H66+M66+R66 -> 3466.255
B67: Consumos generación | V67: 0 | W67: =V67-F67-H67-M67-R67 -> 0 | X67: =F67+H67+M67+R67 -> 0
B68: Hidroeólica | C68: 0 | D68: 0 | E68: 0 | F68: 0 | G68: 0 | H68: 0 | I68: 0 | J68: 0 | K68: 0 | L68: 0 | M68: 0 | N68: 0 | O68: 0 | P68: 0 | Q68: 0 | R68: 0 | S68: 0 | T68: 0 | U68: 0 | V68: 0 | W68: =V68-F68-H68-M68-R68 -> 0 | X68: =F68+H68+M68+R68 -> 0
B69: Eólica | C69: 6986.811481 | D69: 4869.472296 | E69: 1140.547903 | F69: 6.159468 | G69: 2594.854498 | H69: 362.733485 | I69: 74.550424 | J69: 8657.478624 | K69: 12684.69372 | L69: 3194.726668 | M69: 0 | N69: 0 | O69: 9497.906024 | P69: 1078.385075 | Q69: 0 | R69: 0 | S69: 543.819978 | T69: 2664.752186 | U69: 356.35345 | V69: =SUM(C69:U69) -> 54713.24529 | W69: =V69-F69-H69-M69-R69 -> 54344.35233 | X69: =F69+H69+M69+R69 -> 368.892953
B70: Solar fotovoltaica | C70: 1586.395935 | D70: 309.123951 | E70: 0.738135 | F70: 122.097173 | G70: 564.348676 | H70: 286.70133 | I70: 2.067143 | J70: 1697.856901 | K70: 848.076933 | L70: 431.350786 | M70: 0 | N70: 1110.442841 | O70: 20.475405 | P70: 130.107387 | Q70: 92.065937 | R70: 0.082323 | S70: 801.930575 | T70: 295.442564 | U70: 27.615431 | V70: 8326.919426 | W70: 7918.0386 | X70: 408.880826
B71: Solar termoeléctrica | C71: 1987.787339 | D71: 0 | E71: 0 | F71: 0 | G71: 9.833162 | H71: 0 | I71: 0 | J71: 678.244937 | K71: 0 | L71: 73.81801 | M71: 0 | N71: 1648.82012 | O71: 0 | P71: 0 | Q71: 0 | R71: 0 | S71: 43.023967 | T71: 0 | U71: 0 | V71: 4441.527535 | W71: 4441.527535 | X71: 0
B72: Térmica renovable/Otras renovables | C72: 1764.006542 | D72: 228.211921 | E72: 666.235381 | F72: 0.74475 | G72: 52.924032 | H72: 8.386979 | I72: 81.926784 | J72: 239.06713 | K72: 181.366081 | L72: 258.64171 | M72: 0 | N72: 150.034926 | O72: 597.001972 | P72: 11.889307 | Q72: 286.105782 | R72: 0 | S72: 57.71906 | T72: 303.593267 | U72: 186.841747 | V72: 5074.697371 | W72: 5065.565642 | X72: 9.131729
B73: Cogeneración/Cogeneración y resto | C73: 5641.970907 | D73: 3287.808423 | E73: 756.72252 | F73: 251.614955 | G73: 2074.898626 | H73: 0 | I73: 1219.72415 | J73: 1145.635895 | K73: 2968.320088 | L73: 6131.311427 | M73: 0 | N73: 30.034799 | O73: 2441.242827 | P73: 149.740855 | Q73: 1086.329052 | R73: 8.037797 | S73: 1960.369182 | T73: 981.567399 | U73: 2161.04884 | V73: 32296.37774 | W73: 32036.72499 | X73: 259.652752
B74: Residuos | C74: 0 | D74: 0 | E74: 0 | F74: 0 | G74: 0 | H74: 0 | I74: 0 | J74: 0 | K74: 0 | L74: 0 | M74: 0 | N74: 0 | O74: 0 | P74: 0 | Q74: 0 | R74: 0 | S74: 0 | T74: 0 | U74: 0 | V74: =SUM(C74:U74) -> 0 | W74: =V74-F74-H74-M74-R74 -> 0 | X74: =F74+H74+M74+R74 -> 0
B75: Generación neta | C75: 34690.54475 | D75: 16784.27478 | E75: 13645.93943 | F75: 4405.028346 | G75: 18832.58406 | H75: 8623.683298 | I75: 2261.070202 | J75: 22832.34745 | K75: 30891.43404 | L75: 45146.47728 | M75: 201.959 | N75: 20897.47577 | O75: 33085.09523 | P75: 1938.903748 | Q75: 1632.487504 | R75: 209.66712 | S75: 5880.962342 | T75: 5377.429574 | U75: 6429.868964 | V75: =SUM(C75:U75) -> 273767.2329 | W75: 260326.8951 | X75: 13440.33776
B76: Consumos en bombeo | C76: -470.705 | D76: -367.52 | E76: -77.28 | F76: 0 | G76: -1520.008 | H76: 0 | I76: -758.749 | J76: -206.83 | K76: -1728.923 | L76: -335.168 | M76: 0 | N76: -56.837 | O76: -435.826 | P76: 0 | Q76: 0 | R76: 0 | S76: 0 | T76: 0 | U76: 0 | V76: =SUM(C76:U76) -> -5957.846 | W76: -5957.846 | X76: 0
B77: Saldo Intercambios | C77: 3967.898 | D77: -6311.901 | E77: -3153.97 | F77: 1268.509 | G77: 8582.518 | H77: 0 | I77: 2883.144 | J77: -10994.533 | K77: -15481.299 | L77: 1461.757 | M77: 0 | N77: -15974.309 | O77: -12778.904 | P77: -234.669 | Q77: 28075.127 | R77: 0 | S77: 2433.707 | T77: -601.343 | U77: 10126.138 | V77: -6732.13 | W77: -8000.639 | X77: 1268.509
B78: Demanda B.C | C78: 38187.73775 | D78: 10104.85378 | E78: 10414.68943 | F78: 5673.537346 | G78: 25895.09406 | H78: 8623.683298 | I78: 4385.465202 | J78: 11630.98445 | K78: 13681.21204 | L78: 46273.06628 | M78: 201.959 | N78: 4866.329772 | O78: 19870.36523 | P78: 1704.234748 | Q78: 29707.6145 | R78: 209.66712 | S78: 8314.669342 | T78: 4776.086574 | U78: 16556.00696 | V78: 261077.2569 | W78: =V78-F78-H78-M78-R78 -> 246368.4101 | X78: 14708.84676
B79: =CONCATENATE("Δ",B57,"/",B57-1) -> Δ2013/2012 | C79: =(C78/C50-1) -> -0.03830694746 | D79: -0.01307636451 | E79: 0.007279546242 | F79: -0.02560096084 | G79: -0.02195843994 | H79: -0.03023401043 | I79: -0.00319258771 | J79: -0.0323824595 | K79: -0.003517632808 | L79: -0.03095219489 | M79: -0.04770010609 | N79: -0.004753465434 | O79: 0.01117908762 | P79: -0.01653153182 | Q79: -0.04173280698 | R79: -0.0353615982 | S79: -0.03397635047 | T79: -0.004739121568 | U79: =(U78/U50-1) -> -0.006834461226 | V79: -0.02276374363 | W79: =(W78/W50-1) -> -0.02240274735 | X79: -0.02877092614
B80: Renovable | C80: =C62+0.7*C76+C68+C69+C70+C71+C72 -> 13614.26934 | D80: =D62+0.7*D76+D68+D69+D70+D71+D72 -> 9714.491353 | E80: 3973.694913 | F80: 129.001391 | G80: 3748.52283 | H80: 660.871298 | I80: 510.2217515 | J80: 12164.02855 | K80: 20995.47985 | L80: 9375.91525 | M80: 0 | N80: 5729.803073 | O80: 19786.0072 | P80: 1393.519893 | Q80: 546.1584524 | R80: 0.082323 | S80: 1578.26416 | T80: 4034.576175 | U80: 1110.375124 | V80: =SUM(C80:U80) -> 109065.2829 | W80: =V80-F80-H80-M80-R80 -> 108275.3279 | X80: =F80+H80+M80+R80 -> 789.955012
B81: No renovable | C81: =C63+C64+C65+C66+C73 -> 20746.78191 | D81: =D63+D64+D65+D66+D73 -> 6812.519423 | E81: 9618.14852 | F81: 4276.026955 | G81: 14020.05563 | H81: 7962.812 | I81: 1219.72415 | J81: 10523.53789 | K81: 8685.708088 | L81: 35535.94443 | M81: 201.959 | N81: 15127.8868 | O81: 12994.00983 | P81: 545.383855 | Q81: 1086.329052 | R81: 209.584797 | S81: 4302.698182 | T81: 1342.853399 | U81: 5319.49384 | V81: 160531.4577 | W81: =V81-F81-H81-M81-R81 -> 147881.075 | X81: =F81+H81+M81+R81 -> 12650.38275
B82: % Renovable s/total | C82: =(C80)/(C$80+C$81) -> 0.3962122474 | D82: =(D80)/(D$80+D$81) -> 0.5877948217 | E82: 0.292358791 | F82: 0.02928503085 | G82: 0.2109635748 | H82: 0.07663445829 | I82: 0.2949350908 | J82: 0.5361539582 | K82: 0.7073665614 | L82: 0.20876257 | M82: 0 | N82: 0.274709381 | O82: 0.6035996621 | P82: 0.7187153537 | Q82: 0.3345559773 | R82: 0.0003926366709 | S82: 0.26836835 | T82: 0.7502796865 | U82: 0.1726901636 | V82: =(V80)/(V$80+V$81) -> 0.4045497088 | W82: 0.4226922563 | X82: 0.0587749375
B83: % No renovable s/total | C83: =(C81)/(C$80+C$81) -> 0.6037877526 | D83: =(D81)/(D$80+D$81) -> 0.4122051783 | E83: 0.707641209 | F83: 0.9707149692 | G83: 0.7890364252 | H83: 0.9233655417 | I83: 0.7050649092 | J83: 0.4638460418 | K83: 0.2926334386 | L83: 0.79123743 | M83: 1 | N83: 0.725290619 | O83: 0.3964003379 | P83: 0.2812846463 | Q83: 0.6654440227 | R83: 0.9996073633 | S83: 0.73163165 | T83: 0.2497203135 | U83: 0.8273098364 | V83: 0.5954502912 | W83: 0.5773077437 | X83: 0.9412250625
B85: 2014
B86: CCAA | C86: Andalucía | D86: Aragón | E86: Asturias | F86: Baleares | G86: C. Valenciana | H86: Canarias | I86: Cantabria | J86: Castilla-La Mancha | K86: Castilla y León | L86: Cataluña | M86: Ceuta | N86: Extremadura | O86: Galicia | P86: La Rioja | Q86: Madrid | R86: Melilla | S86: Murcia | T86: Navarra | U86: País Vasco | V86: España | W86: PENINSULAR | X86: NO PENINSULAR
B90: Hidráulica | C90: 1276.86087 | D90: 4366.976734 | E90: 1949.968028 | F90: 0 | G90: 1777.22359 | H90: 3.478906 | I90: 878.4153042 | J90: 1067.303362 | K90: 10862.56798 | L90: 5515.653706 | M90: 0 | N90: 3120.871039 | O90: 10155.45075 | P90: 159.6494475 | Q90: 205.9635249 | R90: 0 | S90: 126.6779254 | T90: 663.1264668 | U90: 401.6864306 | V90: =SUM(C90:U90) -> 42531.87406 | W90: =V90-F90-H90-M90-R90 -> 42528.39516 | X90: =F90+H90+M90+R90 -> 3.478906
B91: Nuclear | C91: 0 | D91: 0 | E91: 0 | F91: 0 | G91: 9108.216 | H91: 0 | I91: 0 | J91: 7783.908 | K91: 0 | L91: 22776.108 | M91: 0 | N91: 15202.007 | O91: 0 | P91: 0 | Q91: 0 | R91: 0 | S91: 0 | T91: 0 | U91: 0 | V91: 54870.239 | W91: 54870.239 | X91: 0
B92: Carbón | C92: 9502.972 | D92: 4611.757 | E92: 8565.27 | F92: 2187.626 | G92: 0 | H92: 0 | I92: 0 | J92: 881.26 | K92: 8006.714 | L92: 0 | M92: 0 | N92: 0 | O92: 9564.704 | P92: 0 | Q92: 0 | R92: 0 | S92: 0 | T92: 0 | U92: 0 | V92: 43320.303 | W92: 41132.677 | X92: 2187.626
B93: Fuel / gas | C93: 0 | D93: 0 | E93: 0 | F93: 1260.664 | G93: 0 | H93: 4582.909 | I93: 0 | J93: 0 | K93: 0 | L93: 0 | M93: 212.253 | N93: 0 | O93: 0 | P93: 0 | Q93: 0 | R93: 200.881 | S93: 0 | T93: 0 | U93: 0 | V93: 6256.707 | W93: 0 | X93: 6256.707
B94: Ciclo combinado | C94: 4403.777 | D94: 210.171 | E94: 289.476 | F94: 426.924 | G94: 4017.662 | H94: 3311.448 | I94: 0 | J94: 1045.816 | K94: 0 | L94: 5031.349 | M94: 0 | N94: 0 | O94: 509.427 | P94: 162.452 | Q94: 0 | R94: 0 | S94: 2336.522 | T94: 369.635 | U94: 2960.466 | V94: 25075.125 | W94: 21336.753 | X94: 3738.372
B95: Consumos generación | V95: =SUM(C95:U95) -> 0 | W95: 0 | X95: 0
B96: Hidroeólica | C96: 0 | D96: 0 | E96: 0 | F96: 0 | G96: 0 | H96: 1.071861 | I96: 0 | J96: 0 | K96: 0 | L96: 0 | M96: 0 | N96: 0 | O96: 0 | P96: 0 | Q96: 0 | R96: 0 | S96: 0 | T96: 0 | U96: 0 | V96: 1.071861 | W96: 0 | X96: 1.071861
B97: Eólica | C97: 6450.411707 | D97: 4314.413658 | E97: 1140.608134 | F97: 5.839578 | G97: 2577.391476 | H97: 389.963924 | I97: 76.30895 | J97: 8389.137337 | K97: 12274.49252 | L97: 2867.133966 | M97: 0 | N97: 0 | O97: 8316.470118 | P97: 947.718085 | Q97: 0 | R97: 0 | S97: 512.017404 | T97: 2424.907764 | U97: 343.88037 | V97: 51030.69499 | W97: 50634.89149 | X97: 395.803502
B98: Solar fotovoltaica | C98: 1574.750163 | D98: 297.545781 | E98: 0.666843 | F98: 122.773391 | G98: 549.127528 | H98: 282.290384 | I98: 2.218715 | J98: 1684.592289 | K98: 840.0779 | L98: 413.306628 | M98: 0 | N98: 1071.175215 | O98: 19.445383 | P98: 128.873369 | Q98: 93.257066 | R98: 0.083833 | S98: 800.250034 | T98: 297.78241 | U98: 29.355719 | V98: 8207.572651 | W98: 7802.425043 | X98: 405.147608
B99: Solar termoeléctrica | C99: 2124.235754 | D99: 0 | E99: 0 | F99: 0 | G99: 93.85092 | H99: 0 | I99: 0 | J99: 734.252687 | K99: 0 | L99: 65.812195 | M99: 0 | N99: 1899.40041 | O99: 0 | P99: 0 | Q99: 0 | R99: 0 | S99: 41.36296 | T99: 0 | U99: 0 | V99: 4958.914926 | W99: 4958.914926 | X99: 0
B100: Térmica renovable/Otras renovables | C100: 1419.812004 | D100: 349.101284 | E100: 643.85856 | F100: 1.945659 | G100: 41.399133 | H100: 8.806584 | I100: 85.795958 | J100: 182.617011 | K100: 249.127088 | L100: 150.037289 | M100: 0 | N100: 215.011765 | O100: 574.685349 | P100: 7.290583 | Q100: 269.701459 | R100: 0 | S100: 53.782084 | T100: 306.316933 | U100: 169.441833 | V100: 4728.730576 | W100: 4717.978333 | X100: 10.752243
B101: Cogeneración/Cogeneración y resto | C101: 5244.119429 | D101: 2383.597542 | E101: 651.135688 | F101: 281.388233 | G101: 1795.944745 | H101: 0 | I101: 831.901583 | J101: 764.037102 | K101: 1682.016098 | L101: 4806.878171 | M101: 0 | N101: 13.840363 | O101: 2147.346433 | P101: 56.949525 | Q101: 736.528251 | R101: 8.898314 | S101: 1496.429749 | T101: 710.155483 | U101: 2274.656536 | V101: 25885.82324 | W101: 25595.5367 | X101: 290.286547
B102: Residuos | C102: 0 | D102: 0 | E102: 0 | F102: 0 | G102: 0 | H102: 0 | I102: 0 | J102: 0 | K102: 0 | L102: 0 | M102: 0 | N102: 0 | O102: 0 | P102: 0 | Q102: 0 | R102: 0 | S102: 0 | T102: 0 | U102: 0 | V102: =SUM(C102:U102) -> 0 | W102: =V102-F102-H102-M102-R102 -> 0 | X102: =F102+H102+M102+R102 -> 0
B103: Generación neta | C103: 31996.93893 | D103: 16533.563 | E103: 13240.98325 | F103: 4287.160861 | G103: 19960.81539 | H103: 8579.968659 | I103: 1874.64051 | J103: 22532.92379 | K103: 33914.99558 | L103: 41626.27895 | M103: 212.253 | N103: 21522.30579 | O103: 31287.52903 | P103: 1462.933009 | Q103: 1305.450301 | R103: 209.863147 | S103: 5367.042156 | T103: 4771.924057 | U103: 6179.486889 | V103: =SUM(C103:U103) -> 266867.0563 | W103: 253577.8106 | X103: 13289.24567
B104: Consumos en bombeo | C104: -480.846 | D104: -440.736 | E104: -78.978 | F104: 0 | G104: -1576.303 | H104: 0 | I104: -851.231 | J104: -100.736 | K104: -1107.249 | L104: -361.031 | M104: 0 | N104: -70.939 | O104: -261.542 | P104: 0 | Q104: 0 | R104: 0 | S104: 0 | T104: 0 | U104: 0 | V104: =SUM(C104:U104) -> -5329.591 | W104: -5329.591 | X104: 0
B105: Saldo Intercambios | C105: 6021.988 | D105: -6003.143 | E105: -2849.358 | F105: 1298.266 | G105: 7501.359 | H105: 0 | I105: 3298.202 | J105: -10781.332 | K105: -19250.761 | L105: 4357.043 | M105: 0 | N105: -16813.589 | O105: -11276.998 | P105: 227.452 | Q105: 27142.168 | R105: 0 | S105: 3101.626 | T105: 8.066 | U105: 10612.884 | V105: -3406.127 | W105: -4704.393 | X105: 1298.266
B106: Demanda B.C | C106: 37538.08093 | D106: 10089.684 | E106: 10312.64725 | F106: 5585.426861 | G106: 25885.87139 | H106: 8579.968659 | I106: 4321.61151 | J106: 11650.85579 | K106: 13556.98558 | L106: 45622.19095 | M106: 212.253 | N106: 4637.777792 | O106: 19748.98903 | P106: 1690.385009 | Q106: 28447.6183 | R106: 209.863147 | S106: 8468.668156 | T106: 4779.990057 | U106: 16792.37089 | V106: 258131.2383 | W106: 243543.7266 | X106: 14587.51167
B107: =CONCATENATE("Δ",B85,"/",B85-1) -> Δ2014/2013 | C107: =(C106/C78-1) -> -0.01701218393 | D107: -0.001501236677 | E107: -0.009797909077 | F107: -0.01553007932 | G107: -0.0003561548871 | H107: -0.005069137802 | I107: -0.01456030053 | J107: 0.001708483202 | K107: -0.009080077265 | L107: -0.01406596482 | M107: 0.05097074159 | N107: -0.04696598693 | O107: -0.00610840291 | P107: -0.008126661255 | Q107: -0.04241324066 | R107: 0.0009349439244 | S107: 0.01852133955 | T107: 0.000817297245 | U107: 0.01427662634 | V107: -0.01128408734 | W107: -0.01146528271 | X107: -0.008249123738
B108: Renovable | C108: =C90+0.7*C104+C96+C97+C98+C99+C100 -> 12509.4783 | D108: =D90+0.7*D104+D96+D97+D98+D99+D100 -> 9019.522257 | E108: 3679.816965 | F108: 130.558628 | G108: 3935.580547 | H108: 685.611659 | I108: 446.8772272 | J108: 11987.38749 | K108: 23451.19118 | L108: 8759.222084 | M108: 0 | N108: 6256.801129 | O108: 18882.9722 | P108: 1243.531484 | Q108: 568.9220499 | R108: 0.083833 | S108: 1534.090407 | T108: 3692.133574 | U108: 944.3643526 | V108: =SUM(C108:U108) -> 107728.1454 | W108: =V108-F108-H108-M108-R108 -> 106911.8912 | X108: =F108+H108+M108+R108 -> 816.25412
B109: No renovable | C109: =C91+C92+C93+C94+C101 -> 19150.86843 | D109: =D91+D92+D93+D94+D101 -> 7205.525542 | E109: 9505.881688 | F109: 4156.602233 | G109: 14921.82275 | H109: 7894.357 | I109: 831.901583 | J109: 10475.0211 | K109: 9688.730098 | L109: 32614.33517 | M109: 212.253 | N109: 15215.84736 | O109: 12221.47743 | P109: 219.401525 | Q109: 736.528251 | R109: 209.779314 | S109: 3832.951749 | T109: 1079.790483 | U109: 5235.122536 | V109: =SUM(C109:U109) -> 155408.1972 | W109: =V109-F109-H109-M109-R109 -> 142935.2057 | X109: 12472.99155
B110: % Renovable s/total | C110: =(C108)/(C$108+C$109) -> 0.3951150127 | D110: =(D108)/(D$108+D$109) -> 0.5559011208 | E110: 0.2790763737 | F110: 0.0304534008 | G110: 0.2087021466 | H110: 0.07990841065 | I110: 0.3494562341 | J110: 0.5336643859 | K110: 0.7076417287 | L110: 0.2117106351 | M110: 0 | N110: 0.2913846949 | O110: 0.6070826658 | P110: 0.8500262667 | Q110: 0.4358052156 | R110: 0.0003994650857 | S110: 0.2858353564 | T110: 0.7737201032 | U110: 0.1528224543 | V110: =(V108)/(V$108+V$109) -> 0.4094004815 | W110: =(W108)/(W$108+W$109) -> 0.4279092795 | X110: =(X108)/(X$108+X$109) -> 0.06142215596
B111: % No renovable s/total | C111: =(C109)/(C$108+C$109) -> 0.6048849873 | D111: =(D109)/(D$108+D$109) -> 0.4440988792 | E111: 0.7209236263 | F111: 0.9695465992 | G111: 0.7912978534 | H111: 0.9200915893 | I111: 0.6505437659 | J111: 0.4663356141 | K111: 0.2923582713 | L111: 0.7882893649 | M111: 1 | N111: 0.7086153051 | O111: 0.3929173342 | P111: 0.1499737333 | Q111: 0.5641947844 | R111: 0.9996005349 | S111: 0.7141646436 | T111: 0.2262798968 | U111: 0.8471775457 | V111: =(V109)/(V$108+V$109) -> 0.5905995185 | W111: 0.5720907205 | X111: 0.938577844
B113: 2015
B114: CCAA | C114: Andalucía | D114: Aragón | E114: Asturias | F114: Baleares | G114: C. Valenciana | H114: Canarias | I114: Cantabria | J114: Castilla-La Mancha | K114: Castilla y León | L114: Cataluña | M114: Ceuta | N114: Extremadura | O114: Galicia | P114: La Rioja | Q114: Madrid | R114: Melilla | S114: Murcia | T114: Navarra | U114: País Vasco | V114: España | W114: PENINSULAR | X114: NO PENINSULAR
B115: rsu | F115: 302.195459 | I115: 66.28424 | L115: 273.08902 | O115: 375.968051 | Q115: 125.689754 | R115: 8.591858 | U115: 484.279885
B118: Hidráulica | C118: 968.2283432 | D118: 3437.745127 | E118: 1634.046922 | F118: 0 | G118: 1607.076344 | H118: 3.585851 | I118: 763.3898711 | J118: 747.0851824 | K118: 7951.811574 | L118: 4735.497171 | M118: 0 | N118: 1611.757504 | O118: 6457.487115 | P118: 122.8522502 | Q118: 132.7728345 | R118: 0 | S118: 108.505957 | T118: 534.1834837 | U118: 405.3483536 | V118: =SUM(C118:U118) -> 31221.37388 | W118: =V118-F118-H118-M118-R118 -> 31217.78803 | X118: =F118+H118+M118+R118 -> 3.585851
B119: Nuclear | C119: 0 | D119: 0 | E119: 0 | F119: 0 | G119: 7430.802 | H119: 0 | I119: 0 | J119: 7926.359 | K119: 0 | L119: 23325.627 | M119: 0 | N119: 16072.051 | O119: 0 | P119: 0 | Q119: 0 | R119: 0 | S119: 0 | T119: 0 | U119: 0 | V119: 54754.839 | W119: 54754.839 | X119: 0
B120: Carbón | C120: 12701.04 | D120: 4459.456 | E120: 12480.174 | F120: 1865.27 | G120: 0 | H120: 0 | I120: 0 | J120: 906.899 | K120: 9310.097 | L120: 0 | M120: 0 | N120: 0 | O120: 11066.106 | P120: 0 | Q120: 0 | R120: 0 | S120: 0 | T120: 0 | U120: 0 | V120: 52789.042 | W120: 50923.772 | X120: 1865.27
B121: Fuel / gas | C121: 0 | D121: 0 | E121: 0 | F121: 1322.478 | G121: 0 | H121: 4763.92 | I121: 0 | J121: 0 | K121: 0 | L121: 0 | M121: 205.438 | N121: 0 | O121: 0 | P121: 0 | Q121: 0 | R121: 204.814 | S121: 0 | T121: 0 | U121: 0 | V121: 6496.65 | W121: 4.263256415e-13 | X121: 6496.65
B122: Ciclo combinado | C122: 5623.467 | D122: 177.911 | E122: 361.307 | F122: 809.239 | G122: 4858.863 | H122: 3213.044 | I122: 0 | J122: 1289.096 | K122: 0 | L122: 6831.698 | M122: 0 | N122: 0 | O122: 333.788 | P122: 590.159 | Q122: 0 | R122: 0 | S122: 2072.432 | T122: 724.07 | U122: 2405.677 | V122: 29290.751 | W122: 25268.468 | X122: 4022.283
B123: Consumos generación | V123: =SUM(C123:U123) -> 0 | W123: 0 | X123: 0
B124: Hidroeólica | C124: 0 | D124: 0 | E124: 0 | F124: 0 | G124: 0 | H124: 8.557066 | I124: 0 | J124: 0 | K124: 0 | L124: 0 | M124: 0 | N124: 0 | O124: 0 | P124: 0 | Q124: 0 | R124: 0 | S124: 0 | T124: 0 | U124: 0 | V124: 8.557066 | W124: 0 | X124: 8.557066
B125: Eólica | C125: 6363.837098 | D125: 4229.199223 | E125: 917.807752 | F125: 5.315563 | G125: 2195.993566 | H125: 396.660923 | I125: 70.740945 | J125: 7286.716406 | K125: 11135.29315 | L125: 2608.782257 | M125: 0 | N125: 0 | O125: 8554.758744 | P125: 934.741484 | Q125: 0 | R125: 0 | S125: 435.397331 | T125: 2637.926023 | U125: 341.95555 | V125: =SUM(C125:U125) -> 48115.12602 | W125: 47713.14953 | X125: 401.976486
B126: Solar fotovoltaica | C126: 1570.07354 | D126: 304.325605 | E126: 0.651736 | F126: 122.646436 | G126: 523.085511 | H126: 275.555924 | I126: 2.05531 | J126: 1722.910268 | K126: 847.268851 | L126: 421.112084 | M126: 0 | N126: 1111.133989 | O126: 20.758184 | P126: 132.187662 | Q126: 93.788112 | R126: 0.07996 | S126: 762.396862 | T126: 304.335307 | U126: 28.715117 | V126: 8243.080458 | W126: 7844.798138 | X126: 398.28232
B127: Solar termoeléctrica | C127: 2110.236508 | D127: 0 | E127: 0 | F127: 0 | G127: 89.976464 | H127: 0 | I127: 0 | J127: 735.486298 | K127: 0 | L127: 75.591874 | M127: 0 | N127: 2037.844843 | O127: 0 | P127: 0 | Q127: 0 | R127: 0 | S127: 36.099527 | T127: 0 | U127: 0 | V127: 5085.235514 | W127: 5085.235514 | X127: 0
B128: Otras renovables | C128: 1265.903382 | D128: 57.287431 | E128: 228.786063 | F128: 1.971492 | G128: 40.643071 | H128: 8.053126 | I128: 85.075816 | J128: 240.960016 | K128: 201.185116 | L128: 174.427152 | M128: 0 | N128: 199.312358 | O128: 235.937514 | P128: 0.55284 | Q128: 156.870739 | R128: 0 | S128: 39.185057 | T128: 233.270322 | U128: 14.552711 | V128: 3183.974206 | W128: 3173.949588 | X128: 10.024618
B129: Cogeneración | C129: 5207.042735 | D129: 2443.058358 | E129: 357.122571 | F129: 31.518989 | G129: 1531.552624 | H129: 0 | I129: 716.346056 | J129: 778.594478 | K129: 1850.746959 | L129: 4678.848313 | M129: 0 | N129: 69.638162 | O129: 2629.349461 | P129: 82.116107 | Q129: 694.046949 | R129: 0 | S129: 1458.475687 | T129: 835.153377 | U129: 2085.884596 | V129: 25449.49542 | W129: 25417.97643 | X129: 31.518989
B130: Residuos | C130: 0 | D130: 404.302174 | E130: 720.741036 | F130: 302.195459 | G130: 365.328105 | H130: 0 | I130: 66.28424 | J130: 0 | K130: 0 | L130: 273.08902 | M130: 0 | N130: 0 | O130: 375.968051 | P130: 0 | Q130: 125.689754 | R130: 8.591858 | S130: 0 | T130: 0 | U130: 655.967836 | V130: =SUM(C130:U130) -> 3298.157533 | W130: =V130-F130-H130-M130-R130 -> 2987.370216 | X130: =F130+H130+M130+R130 -> 310.787317
B131: Generación neta | C131: 35809.82861 | D131: 15513.28492 | E131: 16700.63708 | F131: 4460.634939 | G131: 18643.32068 | H131: 8669.37689 | I131: 1703.892238 | J131: 21634.10665 | K131: 31296.40265 | L131: 43124.67287 | M131: 205.438 | N131: 21101.73786 | O131: 29674.15307 | P131: 1862.609343 | Q131: 1203.168389 | R131: 213.485818 | S131: 4912.492421 | T131: 5268.938513 | U131: 5938.101164 | V131: =SUM(V118:V130) -> 267936.2821 | W131: =V131-F131-H131-M131-R131 -> 254387.3465 | X131: 13548.93565
B132: Consumos en bombeo | C132: -391.213 | D132: -410.178 | E132: -41.477 | F132: 0 | G132: -1352.201 | H132: 0 | I132: -684.933 | J132: -44.284 | K132: -854.155 | L132: -463.465 | M132: 0 | N132: -43.287 | O132: -234.901 | P132: 0 | Q132: 0 | R132: 0 | S132: 0 | T132: 0 | U132: 0 | V132: -4520.094 | W132: =V132-F132-H132-M132-R132 -> -4520.094 | X132: 0
B133: Saldo Intercambios | C133: 3241.863 | D133: -4802.101 | E133: -6191.354 | F133: 1335.783 | G133: 9454.445 | H133: 0 | I133: 3228.933 | J133: -10018.83 | K133: -16577.612 | L133: 3985.876 | M133: 0 | N133: -16222.839 | O133: -9721.055 | P133: -137.492 | Q133: 27670.776 | R133: 0 | S133: 4007.705 | T133: -425.816 | U133: 11038.563 | V133: -133.155 | W133: -1468.938 | X133: 1335.783
B134: Demanda B.C | C134: 38660.47861 | D134: 10301.00592 | E134: 10467.80608 | F134: 5796.417939 | G134: 26745.56468 | H134: 8669.37689 | I134: 4247.892238 | J134: 11570.99265 | K134: 13864.63565 | L134: 46646.98387 | M134: 205.438 | N134: 4835.611856 | O134: 19718.19707 | P134: 1725.117343 | Q134: 28873.94439 | R134: 213.485818 | S134: 8920.197421 | T134: 4843.122513 | U134: 16976.66416 | V134: =SUM(V131:V133) -> 263283.0331 | W134: 248398.3145 | X134: 14884.71865
B135: =CONCATENATE("Δ",B113,"/",B113-1) -> Δ2015/2014 | C135: =(C134/C106-1) -> 0.02990024135 | D135: 0.0209443546 | E135: 0.01504548953 | F135: 0.03777528258 | G135: 0.03321090799 | H135: 0.01042057781 | I135: -0.01705828299 | J135: -0.006854701559 | K135: 0.02269310326 | L135: 0.02246259759 | M135: -0.03210790896 | N135: 0.04265708123 | O135: -0.001559166633 | P135: 0.02054699581 | Q135: 0.01498635433 | R135: 0.01726206364 | S135: 0.053317624 | T135: 0.01320765424 | U135: 0.01097482162 | V135: 0.0199580447 | W135: 0.0199331261 | X135: 0.02037406974
B136: Renovable | C136: =C118+0.7*C132+C124+C125+C126+C127+C128+0.5*C115 -> 12004.42977 | D136: =D118+0.7*D132+D124+D125+D126+D127+D128+0.5*D115 -> 7741.432786 | E136: 2752.258573 | F136: 281.0312205 | G136: 3510.234256 | H136: 692.41289 | I136: 474.9509621 | J136: 10702.15937 | K136: 19537.65019 | L136: 7827.529548 | M136: 0 | N136: 4929.747794 | O136: 15292.49488 | P136: 1190.334236 | Q136: 446.2765625 | R136: 4.375889 | S136: 1381.584734 | T136: 3709.715136 | U136: 1032.711674 | V136: =SUM(C136:U136) -> 93511.33048 | W136: =V136-F136-H136-M136-R136 -> 92533.51048 | X136: =F136+H136+M136+R136 -> 977.8199995
B137: No renovable | C137: =C119+C120+C121+C122+C129+(C130-0.5*C115) -> 23531.54974 | D137: =D119+D120+D121+D122+D129+(D130-0.5*D115) -> 7484.727532 | E137: 13919.34461 | F137: 4179.603719 | G137: 14186.54573 | H137: 7976.964 | I137: 749.488176 | J137: 10900.94848 | K137: 11160.84396 | L137: 34972.71782 | M137: 205.438 | N137: 16141.68916 | O137: 14217.22749 | P137: 672.275107 | Q137: 756.891826 | R137: 209.109929 | S137: 3530.907687 | T137: 1559.223377 | U137: 4905.389489 | V137: =SUM(C137:U137) -> 171260.8858 | W137: =V137-F137-H137-M137-R137 -> 158689.7702 | X137: 12571.11565
B138: % Renovable s/total | C138: =(C136)/(C136+C137) -> 0.3378105778 | D138: =(D136)/(D136+D137) -> 0.5084297436 | E138: 0.1650866172 | F138: 0.06300251519 | G138: 0.1983544045 | H138: 0.07986881858 | I138: 0.3878926664 | J138: 0.4953990623 | K138: 0.6364367613 | L138: 0.1828851474 | M138: 0 | N138: 0.2339540395 | O138: 0.5182188667 | P138: 0.6390681119 | Q138: 0.3709177924 | R138: 0.02049732877 | S138: 0.2812390566 | T138: 0.7040725806 | U138: 0.1739127788 | V138: =(V136)/(V136+V137) -> 0.353176522 | W138: 0.3683317495 | X138: 0.07216950652
B139: % No renovable s/total | C139: =(C137)/(C136+C137) -> 0.6621894222 | D139: =(D137)/(D136+D137) -> 0.4915702564 | E139: 0.8349133828 | F139: 0.9369974848 | G139: 0.8016455955 | H139: 0.9201311814 | I139: 0.6121073336 | J139: 0.5046009377 | K139: 0.3635632387 | L139: 0.8171148526 | M139: 1 | N139: 0.7660459605 | O139: 0.4817811333 | P139: 0.3609318881 | Q139: 0.6290822076 | R139: 0.9795026712 | S139: 0.7187609434 | T139: 0.2959274194 | U139: 0.8260872212 | V139: =(V137)/(V136+V137) -> 0.646823478 | W139: 0.6316682505 | X139: 0.9278304935
B141: 2016
B142: CCAA | C142: Andalucía | D142: Aragón | E142: Asturias | F142: Baleares | G142: C. Valenciana | H142: Canarias | I142: Cantabria | J142: Castilla-La Mancha | K142: Castilla y León | L142: Cataluña | M142: Ceuta | N142: Extremadura | O142: Galicia | P142: La Rioja | Q142: Madrid | R142: Melilla | S142: Murcia | T142: Navarra | U142: País Vasco | V142: España | W142: PENINSULAR | X142: NO PENINSULAR
B143: rsu | F143: 261.610133 | I143: 78.184441 | L143: 268.087836 | O143: 338.234853 | Q143: 135.524414 | R143: 9.700105 | U143: 479.448277 | V143: =SUM(C143:U143) -> 1570.790059 | W143: =V143-F143-H143-M143-R143 -> 1299.479821 | X143: =F143+H143+M143+R143 -> 271.310238
B146: Hidráulica | C146: 955.6259599 | D146: 3333.331622 | E146: 1985.735507 | F146: 0 | G146: 1994.320784 | H146: 3.472192 | I146: 666.6792634 | J146: 874.1436662 | K146: 11569.94366 | L146: 4180.106891 | M146: 0 | N146: 2518.689713 | O146: 9841.578576 | P146: 174.4320363 | Q146: 157.2971486 | R146: 0 | S146: 100.650005 | T146: 450.3620599 | U146: 370.5848097 | V146: =SUM(C146:U146) -> 39176.95389 | W146: =V146-F146-H146-M146-R146 -> 39173.4817 | X146: =F146+H146+M146+R146 -> 3.472192
B147: Nuclear | C147: 0 | D147: 0 | E147: 0 | F147: 0 | G147: 9178.263 | H147: 0 | I147: 0 | J147: 8002.642 | K147: 0 | L147: 23743.211 | M147: 0 | N147: 15174.856 | O147: 0 | P147: 0 | Q147: 0 | R147: 0 | S147: 0 | T147: 0 | U147: 0 | V147: 56098.972 | W147: 56098.972 | X147: 0
B148: Carbón | C148: 8273.448 | D148: 3317.603 | E148: 7573.062 | F148: 2303.769 | G148: 0 | H148: 0 | I148: 0 | J148: 0.077 | K148: 6554.315 | L148: 0 | M148: 0 | N148: 0 | O148: 9468.999 | P148: 0 | Q148: 0 | R148: 0 | S148: 0 | T148: 0 | U148: 0 | V148: 37491.273 | W148: 35187.504 | X148: 2303.769
B149: Fuel / gas | C149: 0 | D149: 0 | E149: 0 | F149: 1311.771 | G149: 0 | H149: 5043.461 | I149: 0 | J149: 0 | K149: 0 | L149: 0 | M149: 210.736 | N149: 0 | O149: 0 | P149: 0 | Q149: 0 | R149: 198.57 | S149: 0 | T149: 0 | U149: 0 | V149: 6764.538 | W149: -3.97903932e-13 | X149: 6764.538
B150: Ciclo combinado | C150: 6185.609 | D150: 175.51 | E150: 354.817 | F150: 542.55 | G150: 4695.019 | H150: 3031.7 | I150: 0 | J150: 1266.46 | K150: 0 | L150: 6989.706 | M150: 0 | N150: 0 | O150: 670.215 | P150: 1015.822 | Q150: 0 | R150: 0 | S150: 1114.862 | T150: 1287.686 | U150: 1930.442 | V150: 29260.398 | W150: 25686.148 | X150: 3574.25
B151: Consumos generación | V151: =SUM(C151:U151) -> 0 | W151: 0 | X151: 0
B152: Hidroeólica | C152: 0 | D152: 0 | E152: 0 | F152: 0 | G152: 0 | H152: 18.102639 | I152: 0 | J152: 0 | K152: 0 | L152: 0 | M152: 0 | N152: 0 | O152: 0 | P152: 0 | Q152: 0 | R152: 0 | S152: 0 | T152: 0 | U152: 0 | V152: =SUM(C152:U152) -> 18.102639 | W152: 0 | X152: 18.102639
B153: Eólica | C153: 7060.264593 | D153: 4225.959252 | E153: 798.145695 | F153: 5.416058 | G153: 2224.688286 | H153: 393.085554 | I153: 70.502809 | J153: 7680.537222 | K153: 10939.94373 | L153: 2683.941945 | M153: 0 | N153: 0 | O153: 7318.713076 | P153: 933.709781 | Q153: 0 | R153: 0 | S153: 457.421152 | T153: 2571.923076 | U153: 332.418067 | V153: =SUM(C153:U153) -> 47696.6703 | W153: 47298.16869 | X153: 398.501612
B154: Solar fotovoltaica | C154: 1525.683551 | D154: 295.295939 | E154: 0.58737 | F154: 120.534661 | G154: 514.061468 | H154: 277.674761 | I154: 2.095262 | J154: 1624.757124 | K154: 829.744469 | L154: 413.621431 | M154: 0 | N154: 1061.744123 | O154: 20.147258 | P154: 131.425654 | Q154: 88.527027 | R154: 0.078082 | S154: 747.019136 | T154: 294.940998 | U154: 29.661534 | V154: 7977.599848 | W154: 7579.312344 | X154: 398.287504
B155: Solar termoeléctrica | C155: 2194.631009 | D155: 0 | E155: 0 | F155: 0 | G155: 70.150953 | H155: 0 | I155: 0 | J155: 721.879998 | K155: 0 | L155: 70.319427 | M155: 0 | N155: 1973.457652 | O155: 0 | P155: 0 | Q155: 0 | R155: 0 | S155: 40.762663 | T155: 0 | U155: 0 | V155: 5071.201702 | W155: 5071.201702 | X155: 0
B156: Otras renovables | C156: 1367.772666 | D156: 53.330302 | E156: 245.265981 | F156: 1.309715 | G156: 38.907042 | H156: 9.335775 | I156: 76.573037 | J156: 238.410359 | K156: 246.51016 | L156: 174.026421 | M156: 0 | N156: 235.610537 | O156: 232.034116 | P156: 7.593838 | Q156: 137.921649 | R156: 0 | S156: 55.348953 | T156: 273.716822 | U156: 30.889806 | V156: =SUM(C156:U156) -> 3424.557179 | W156: 3413.911689 | X156: 10.64549
B157: Cogeneración | C157: 5102.743263 | D157: 2498.912457 | E157: 369.745856 | F157: 34.701317 | G157: 1579.402809 | H157: 0 | I157: 831.309878 | J157: 988.741079 | K157: 1857.917275 | L157: 4689.194371 | M157: 0 | N157: 50.701283 | O157: 2801.991939 | P157: 65.604554 | Q157: 709.290259 | R157: 0 | S157: 1446.650791 | T157: 850.04066 | U157: 2029.668237 | V157: 25906.61603 | W157: 25871.91471 | X157: 34.701317
B158: Residuos | C158: 181.57978 | D158: 366.541587 | E158: 707.87569 | F158: 261.610133 | G158: 344.800935 | H158: 0 | I158: 78.184441 | J158: 0 | K158: 0 | L158: 270.5028 | M158: 0 | N158: 0 | O158: 338.234853 | P158: 0 | Q158: 135.524414 | R158: 9.700105 | S158: 0 | T158: 0 | U158: 697.804056 | V158: 3392.358794 | W158: 3121.048556 | X158: 271.310238
B159: Generación neta | C159: =SUM(C146:C158) -> 32847.35782 | D159: =SUM(D146:D158) -> 14266.48416 | E159: 12035.2351 | F159: 4581.661884 | G159: 20639.61428 | H159: 8776.831921 | I159: 1725.34469 | J159: =SUM(J146:J158) -> 21397.64845 | K159: =SUM(K146:K158) -> 31998.37429 | L159: =SUM(L146:L158) -> 43214.63029 | M159: =SUM(M146:M158) -> 210.736 | N159: =SUM(N146:N158) -> 21015.05931 | O159: 30691.91382 | P159: 2328.587863 | Q159: 1228.560498 | R159: 208.348187 | S159: 3962.7147 | T159: 5728.669616 | U159: 5421.46851 | V159: =SUM(V146:V158) -> 262279.2414 | W159: =V159-F159-H159-M159-R159 -> 248501.6634 | X159: =F159+H159+M159+R159 -> 13777.57799
B160: Consumos en bombeo | C160: -370.583 | D160: -421.737 | E160: -38.751 | F160: 0 | G160: -1830.747 | H160: 0 | I160: -611.804 | J160: -65.597 | K160: -919.611 | L160: -303.502 | M160: 0 | N160: -84.442 | O160: -172.642 | P160: 0 | Q160: 0 | R160: 0 | S160: 0 | T160: 0 | U160: 0 | V160: =SUM(C160:U160) -> -4819.416 | W160: =V160-F160-H160-M160-R160 -> -4819.416 | X160: 0
B161: Saldo Intercambios | C161: 7129.363 | D161: -3406.842 | E161: -1487.886 | F161: 1250.582 | G161: 8043.827 | H161: 0 | I161: 3090.931 | J161: -9620.951 | K161: -17052.596 | L161: 3999.883 | M161: 0 | N161: -15961.991 | O161: -10557.892 | P161: -596.534 | Q161: 27740.176 | R161: 0 | S161: 5090.398 | T161: -780.105 | U161: 10786.96 | V161: 7667.323 | W161: 6416.741 | X161: 1250.582
B162: Demanda B.C | C162: =SUM(C159:C161) -> 39606.13782 | D162: =SUM(D159:D161) -> 10437.90516 | E162: 10508.5981 | F162: 5832.243884 | G162: 26852.69428 | H162: 8776.831921 | I162: 4204.47169 | J162: 11711.10045 | K162: 14026.16729 | L162: =SUM(L159:L161)-0.1 -> 46910.91129 | M162: =SUM(M159:M161) -> 210.736 | N162: 4968.626308 | O162: 19961.37982 | P162: 1732.053863 | Q162: 28968.7365 | R162: 208.348187 | S162: 9053.1127 | T162: 4948.564616 | U162: 16208.42851 | V162: =SUM(V159:V161) -> 265127.1484 | W162: 250098.9884 | X162: 15028.15999
B163: =CONCATENATE("Δ",B141,"/",B141-1) -> Δ2016/2015 | C163: =(C162/C134-1) -> 0.02446061844 | D163: =(D162/D134-1) -> 0.01328989048 | E163: 0.003896902438 | F163: 0.006180704252 | G163: 0.004005508696 | H163: 0.01239478135 | I163: -0.01022166885 | J163: 0.01210853761 | K163: 0.01165062269 | L163: 0.005657973843 | M163: 0.02578880246 | N163: 0.02750726417 | O163: 0.01233290992 | P163: 0.00402089758 | Q163: 0.003282963623 | R163: -0.02406544401 | S163: 0.01490048625 | T163: 0.02177151267 | U163: -0.04525245045 | V163: 0.00700430732 | W163: 0.006846559868 | X163: 0.009636819372
B164: Renovable | C164: =C146+0.7*C160+C152+C153+C154+C155+C156+0.5*C143 -> 12844.56968 | D164: =D146+0.7*D160+D152+D153+D154+D155+D156+0.5*D143 -> 7612.701215 | E164: 3002.608853 | F164: 258.0655005 | G164: 3560.605633 | H164: 701.670921 | I164: 426.6797919 | J164: 11093.81047 | K164: 22942.41432 | L164: 7443.608633 | M164: 0 | N164: 5730.392625 | O164: 17460.74105 | P164: 1247.161309 | Q164: 451.5080316 | R164: 4.9281345 | S164: 1401.201909 | T164: 3590.942956 | U164: 1003.278355 | V164: =SUM(C164:U164) -> 100776.8894 | W164: =V164-F164-H164-M164-R164 -> 99812.22483 | X164: =F164+H164+M164+R164 -> 964.664556
B165: No renovable | C165: =C147+C148+C149+C150+C157+(C158-C143*0.5) -> 19743.38004 | D165: =D147+D148+D149+D150+D157+(D158-D143*0.5) -> 6358.567044 | E165: 9005.500546 | F165: 4323.596384 | G165: 15797.48574 | H165: 8075.161 | I165: 870.4020985 | J165: 10257.92008 | K165: 8412.232275 | L165: 35558.57025 | M165: 210.736 | N165: 15225.55728 | O165: 13110.32337 | P165: 1081.426554 | Q165: 777.052466 | R165: 203.4200525 | S165: 2561.512791 | T165: 2137.72666 | U165: 4418.190155 | V165: =SUM(C165:U165) -> 158128.7608 | W165: =V165-F165-H165-M165-R165 -> 145315.8474 | X165: 12812.91344
B166: % Renovable s/total | C166: =(C164)/(C164+C165) -> 0.394150899 | D166: =(D164)/(D164+D165) -> 0.5448826172 | E166: 0.2500484259 | F166: 0.05632574097 | G166: 0.1839337135 | H166: 0.07994580816 | I166: 0.3289536266 | J166: 0.5195743007 | K166: 0.7317069976 | L166: 0.1730984063 | M166: 0 | N166: 0.2734494332 | O166: 0.5711525387 | P166: 0.5355869662 | Q166: 0.3675098072 | R166: 0.02365335917 | S166: 0.3535964648 | T166: 0.6268371536 | U166: =(U164)/(U164+U165) -> 0.1850565679 | V166: =(V164)/(V164+V165) -> 0.389241754 | W166: 0.4071839832 | X166: 0.07001699113
B167: % No renovable s/total | C167: =(C165)/(C164+C165) -> 0.605849101 | D167: =(D165)/(D164+D165) -> 0.4551173828 | E167: 0.7499515741 | F167: 0.943674259 | G167: 0.8160662865 | H167: 0.9200541918 | I167: 0.6710463734 | J167: 0.4804256993 | K167: 0.2682930024 | L167: 0.8269015937 | M167: 1 | N167: 0.7265505668 | O167: 0.4288474613 | P167: 0.4644130338 | Q167: 0.6324901928 | R167: 0.9763466408 | S167: 0.6464035352 | T167: 0.3731628464 | U167: 0.8149434321 | V167: =(V165)/(V164+V165) -> 0.610758246 | W167: 0.5928160168 | X167: 0.9299830089

Sheet Potencias (hidden)
B1: 2011
B2: CCAA | C2: Andalucía | D2: Aragón | E2: Asturias | F2: Baleares | G2: C. Valenciana | H2: Canarias | I2: Cantabria | J2: Castilla-La Mancha | K2: Castilla y León | L2: Cataluña | M2: Ceuta | N2: Extremadura | O2: Galicia | P2: La Rioja | Q2: Madrid | R2: Melilla | S2: Murcia | T2: Navarra | U2: País Vasco | V2: España | W2: PENINSULAR | X2: NO PENINSULAR
B4: Hidráulica | C4: 1178.831 | D4: 1547.547 | E4: 804.37 | G4: 1273.759 | H4: 1.263 | I4: 458.924 | J4: 867.858 | K4: 4390.2915 | L4: 2350.33825 | N4: 2274.237 | O4: 3422.2372 | P4: 55.55073 | Q4: 98.871 | S4: 35.628 | T4: 223.235 | U4: 172.8931 | V4: =SUM(C4:U4) -> 19155.83378 | W4: =V4-F4-H4-M4-R4 -> 19154.57078 | X4: =F4+H4+M4+R4 -> 1.263
B5: Nuclear | C5: 0 | D5: 0 | E5: 0 | F5: 0 | G5: 1063.94 | H5: 0 | I5: 0 | J5: 1003.41 | K5: 455.29 | L5: 3032.81 | M5: 0 | N5: 2017.13 | O5: 0 | P5: 0 | Q5: 0 | R5: 0 | S5: 0 | T5: 0 | U5: 0 | V5: 7572.58 | W5: =V5-F5-H5-M5-R5 -> 7572.58 | X5: =F5+H5+M5+R5 -> 0
B6: Carbón | C6: 1989.4 | D6: 1198.12 | E6: 2512.19 | F6: 468.4 | G6: 0 | H6: 0 | I6: 0 | J6: 502.64 | K6: 2595.23 | L6: 145.75 | M6: 0 | N6: 0 | O6: 1945.49 | P6: 0 | Q6: 0 | R6: 0 | S6: 0 | T6: 0 | U6: 214.57 | V6: 11571.79 | W6: 11103.39 | X6: 468.4
B7: Fuel / gas | C7: 0 | D7: 0 | E7: 0 | F7: 715.4 | G7: 0 | H7: 1693.67 | I7: 0 | J7: 301 | K7: 0 | L7: 505.52 | M7: 90.82 | N7: 0 | O7: 0 | P7: 0 | Q7: 0 | R7: 76.14 | S7: 0 | T7: 0 | U7: 0 | V7: 3382.55 | W7: 806.52 | X7: 2576.03
B8: Ciclo combinado | C8: 5951.72 | D8: 1869.68 | E8: 854.17 | F8: 857.95 | G8: 2853.54 | H8: 864.2 | I8: 0 | J8: 758.74 | K8: 0 | L8: 4158.98 | M8: 0 | N8: 0 | O8: 1226.1 | P8: 784.7 | Q8: 0 | R8: 0 | S8: 3263.71 | T8: 1222.32 | U8: 1968.07 | V8: 26633.88 | W8: 24911.73 | X8: 1722.15
B9: Hidroeólica | C9: 0 | D9: 0 | E9: 0 | F9: 0 | G9: 0 | H9: 0 | I9: 0 | J9: 0 | K9: 0 | L9: 0 | M9: 0 | N9: 0 | O9: 0 | P9: 0 | Q9: 0 | R9: 0 | S9: 0 | T9: 0 | U9: 0 | V9: 0 | W9: 0 | X9: 0
B10: Eólica | C10: 3036.297 | D10: 1722.45 | E10: 404.03 | F10: 3.6763 | G10: 1082.74 | H10: 145.135 | I10: 35.307 | J10: 3713.6772 | K10: 4906.5095 | L10: 1011.13 | M10: 0 | N10: 0 | O10: 3287.497 | P10: 448.18 | Q10: 0 | R10: 0 | S10: 191.286 | T10: 985.13875 | U10: 193.845 | V10: =SUM(C10:U10) -> 21166.89875 | W10: 21018.08745 | X10: 148.8113
B11: Solar fotovoltaica | C11: 785.90616 | D11: 141.95021 | E11: 0.72293 | F11: 63.13208 | G11: 301.5701 | H11: 138.04026 | I11: 1.94406 | J11: 879.06398 | K11: 451.86224 | L11: 225.47726 | M11: 0 | N11: 525.02629 | O11: 11.9376 | P11: 84.4857 | Q11: 47.39983 | R11: 0.0579 | S11: 403.93648 | T11: 148.47291 | U11: 22.30371 | V11: =SUM(C11:U11) -> 4233.2897 | W11: 4032.05946 | X11: 201.23024
B12: Solar térmica | C12: 597.62 | D12: 0 | E12: 0 | F12: 0 | G12: 0 | H12: 0 | I12: 0 | J12: 99.9 | K12: 0 | L12: 0 | M12: 0 | N12: 299.6 | O12: 0 | P12: 0 | Q12: 0 | R12: 0 | S12: 1.4 | T12: 0 | U12: 0 | V12: 998.52 | W12: 998.52 | X12: 0
B13: Otras renovables | C13: 239.488 | D13: 84.366 | E13: 85.57 | F13: 0 | G13: 33.393 | H13: 3.368 | I13: 2.862 | J13: 58.009 | K13: 26.86141 | L13: 64.188 | M13: 0 | N13: 17.1 | O13: 94.1245 | P13: 4.353 | Q13: 42.545 | R13: 0 | S13: 18.906 | T13: 46.472 | U13: 64.682 | V13: 886.28791 | W13: 882.91991 | X13: 3.368
B14: Cogeneración | C14: 975.058 | D14: 608.715 | E14: 152.071 | F14: 82.171 | G14: 647.3985 | H14: 33.268 | I14: 314.647 | J14: 462.053 | K14: 641.087 | L14: 1327.7959 | M14: 0 | N14: 19.4 | O14: 621.494 | P14: 47.674 | Q14: 329.8639 | R14: 2.168 | S14: 307.822 | T14: 175.841 | U14: 548.1514 | V14: 7296.6787 | W14: 7179.0717 | X14: 117.607
B15: Residuos | C15: 0 | D15: 0 | E15: 0 | F15: 0 | G15: 0 | H15: 0 | I15: 0 | J15: 0 | K15: 0 | L15: 0 | M15: 0 | N15: 0 | O15: 0 | P15: 0 | Q15: 0 | R15: 0 | S15: 0 | T15: 0 | U15: 0 | V15: 0 | W15: 0 | X15: 0
B16: Potencia 2011 | C16: =SUM(C4:C15) -> 14754.32016 | D16: =SUM(D4:D15) -> 7172.82821 | E16: 4813.12393 | F16: 2190.72938 | G16: 7256.3406 | H16: 2878.94426 | I16: 813.68406 | J16: 8646.35118 | K16: 13467.13165 | L16: 12821.98941 | M16: 90.82 | N16: 5152.49329 | O16: 10608.8803 | P16: 1424.94343 | Q16: 518.67973 | R16: 78.3659 | S16: 4222.68848 | T16: 2801.47966 | U16: 3184.51521 | V16: =SUM(V4:V15) -> 102898.3088 | W16: =V16-F16-H16-M16-R16 -> 97659.4493 | X16: 5238.85954
B17: % Potencia s/total | C17: 0.1433541909 | D17: 0.06967598797 | E17: 0.04662897053 | F17: 0.02127908891 | G17: 0.07051907968 | H17: 0.02797701438 | I17: 0.007901206991 | J17: 0.08405880619 | K17: 0.1308358254 | L17: 0.1246040375 | M17: 0.0008821996189 | N17: 0.05012428768 | O17: 0.1032714744 | P17: 0.01384680813 | Q17: 0.005062208965 | R17: 0.0007612240378 | S17: 0.04103682157 | T17: 0.02724593152 | U17: 0.03093483562 | V17: 1 | W17: 0.949100473 | X17: 0.05089952695
B18: Δ2011/2010 | C18: 0.04076624449 | D18: 0.005958716813 | E18: 0.01768096385 | F18: -0.008702167812 | G18: 0.01373075913 | H18: 0.002745482515 | I18: 0.004335675035 | J18: 0.01171388618 | K18: 0.07094832052 | L18: -0.02426460881 | M18: -0.1760116131 | N18: 0.04694396375 | O18: -0.03179599926 | P18: 0.0024150368 | Q18: 0.0268690073 | R18: 0 | S18: 0.01589030518 | T18: 0.01234998253 | U18: 0.01581446019 | V18: 0.01477258864 | W18: 0.01590224542 | X18: -0.005835158298
B20: 2012
B21: CCAA | C21: Andalucía | D21: Aragón | E21: Asturias | F21: Baleares | G21: C. Valenciana | H21: Canarias | I21: Cantabria | J21: Castilla-La Mancha | K21: Castilla y León | L21: Cataluña | M21: Ceuta | N21: Extremadura | O21: Galicia | P21: La Rioja | Q21: Madrid | R21: Melilla | S21: Murcia | T21: Navarra | U21: País Vasco | V21: España | W21: PENINSULAR | X21: NO PENINSULAR
B23: Hidráulica | C23: 1178.831 | D23: 1547.277 | E23: 804.37 | G23: 1273.759 | H23: 1.263 | I23: 458.924 | J23: 866.258 | K23: 4393.5515 | L23: 2350.67825 | N23: 2277.775 | O23: 3637.3372 | P23: 55.55073 | Q23: 101.451 | S23: 35.628 | T23: 223.235 | U23: 172.8931 | V23: =SUM(C23:U23) -> 19378.78178 | W23: =V23-F23-H23-M23-R23 -> 19377.51878 | X23: =F23+H23+M23+R23 -> 1.263
B24: Nuclear | G24: 1063.94 | J24: 1003.41 | K24: 455.29 | L24: 3032.81 | N24: 2017.13 | V24: =SUM(C24:U24) -> 7572.58 | W24: 7572.58 | X24: =F24+H24+M24+R24 -> 0
B25: Carbón | C25: 1989.4 | D25: 1198.12 | E25: 2364.59 | F25: 468.4 | J25: 502.64 | K25: 2595.23 | O25: 1945.49 | V25: 11063.87 | W25: 10595.47 | X25: 468.4
B26: Fuel / gas | F26: 739.4 | H26: 1693.67 | L26: 505.52 | M26: 90.82 | R26: 76.14 | V26: 3105.55 | W26: 505.52 | X26: 2600.03
B27: Ciclo combinado | C27: 5951.72 | D27: 1869.68 | E27: 854.17 | F27: 857.95 | G27: 2853.54 | H27: 864.2 | J27: 758.74 | L27: 4174.08 | O27: 1246.98 | P27: 784.7 | S27: 3263.71 | T27: 1222.32 | U27: 1968.07 | V27: 26669.86 | W27: 24947.71 | X27: 1722.15
B28: Hidroeólica | V28: 0 | W28: 0 | X28: 0
B29: Eólica | C29: 3249.997 | D29: 1792.55 | E29: 452.03 | F29: 3.6763 | G29: 1193.2446 | H29: 145.475 | I29: 35.307 | J29: 3799.9272 | K29: 5596.7845 | L29: 1274.51 | N29: 0 | O29: 3320.897 | P29: 448.18 | Q29: 0 | R29: 0 | S29: 263.286 | T29: 988.13875 | U29: 193.85 | V29: 22757.85335 | W29: 22608.70205 | X29: 149.1513
B30: Solar fotovoltaica | C30: 840.56516 | D30: 164.19366 | E30: 0.77793 | F30: 77.50613 | G30: 343.22616 | H30: 161.15558 | I30: 2.04776 | J30: 903.85472 | K30: 483.70754 | L30: 244.03536 | N30: 532.69149 | O30: 14.93037 | P30: 85.0807 | Q30: 64.46753 | R30: 0.0579 | S30: 428.12928 | T30: 160.73786 | U30: 25.14571 | V30: 4532.31084 | W30: 4293.59123 | X30: 238.71961
B31: Solar térmica | C31: 947.32 | D31: 0 | E31: 0 | F31: 0 | G31: 0 | H31: 0 | I31: 0 | J31: 349.4 | K31: 0 | L31: 22.5 | N31: 599.3 | O31: 0 | P31: 0 | Q31: 0 | R31: 0 | S31: 31.4 | T31: 0 | U31: 0 | V31: 1949.92 | W31: 1949.92 | X31: 0
B32: Otras renovables | C32: 289.488 | D32: 86.866 | E32: 85.57 | F32: 2.13 | G32: 33.393 | H32: 3.368 | I32: 12.862 | J32: 58.009 | K32: 27.46141 | L32: 66.678 | N32: 17.1 | O32: 93.852 | P32: 4.353 | Q32: 42.545 | R32: 0 | S32: 19.969 | T32: 46.362 | U32: 83.924 | V32: 973.93041 | W32: 968.43241 | X32: 5.498
B33: Cogeneración | C33: 973.198 | D33: 600.266 | E33: 152.121 | F33: 85.625 | G33: 646.6275 | H33: 33.268 | I33: 313.626 | J33: 462.114 | K33: 635.7355 | L33: 1323.6009 | N33: 19.4 | O33: 578.838 | P33: 46.316 | Q33: 329.9779 | R33: 2.168 | S33: 340.082 | T33: 173.741 | U33: 521.5064 | V33: 7238.2112 | W33: 7117.1502 | X33: 121.061
B34: Residuos | V34: =SUM(C34:U34) -> 0 | W34: 0 | X34: 0
B35: =CONCATENATE("Potencia ",B20) -> Potencia 2012 | C35: =SUM(C23:C34) -> 15420.51916 | D35: 7258.95266 | E35: 4713.62893 | F35: 2234.68743 | G35: 7407.73026 | H35: 2902.39958 | I35: 822.76676 | J35: 8704.35292 | K35: 14187.76045 | L35: 12994.41251 | M35: 90.82 | N35: 5463.39649 | O35: 10838.32457 | P35: 1424.18043 | Q35: 538.44143 | R35: 78.3659 | S35: 4382.20428 | T35: 2814.53461 | U35: 2965.38921 | V35: =SUM(C35:U35) -> 105242.8676 | W35: =V35-F35-H35-M35-R35 -> 99936.59467 | X35: 5306.27291
B36: % Potencia s/total | C36: =C35/$V35 -> 0.1465231755 | D36: =D35/$V35 -> 0.06897334543 | E36: 0.0447881081 | F36: 0.02123362354 | G36: 0.07038700513 | H36: 0.02757811191 | I36: 0.007817791162 | J36: 0.08270729523 | K36: 0.1348097099 | L36: 0.1234707188 | M36: 0.0008629563417 | N36: 0.05191227316 | O36: 0.1029839344 | P36: 0.01353232255 | Q36: 0.00511617977 | R36: 0.0007446195814 | S36: 0.0416389669 | T36: 0.02674323377 | U36: 0.02817662877 | V36: 1 | W36: =W35/$V35 -> 0.9495806886 | X36: =X35/$V35 -> 0.05041931137
B37: =CONCATENATE("Δ",B20,"/",B20-1) -> Δ2012/2011 | C37: =(C35/C16-1) -> 0.04515280899 | D37: 0.01200704206 | E37: -0.02067160569 | F37: 0.02006548614 | G37: 0.02086308628 | H37: 0.008147194903 | I37: 0.01116244062 | J37: 0.006708233195 | K37: 0.05351019198 | L37: 0.013447453 | M37: 0 | N37: 0.06034034059 | O37: 0.02162756705 | P37: -0.0005354598533 | Q37: 0.03810000441 | R37: 0 | S37: 0.03777588632 | T37: 0.004660019556 | U37: -0.06880984563 | V37: 0.02278520188 | W37: 0.0233172047 | X37: 0.01286794759
B39: 2013
B40: CCAA | C40: Andalucía | D40: Aragón | E40: Asturias | F40: Baleares | G40: C. Valenciana | H40: Canarias | I40: Cantabria | J40: Castilla-La Mancha | K40: Castilla y León | L40: Cataluña | M40: Ceuta | N40: Extremadura | O40: Galicia | P40: La Rioja | Q40: Madrid | R40: Melilla | S40: Murcia | T40: Navarra | U40: País Vasco | V40: España | W40: PENINSULAR | X40: NO PENINSULAR
B42: Hidráulica | C42: 1183.441 | D42: 1548.157 | E42: 804.37 | G42: 1273.759 | H42: 1.263 | I42: 458.924 | J42: 866.258 | K42: 4394.9545 | L42: 2350.27825 | N42: 2277.775 | O42: 3666.5772 | P42: 55.55073 | Q42: 103.751 | S42: 35.628 | T42: 243.235 | U42: 172.8931 | V42: =SUM(C42:U42) -> 19436.81478 | W42: =V42-F42-H42-M42-R42 -> 19435.55178 | X42: =F42+H42+M42+R42 -> 1.263
B43: Nuclear | C43: 0 | D43: 0 | E43: 0 | F43: 0 | G43: 1063.94 | H43: 0 | I43: 0 | J43: 1003.41 | K43: 455.29 | L43: 3032.81 | M43: 0 | N43: 2017.13 | O43: 0 | P43: 0 | Q43: 0 | R43: 0 | S43: 0 | T43: 0 | U43: 0 | V43: =SUM(C43:U43) -> 7572.58 | W43: 7572.58 | X43: =F43+H43+M43+R43 -> 0
B44: Carbón | C44: 1989.4 | D44: 1198.12 | E44: 2364.59 | F44: 468.4 | G44: 0 | H44: 0 | I44: 0 | J44: 502.64 | K44: 2595.23 | L44: 0 | M44: 0 | N44: 0 | O44: 1960.39 | P44: 0 | Q44: 0 | R44: 0 | S44: 0 | T44: 0 | U44: 0 | V44: 11078.77 | W44: 10610.37 | X44: 468.4
B45: Fuel / gas | C45: 0 | D45: 0 | E45: 0 | F45: 787.4 | G45: 0 | H45: 1536 | I45: 0 | J45: 0 | K45: 0 | L45: 505.52 | M45: 90.82 | N45: 0 | O45: 0 | P45: 0 | Q45: 0 | R45: 76.14 | S45: 0 | T45: 0 | U45: 0 | V45: 2995.88 | W45: 505.52 | X45: 2490.36
B46: Ciclo combinado | C46: 5951.72 | D46: 1869.68 | E46: 854.17 | F46: 857.95 | G46: 2853.54 | H46: 864.2 | I46: 0 | J46: 758.74 | K46: 0 | L46: 4174.08 | M46: 0 | N46: 0 | O46: 1246.98 | P46: 784.7 | Q46: 0 | R46: 0 | S46: 3263.71 | T46: 1222.32 | U46: 1968.07 | V46: 26669.86 | W46: 24947.71 | X46: 1722.15
B47: Hidroeólica | C47: 0 | D47: 0 | E47: 0 | F47: 0 | G47: 0 | H47: 0 | I47: 0 | J47: 0 | K47: 0 | L47: 0 | M47: 0 | N47: 0 | O47: 0 | P47: 0 | Q47: 0 | R47: 0 | S47: 0 | T47: 0 | U47: 0 | V47: 0 | W47: 0 | X47: 0
B48: Eólica | C48: 3324.497 | D48: 1797.05 | E48: 494.03 | F48: 3.6763 | G48: 1193.2446 | H48: 152.59 | I48: 35.307 | J48: 3799.9992 | K48: 5652.1845 | L48: 1283.51 | N48: 0 | O48: 3351.197 | P48: 448.18 | Q48: 0 | R48: 0 | S48: 263.286 | T48: 1016.63875 | U48: 193.85 | V48: 23009.24035 | W48: 22852.97405 | X48: 156.2663
B49: Solar fotovoltaica | C49: 864.96854 | D49: 167.04606 | E49: 0.77793 | F49: 77.67493 | G49: 346.32708 | H49: 164.19108 | I49: 2.04606 | J49: 919.32851 | K49: 489.75649 | L49: 260.05445 | N49: 553.73834 | O49: 15.99383 | P49: 85.4707 | Q49: 65.18803 | R49: 0.0579 | S49: 439.12198 | T49: 161.11356 | U49: 25.56861 | V49: 4638.42408 | W49: 4396.50017 | X49: 241.92391
B50: Solar térmica | C50: 997.2275 | D50: 0 | E50: 0 | F50: 0 | G50: 49.9 | H50: 0 | I50: 0 | J50: 349.4 | K50: 0 | L50: 22.5 | N50: 849 | O50: 0 | P50: 0 | Q50: 0 | R50: 0 | S50: 31.4 | T50: 0 | U50: 0 | V50: 2299.4275 | W50: 2299.4275 | X50: 0
B51: Otras renovables | C51: 290.903 | D51: 86.866 | E51: 86.569 | F51: 2.13 | G51: 26.089 | H51: 3.368 | I51: 12.862 | J51: 58.009 | K51: 27.52141 | L51: 74.775 | N51: 17.1 | O51: 65.939 | P51: 4.353 | Q51: 42.545 | R51: 0 | S51: 21.094 | T51: 46.362 | U51: 83.455 | V51: 949.94041 | W51: 944.44241 | X51: 5.498
B52: Cogeneración | C52: 931.648 | D52: 601.766 | E52: 156.069 | F52: 85.625 | G52: 650.6015 | H52: 33.268 | I52: 311.563 | J52: 458.467 | K52: 635.1665 | L52: 1319.5709 | N52: 19.4 | O52: 598.708 | P52: 46.316 | Q52: 326.5779 | R52: 2.168 | S52: 315.386 | T52: 172.7315 | U52: 513.9094 | V52: 7178.9417 | W52: 7057.8807 | X52: 121.061
B53: Residuos | C53: 0 | D53: 0 | E53: 0 | F53: 0 | G53: 0 | H53: 0 | I53: 0 | J53: 0 | K53: 0 | L53: 0 | M53: 0 | N53: 0 | O53: 0 | P53: 0 | Q53: 0 | R53: 0 | S53: 0 | T53: 0 | U53: 0 | V53: 0
B54: =CONCATENATE("Potencia ",B39) -> Potencia 2013 | C54: =SUM(C42:C52) -> 15533.80504 | D54: =SUM(D42:D52) -> 7268.68506 | E54: 4760.57593 | F54: 2282.85623 | G54: 7457.40118 | H54: 2754.88008 | I54: 820.70206 | J54: 8716.25171 | K54: 14250.1034 | L54: 13023.0986 | M54: 90.82 | N54: 5734.14334 | O54: 10905.78503 | P54: 1424.57043 | Q54: 538.06193 | R54: 78.3659 | S54: 4369.62598 | T54: 2862.40081 | U54: 2957.74611 | V54: =SUM(V42:V52) -> 105829.8788 | W54: =V54-F54-H54-M54-R54 -> 100622.9566 | X54: 5206.92221
B55: % Potencia s/total | C55: =C54/$V54 -> 0.1467809017 | D55: =D54/$V54 -> 0.06868273063 | E55: 0.04498328811 | F55: 0.02157099919 | G55: 0.07046593328 | H55: 0.02603121265 | I55: 0.007754918263 | J55: 0.08236097222 | K55: 0.1346510415 | L55: 0.1230569169 | M55: 0.0008581697439 | N55: 0.05418265053 | O55: 0.1030501514 | P55: 0.01346094738 | Q55: 0.005084215687 | R55: 0.0007404893672 | S55: 0.04128915226 | T55: 0.02704718972 | U55: 0.0279481196 | V55: 1 | W55: =W54/$V54 -> 0.9507991291 | X55: =X54/$V54 -> 0.04920087095
B56: =CONCATENATE("Δ",B39,"/",B39-1) -> Δ2013/2012 | C56: =(C54/C35-1) -> 0.007346437485 | D56: 0.001340744382 | E56: 0.00995984213 | F56: 0.02155505032 | G56: 0.00670528195 | H56: -0.05082673696 | I56: -0.002509459668 | J56: 0.001366993056 | K56: 0.004394136074 | L56: 0.002207571137 | M56: 0 | N56: 0.04955650766 | O56: 0.006224251688 | P56: 0.000273841707 | Q56: -0.000704812035 | R56: 0 | S56: -0.002870313476 | T56: 0.01700679033 | U56: -0.002577435695 | V56: 0.005577681923 | W56: 0.006867974062 | X56: -0.01872325485
B58: 2014
B59: CCAA | C59: Andalucía | D59: Aragón | E59: Asturias | F59: Baleares | G59: C. Valenciana | H59: Canarias | I59: Cantabria | J59: Castilla-La Mancha | K59: Castilla y León | L59: Cataluña | M59: Ceuta | N59: Extremadura | O59: Galicia | P59: La Rioja | Q59: Madrid | R59: Melilla | S59: Murcia | T59: Navarra | U59: País Vasco | V59: España | W59: PENINSULAR | X59: NO PENINSULAR
B61: Hidráulica | C61: 1183.441 | D61: 1548.157 | E61: 804.37 | G61: 1273.759 | H61: 1.263 | I61: 458.924 | J61: 866.258 | K61: 4394.9545 | L61: 2350.27825 | N61: 2277.775 | O61: 3667.1972 | P61: 55.55073 | Q61: 109.361 | S61: 35.628 | T61: 243.235 | U61: 172.8931 | V61: =SUM(C61:U61) -> 19443.04478 | W61: =V61-F61-H61-M61-R61 -> 19441.78178 | X61: =F61+H61+M61+R61 -> 1.263
B62: Nuclear | C62: 0 | D62: 0 | E62: 0 | F62: 0 | G62: 1063.94 | H62: 0 | I62: 0 | J62: 1003.41 | K62: 455.29 | L62: 3032.81 | M62: 0 | N62: 2017.13 | O62: 0 | P62: 0 | Q62: 0 | R62: 0 | S62: 0 | T62: 0 | U62: 0 | V62: =SUM(C62:U62) -> 7572.58 | W62: 7572.58 | X62: =F62+H62+M62+R62 -> 0
B63: Carbón | C63: 1989.4 | D63: 1055.77 | E63: 2364.59 | F63: 468.4 | G63: 0 | H63: 0 | I63: 0 | J63: 502.64 | K63: 2595.23 | L63: 0 | M63: 0 | N63: 0 | O63: 1960.39 | P63: 0 | Q63: 0 | R63: 0 | S63: 0 | T63: 0 | U63: 0 | V63: 10936.42 | W63: 10468.02 | X63: 468.4
B64: Fuel / gas | C64: 0 | D64: 0 | E64: 0 | F64: 787.4 | G64: 0 | H64: 1535.72 | I64: 0 | J64: 0 | K64: 0 | L64: 505.52 | M64: 90.82 | N64: 0 | O64: 0 | P64: 0 | Q64: 0 | R64: 76.14 | S64: 0 | T64: 0 | U64: 0 | V64: 2995.6 | W64: 505.52 | X64: 2490.08
B65: Ciclo combinado | C65: 5951.72 | D65: 1869.68 | E65: 854.17 | F65: 857.95 | G65: 2853.54 | H65: 864.2 | I65: 0 | J65: 758.74 | K65: 0 | L65: 4174.08 | M65: 0 | N65: 0 | O65: 1246.98 | P65: 784.7 | Q65: 0 | R65: 0 | S65: 3263.71 | T65: 1222.32 | U65: 1968.07 | V65: 26669.86 | W65: 24947.71 | X65: 1722.15
B66: Hidroeólica | C66: 0 | D66: 0 | E66: 0 | F66: 0 | G66: 0 | H66: 11.39 | I66: 0 | J66: 0 | K66: 0 | L66: 0 | M66: 0 | N66: 0 | O66: 0 | P66: 0 | Q66: 0 | R66: 0 | S66: 0 | T66: 0 | U66: 0 | V66: 11.39 | W66: 0 | X66: 11.39
B67: Eólica | C67: 3324.5075 | D67: 1815.51 | E67: 494.03 | F67: 3.6763 | G67: 1193.2446 | H67: 152.59 | I67: 35.307 | J67: 3799.9992 | K67: 5652.1845 | L67: 1283.51 | M67: 0 | N67: 0 | O67: 3351.197 | P67: 448.18 | Q67: 0 | R67: 0 | S67: 263.286 | T67: 1016.63875 | U67: 193.85 | V67: =SUM(C67:U67) -> 23027.71085 | W67: 22871.44455 | X67: 156.2663
B68: Solar fotovoltaica | C68: 865.78927 | D68: 167.24526 | E68: 0.77793 | F68: 77.73383 | G68: 346.47007 | H68: 165.24328 | I68: 2.04726 | J68: 919.39996 | K68: 492.75971 | L68: 260.9468 | M68: 0 | N68: 553.73834 | O68: 16.19383 | P68: 85.4707 | Q68: 66.00003 | R68: 0.0579 | S68: 439.12328 | T68: 161.11356 | U68: 25.58861 | V68: 4645.69962 | W68: 4402.66461 | X68: 243.03501
B69: Solar térmica | C69: 997.2275 | D69: 0 | E69: 0 | F69: 0 | G69: 49.9 | H69: 0 | I69: 0 | J69: 349.4 | K69: 0 | L69: 22.5 | M69: 0 | N69: 849 | O69: 0 | P69: 0 | Q69: 0 | R69: 0 | S69: 31.4 | T69: 0 | U69: 0 | V69: 2299.4275 | W69: 2299.4275 | X69: 0
B70: Otras renovables | C70: 290.903 | D70: 86.866 | E70: 86.569 | F70: 2.13 | G70: 26.089 | H70: 3.368 | I70: 12.862 | J70: 58.009 | K70: 44.54541 | L70: 75.274 | M70: 0 | N70: 37.1 | O70: 65.939 | P70: 4.353 | Q70: 42.545 | R70: 0 | S70: 21.094 | T70: 46.362 | U70: 83.455 | V70: 987.46341 | W70: 981.96541 | X70: 5.498
B71: Cogeneración | C71: 931.6645 | D71: 598.829 | E71: 156.069 | F71: 85.625 | G71: 650.6015 | H71: 33.268 | I71: 311.563 | J71: 451.437 | K71: 637.2745 | L71: 1319.5709 | M71: 0 | N71: 19.4 | O71: 598.708 | P71: 46.316 | Q71: 326.5779 | R71: 2.168 | S71: 332.586 | T71: 172.7315 | U71: 494.4734 | V71: 7168.8632 | W71: 2452.8193 | X71: 121.061
B72: Residuos | C72: 0 | D72: 0 | E72: 0 | F72: 0 | G72: 0 | H72: 0 | I72: 0 | J72: 0 | K72: 0 | L72: 0 | M72: 0 | N72: 0 | O72: 0 | P72: 0 | Q72: 0 | R72: 0 | S72: 0 | T72: 0 | U72: 0 | V72: =SUM(C72:U72) -> 0 | W72: 0 | X72: 0
B73: =CONCATENATE("Potencia ",B58) -> Potencia 2014 | C73: =SUM(C61:C72) -> 15534.65277 | D73: 7142.05726 | E73: 4760.57593 | F73: 2282.91513 | G73: 7457.54417 | H73: 2767.04228 | I73: 820.70326 | J73: 8709.29316 | K73: 14272.23862 | L73: 13024.48995 | M73: 90.82 | N73: 5754.14334 | O73: 10906.60503 | P73: 1424.57043 | Q73: 544.48393 | R73: 78.3659 | S73: 4386.82728 | T73: 2862.40081 | U73: 2938.33011 | V73: =SUM(V61:V71) -> 105758.0594 | W73: =V73-F73-H73-M73-R73 -> 100538.9161 | X73: 5219.14331
B74: % Potencia s/total | C74: =C73/$V73 -> 0.1468885952 | D74: =D73/$V73 -> 0.06753203778 | E74: 0.04501383591 | F74: 0.02158620481 | G74: 0.07051513819 | H74: 0.02616389046 | I74: 0.007760195913 | J74: 0.08235110603 | K74: 0.1349517825 | L74: 0.1231536398 | M74: 0.0008587525201 | N74: 0.05440855642 | O74: 0.1031278854 | P74: 0.0134700886 | Q74: 0.005148391842 | R74: 0.0007409922277 | S74: 0.04147983905 | T74: 0.02706555725 | U74: 0.0277835101 | V74: 1 | W74: =W73/$V73 -> 0.95065016 | X74: =X73/$V73 -> 0.04934984002
B75: =CONCATENATE("Δ",B58,"/",B58-1) -> Δ2014/2013 | C75: =(C73/C54-1) -> 5.457323546e-05 | D75: -0.01742100517 | E75: 0 | F75: 2.580101157e-05 | G75: 1.917424e-05 | H75: 0.004414783819 | I75: 1.462162773e-06 | J75: -0.0007983420203 | K75: 0.001553337501 | L75: 0.0001068370933 | M75: 0 | N75: 0.003487879325 | O75: 7.5189452e-05 | P75: 0 | Q75: 0.01193542907 | R75: 0 | S75: 0.003936561179 | T75: 0 | U75: -0.006564457962 | V75: -0.0006786312221 | W75: -0.0008352026499 | X75: 0.00234708711
B77: 2015
B78: CCAA | C78: Andalucía | D78: Aragón | E78: Asturias | F78: Baleares | G78: C. Valenciana | H78: Canarias | I78: Cantabria | J78: Castilla-La Mancha | K78: Castilla y León | L78: Cataluña | M78: Ceuta | N78: Extremadura | O78: Galicia | P78: La Rioja | Q78: Madrid | R78: Melilla | S78: Murcia | T78: Navarra | U78: País Vasco | V78: España | W78: PENINSULAR | X78: NO PENINSULAR
B80: Hidráulica | C80: 1181.666 | D80: 1548.157 | E80: 804.37 | G80: 2151.709 | H80: 1.263 | I80: 458.924 | J80: 866.258 | K80: 4395.2985 | L80: 2355.64825 | N80: 2277.775 | O80: 3690.3072 | P80: 55.55073 | Q80: 109.361 | S80: 35.684 | T80: 243.235 | U80: 172.5851 | V80: =SUM(C80:U80) -> 20347.79178 | W80: =V80-F80-H80-M80-R80 -> 20346.52878 | X80: =F80+H80+M80+R80 -> 1.263
B81: Nuclear | C81: 0 | D81: 0 | E81: 0 | F81: 0 | G81: 1063.94 | H81: 0 | I81: 0 | J81: 1003.41 | K81: 455.29 | L81: 3032.81 | M81: 0 | N81: 2017.13 | O81: 0 | P81: 0 | Q81: 0 | R81: 0 | S81: 0 | T81: 0 | U81: 0 | V81: =SUM(C81:U81) -> 7572.58 | W81: 7572.58 | X81: =F81+H81+M81+R81 -> 0
B82: Carbón | C82: 1989.4 | D82: 1055.77 | E82: 2364.59 | F82: 468.4 | G82: 0 | H82: 0 | I82: 0 | J82: 502.64 | K82: 2595.23 | L82: 0 | M82: 0 | N82: 0 | O82: 1960.39 | P82: 0 | Q82: 0 | R82: 0 | S82: 0 | T82: 0 | U82: 0 | V82: 10936.42 | W82: 10468.02 | X82: 468.4
B83: Fuel / gas | C83: 0 | D83: 0 | E83: 0 | F83: 787.4 | G83: 0 | H83: 1535.7 | I83: 0 | J83: 0 | K83: 0 | L83: 0 | M83: 90.82 | N83: 0 | O83: 0 | P83: 0 | Q83: 0 | R83: 76.14 | S83: 0 | T83: 0 | U83: 0 | V83: 2490.06 | W83: 0 | X83: 2490.06
B84: Ciclo combinado | C84: 5951.72 | D84: 1869.68 | E84: 854.17 | F84: 857.95 | G84: 2853.54 | H84: 864.2 | I84: 0 | J84: 758.74 | K84: 0 | L84: 4174.08 | M84: 0 | N84: 0 | O84: 1246.98 | P84: 784.7 | Q84: 0 | R84: 0 | S84: 3263.71 | T84: 1222.32 | U84: 1968.07 | V84: 26669.86 | W84: 24947.71 | X84: 1722.15
B85: Hidroeólica | C85: 0 | D85: 0 | E85: 0 | F85: 0 | G85: 0 | H85: 11.39 | I85: 0 | J85: 0 | K85: 0 | L85: 0 | M85: 0 | N85: 0 | O85: 0 | P85: 0 | Q85: 0 | R85: 0 | S85: 0 | T85: 0 | U85: 0 | V85: 11.39 | W85: 0 | X85: 11.39
B86: Eólica | C86: 3326.3075 | D86: 1815.51 | E86: 494.03 | F86: 3.6763 | G86: 1193.2446 | H86: 152.59 | I86: 35.307 | J86: 3799.9992 | K86: 5652.1845 | L86: 1283.51 | M86: 0 | N86: 0 | O86: 3351.197 | P86: 448.18 | Q86: 0 | R86: 0 | S86: 263.286 | T86: 1016.63875 | U86: 193.85 | V86: 23029.51085 | W86: 22873.24455 | X86: 156.2663
B87: Solar fotovoltaica | C87: 867.62022 | D87: 167.4394 | E87: 0.77793 | F87: 77.76978 | G87: 348.95992 | H87: 165.76813 | I87: 2.07051 | J87: 922.74921 | K87: 494.04966 | L87: 263.71115 | M87: 0 | N87: 555.73234 | O87: 16.28873 | P87: 85.7307 | Q87: 66.63218 | R87: 0.057 | S87: 439.39378 | T87: 161.27356 | U87: 25.67779 | V87: 4661.70199 | W87: 4418.10708 | X87: 243.59491
B88: Solar térmica | C88: 997.2275 | D88: 0 | E88: 0 | F88: 0 | G88: 49.9 | H88: 0 | I88: 0 | J88: 349.4 | K88: 0 | L88: 22.5 | M88: 0 | N88: 849 | O88: 0 | P88: 0 | Q88: 0 | R88: 0 | S88: 31.4 | T88: 0 | U88: 0 | V88: 2299.4275 | W88: 2299.4275 | X88: 0
B89: Térmica renovable | C89: 256.333 | D89: 16.216 | E89: 46.239 | F89: 2.13 | G89: 17.719 | H89: 3.368 | I89: 12.862 | J89: 58.709 | K89: 45.80041 | L89: 65.729 | M89: 0 | N89: 37.1 | O89: 50.389 | P89: 4.353 | Q89: 42.545 | R89: 0 | S89: 11.414 | T89: 46.711 | U89: 30.043 | V89: 747.66041 | W89: 742.16241 | X89: 5.498
B90: Cogeneración y resto | C90: 874.8665 | D90: 582.778 | E90: 82.963 | F90: 10.825 | G90: 605.5175 | H90: 33.268 | I90: 301.629 | J90: 455.753 | K90: 641.1075 | L90: 1286.7869 | M90: 0 | N90: 19.4 | O90: 552.548 | P90: 46.316 | Q90: 257.0869 | R90: 0 | S90: 337.63 | T90: 171.8775 | U90: 391.6484 | V90: 6652.0012 | W90: 6607.9082 | X90: 44.093
B91: Residuos | C91: 95.868 | D91: 80.884 | E91: 113.718 | F91: 74.8 | G91: 62.52 | H91: 0 | I91: 9.934 | J91: 0 | K91: 0 | L91: 56.114 | M91: 0 | N91: 0 | O91: 65.68 | P91: 0 | Q91: 29.8 | R91: 2.168 | S91: 9.68 | T91: 0 | U91: 153.208 | V91: 754.374 | W91: 677.406 | X91: 76.968
B92: =CONCATENATE("Potencia ",B77) -> Potencia 2015 | C92: =SUM(C80:C91) -> 15541.00872 | D92: 7136.4344 | E92: 4760.85793 | F92: 2282.95108 | G92: 8347.05002 | H92: 2767.54713 | I92: 820.72651 | J92: 8717.65841 | K92: 14278.96057 | L92: 12540.8893 | M92: 90.82 | N92: 5756.13734 | O92: 10933.77993 | P92: 1424.83043 | Q92: 505.42508 | R92: 78.365 | S92: 4392.19778 | T92: 2862.05581 | U92: 2935.08229 | V92: 106172.7777 | W92: =V92-F92-H92-M92-R92 -> 100953.0945 | X92: 5219.68321
B93: % Potencia s/total | C93: =C92/$V92 -> 0.1463747022 | D93: =D92/$V92 -> 0.06721529334 | E93: 0.04484066473 | F93: 0.02150222617 | G93: 0.07861760989 | H93: 0.02606644744 | I93: 0.007730103022 | J93: 0.08210822582 | K93: 0.1344879627 | L93: 0.118117747 | M93: 0.0008553981721 | N93: 0.05421481347 | O93: 0.1029810104 | P93: 0.01341992232 | Q93: 0.004760401779 | R93: 0.0007380893829 | S93: 0.04136839851 | T93: 0.02695658785 | U93: 0.02764439579 | V93: 1 | W93: =W92/$V92 -> 0.9508378388 | X93: =X92/$V92 -> 0.04916216116
B94: =CONCATENATE("Δ",B77,"/",B77-1) -> Δ2015/2014 | C94: =(C92/C73-1) -> 0.0004091465766 | D94: -0.0007872885634 | E94: 5.923653023e-05 | F94: 1.574740976e-05 | G94: 0.1192759747 | H94: 0.0001824511333 | I94: 2.832936231e-05 | J94: 0.0009604970055 | K94: 0.0004709807746 | L94: -0.03713010274 | M94: 0 | N94: 0.0003465329037 | O94: 0.002491600267 | P94: 0.0001825111588 | Q94: -0.07173554231 | R94: -1.148458705e-05 | S94: 0.001224233291 | T94: -0.000120528194 | U94: -0.001105328496 | V94: 0.003921387859 | W94: 0.004119583603 | X94: 0.000103446096
B96: 2016
B97: CCAA | C97: Andalucía | D97: Aragón | E97: Asturias | F97: Baleares | G97: C. Valenciana | H97: Canarias | I97: Cantabria | J97: Castilla-La Mancha | K97: Castilla y León | L97: Cataluña | M97: Ceuta | N97: Extremadura | O97: Galicia | P97: La Rioja | Q97: Madrid | R97: Melilla | S97: Murcia | T97: Navarra | U97: País Vasco | V97: España | W97: PENINSULAR | X97: NO PENINSULAR
B99: Hidráulica | C99: 1181.666 | D99: 1548.157 | E99: 804.5038 | G99: 2151.709 | H99: 1.263 | I99: 458.924 | J99: 866.258 | K99: 4397.7735 | L99: 2358.73825 | N99: 2277.775 | O99: 3693.0872 | P99: 55.55073 | Q99: 109.361 | S99: 35.684 | T99: 243.235 | U99: 172.5851 | V99: =SUM(C99:U99) -> 20356.27058 | W99: =V99-F99-H99-M99-R99 -> 20355.00758 | X99: =F99+H99+M99+R99 -> 1.263
B100: Nuclear | C100: 0 | D100: 0 | E100: 0 | F100: 0 | G100: 1063.94 | H100: 0 | I100: 0 | J100: 1003.41 | K100: 455.29 | L100: 3032.81 | M100: 0 | N100: 2017.13 | O100: 0 | P100: 0 | Q100: 0 | R100: 0 | S100: 0 | T100: 0 | U100: 0 | V100: =SUM(C100:U100) -> 7572.58 | W100: =V100-F100-H100-M100-R100 -> 7572.58 | X100: =F100+H100+M100+R100 -> 0
B101: Carbón | C101: 1989.4 | D101: 1055.77 | E101: 2073.42 | F101: 468.4 | G101: 0 | H101: 0 | I101: 0 | J101: 0 | K101: 2456.89 | L101: 0 | M101: 0 | N101: 0 | O101: 1960.39 | P101: 0 | Q101: 0 | R101: 0 | S101: 0 | T101: 0 | U101: 0 | V101: 10004.27 | W101: 9535.87 | X101: 468.4
B102: Fuel / gas | C102: 0 | D102: 0 | E102: 0 | F102: 787.4 | G102: 0 | H102: 1535.7 | I102: 0 | J102: 0 | K102: 0 | L102: 0 | M102: 90.82 | N102: 0 | O102: 0 | P102: 0 | Q102: 0 | R102: 76.14 | S102: 0 | T102: 0 | U102: 0 | V102: 2490.06 | W102: -1.847411113e-13 | X102: 2490.06
B103: Ciclo combinado | C103: 5951.72 | D103: 1869.68 | E103: 854.17 | F103: 857.95 | G103: 2853.54 | H103: 864.2 | I103: 0 | J103: 758.74 | K103: 0 | L103: 4174.08 | M103: 0 | N103: 0 | O103: 1246.98 | P103: 784.7 | Q103: 0 | R103: 0 | S103: 3263.71 | T103: 1222.32 | U103: 1968.07 | V103: 26669.86 | W103: 24947.71 | X103: 1722.15
B104: Hidroeólica | C104: 0 | D104: 0 | E104: 0 | F104: 0 | G104: 0 | H104: 11.39 | I104: 0 | J104: 0 | K104: 0 | L104: 0 | M104: 0 | N104: 0 | O104: 0 | P104: 0 | Q104: 0 | R104: 0 | S104: 0 | T104: 0 | U104: 0 | V104: 11.39 | W104: 0 | X104: 11.39
B105: Eólica | C105: 3326.3075 | D105: 1815.51 | E105: 494.03 | F105: 3.6763 | G105: 1193.2446 | H105: 152.59 | I105: 35.307 | J105: 3799.9992 | K105: 5679.1845 | L105: 1283.51 | M105: 0 | N105: 0 | O105: 3360.397 | P105: 448.18 | Q105: 0 | R105: 0 | S105: 263.286 | T105: 1017.33875 | U105: 193.85 | V105: 23066.41085 | W105: 22910.14455 | X105: 156.2663
B106: Solar fotovoltaica | C106: 871.28447 | D106: 167.4932 | E106: 0.78793 | F106: 77.76378 | G106: 349.19503 | H106: 166.55353 | I106: 2.07051 | J106: 923.56651 | K106: 493.94537 | L106: 264.12655 | M106: 0 | N106: 561.23234 | O106: 16.22313 | P106: 85.7307 | Q106: 66.06028 | R106: 0.0579 | S106: 439.48038 | T106: 161.25616 | U106: 25.79199 | V106: 4672.61976 | W106: =V106-F106-H106-M106-R106 -> 4428.24455 | X106: 244.37521
B107: Solar térmica | C107: 997.2275 | D107: 0 | E107: 0 | F107: 0 | G107: 49.9 | H107: 0 | I107: 0 | J107: 349.4 | K107: 0 | L107: 22.5 | M107: 0 | N107: 849 | O107: 0 | P107: 0 | Q107: 0 | R107: 0 | S107: 31.4 | T107: 0 | U107: 0 | V107: 2299.4275 | W107: 2299.4275 | X107: 0
B108: Otras renovables | C108: 256.333 | D108: 16.216 | E108: 46.684 | F108: 2.13 | G108: 18.017 | H108: 3.368 | I108: 12.862 | J108: 58.709 | K108: 45.80041 | L108: 65.729 | M108: 0 | N108: 37.1 | O108: 50.389 | P108: 4.353 | Q108: 42.545 | R108: 0 | S108: 11.414 | T108: 46.711 | U108: 30.043 | V108: 748.40341 | W108: 742.90541 | X108: 5.498
B109: Cogeneración | C109: 874.8665 | D109: 581.713 | E109: 80.5505 | F109: 10.825 | G109: 592.3885 | H109: 33.268 | I109: 301.629 | J109: 431.903 | K109: 634.6625 | L109: 1176.6199 | M109: 0 | N109: 19.4 | O109: 549.043 | P109: 46.316 | Q109: 254.0869 | R109: 0 | S109: 320.026 | T109: 171.8775 | U109: 380.4404 | V109: 6459.6157 | W109: 6415.5227 | X109: 44.093
B110: Residuos | C110: 95.868 | D110: 80.884 | E110: 113.718 | F110: 74.8 | G110: 62.52 | H110: 0 | I110: 9.934 | J110: 0 | K110: 0 | L110: 56.114 | M110: 0 | N110: 0 | O110: 65.68 | P110: 0 | Q110: 29.8 | R110: 2.168 | S110: 9.68 | T110: 0 | U110: 153.208 | V110: =SUM(C110:U110) -> 754.374 | W110: =V110-F110-H110-M110-R110 -> 677.406 | X110: =F110+H110+M110+R110 -> 76.968
B111: =CONCATENATE("Potencia ",B96) -> Potencia 2016 | C111: =SUM(C99:C110) -> 15544.67297 | D111: =SUM(D99:D110) -> 7135.4232 | E111: 4467.86423 | F111: 2282.94508 | G111: 8334.45413 | H111: 2768.33253 | I111: 820.72651 | J111: 8191.98571 | K111: 14163.54628 | L111: 12434.2277 | M111: 90.82 | N111: 5761.63734 | O111: 10942.18933 | P111: 1424.83043 | Q111: 501.85318 | R111: 78.3659 | S111: 4374.68038 | T111: 2862.73841 | U111: 2923.98849 | V111: =SUM(V99:V110) -> 105105.2818 | W111: =V111-F111-H111-M111-R111 -> 99884.81829 | X111: =F111+H111+M111+R111 -> 5220.46351
B112: % Potencia s/total | C112: =C111/$V111 -> 0.1478962113 | D112: =D111/$V111 -> 0.06788834089 | E112: =E111/$V111 -> 0.04250846535 | F112: 0.02172055525 | G112: 0.07929624456 | H112: 0.02633866236 | I112: 0.007808613382 | J112: 0.07794076158 | K112: 0.1347557995 | L112: 0.1183025961 | M112: 0.0008640859759 | N112: 0.05481777168 | O112: 0.1041069406 | P112: 0.01355622102 | Q112: 0.004774766514 | R112: 0.0007455943094 | S112: 0.04162188907 | T112: 0.02723686537 | U112: 0.02781961515 | V112: =V111/$V111 -> 1 | W112: =W111/$V111 -> 0.9503311021 | X112: =X111/$V111 -> 0.0496688979
B113: =CONCATENATE("Δ",B96,"/",B96-1) -> Δ2016/2015 | C113: =(C111/C92-1) -> 0.0002357794186 | D113: =(D111/D92-1) -> -0.0001416954102 | E113: -0.06154220611 | F113: -2.62817721e-06 | G113: -0.001509022945 | H113: 0.0002837892051 | I113: 0 | J113: -0.06029975887 | K113: -0.008082821536 | L113: -0.008505106572 | M113: 0 | N113: 0.0009555018713 | O113: 0.0007691210225 | P113: 0 | Q113: -0.007067120611 | R113: 1.148471894e-05 | S113: -0.003988299452 | T113: 0.0002384998914 | U113: -0.003779723668 | V113: -0.01005432798 | W113: -0.01058190673 | X113: 0.0001494918309

Sheet demandas (hidden)
C2: Andalucía | D2: Aragón | E2: Asturias | F2: Baleares | G2: C. Valenciana | H2: Canarias | I2: Cantabria | J2: Castilla-La Mancha | K2: Castilla y León | L2: Cataluña | M2: Ceuta | N2: Extremadura | O2: Galicia | P2: La Rioja | Q2: Madrid | R2: Melilla | S2: Murcia | T2: Navarra | U2: País Vasco | V2: España | W2: PENINSULAR | X2: NO PENINSULAR | Z2: Resto nacional
A3: 2011 | B3: demanda | C3: =generacion_bruta!C22 -> 39973.70484 | D3: =generacion_bruta!D22 -> 10403.13263 | E3: =generacion_bruta!E22 -> 10959.47987 | F3: =generacion_bruta!F22 -> 5743.288538 | G3: =generacion_bruta!G22 -> 27225.94153 | H3: =generacion_bruta!H22 -> 8870.235434 | I3: =generacion_bruta!I22 -> 4472.546786 | J3: =generacion_bruta!J22 -> 11999.47784 | K3: =generacion_bruta!K22 -> 13540.13899 | L3: =generacion_bruta!L22 -> 48194.5372 | M3: =generacion_bruta!M22 -> 202.977 | N3: =generacion_bruta!N22 -> 4718.139717 | O3: =generacion_bruta!O22 -> 19839.96539 | P3: =generacion_bruta!P22 -> 1747.946023 | Q3: =generacion_bruta!Q22 -> 31554.1792 | R3: =generacion_bruta!R22 -> 214.906587 | S3: =generacion_bruta!S22 -> 8324.598043 | T3: =generacion_bruta!T22 -> 4946.59127 | U3: =generacion_bruta!U22 -> 17697.0194 | V3: =SUM(C3:U3) -> 270628.8063 | W3: =V3-F3-H3-M3-R3 -> 255597.3987 | X3: =F3+H3+M3+R3 -> 15031.40756 | Z3: =V3-D3 -> 260225.6737
A4: 2011 | B4: =CONCATENATE("Δ",A3,"/",A3-1) -> Δ2011/2010 | C4: -0.01401045402 | D4: -0.01650989327 | E4: 0.01613865593 | F4: -0.01660881038 | G4: -0.02319202961 | H4: -0.002754477995 | I4: 0.02412199042 | J4: -0.006966717836 | K4: -0.0337955843 | L4: -0.01711676978 | M4: -0.06691398546 | N4: -0.05466614188 | O4: -0.00792896589 | P4: -0.02318609205 | Q4: -0.0368201156 | R4: 0.007460463768 | S4: -0.0005767530873 | T4: 0.005991774882 | U4: -0.04160944556 | V4: -0.01836833827
A5: 2012 | B5: demanda | C5: =generacion_bruta!C50 -> 39708.86308 | D5: =generacion_bruta!D50 -> 10238.73926 | E5: =generacion_bruta!E50 -> 10339.42312 | F5: =generacion_bruta!F50 -> 5822.60154 | G5: =generacion_bruta!G50 -> 26476.47617 | H5: =generacion_bruta!H50 -> 8892.540459 | I5: =generacion_bruta!I50 -> 4399.511026 | J5: =generacion_bruta!J50 -> 12020.22903 | K5: =generacion_bruta!K50 -> 13729.50741 | L5: =generacion_bruta!L50 -> 47751.0666 | M5: =generacion_bruta!M50 -> 212.075 | N5: =generacion_bruta!N50 -> 4889.572184 | O5: =generacion_bruta!O50 -> 19650.68846 | P5: =generacion_bruta!P50 -> 1732.881941 | Q5: =generacion_bruta!Q50 -> 31001.38951 | R5: =generacion_bruta!R50 -> 217.353072 | S5: =generacion_bruta!S50 -> 8607.107441 | T5: =generacion_bruta!T50 -> 4798.828807 | U5: =generacion_bruta!U50 -> 16669.937 | V5: =SUM(C5:U5) -> 267158.7911 | W5: =V5-F5-H5-M5-R5 -> 252014.221 | X5: =F5+H5+M5+R5 -> 15144.57007 | Z5: =V5-D5 -> 256920.0518
A6: 2012 | B6: =CONCATENATE("Δ",A5,"/",A5-1) -> Δ2012/2011 | C6: =generacion_bruta!C51 -> -0.00662539953 | D6: =generacion_bruta!D51 -> -0.01580229486 | E6: =generacion_bruta!E51 -> -0.0565772056 | F6: =generacion_bruta!F51 -> 0.01380968438 | G6: =generacion_bruta!G51 -> -0.02752761962 | H6: =generacion_bruta!H51 -> 0.002514592219 | I6: =generacion_bruta!I51 -> -0.01632979214 | J6: =generacion_bruta!J51 -> 0.001729340839 | K6: =generacion_bruta!K51 -> 0.01398570706 | L6: =generacion_bruta!L51 -> -0.009201677843 | M6: =generacion_bruta!M51 -> 0.04482281244 | N6: =generacion_bruta!N51 -> 0.03633475859 | O6: =generacion_bruta!O51 -> -0.00954018424 | P6: =generacion_bruta!P51 -> -0.008618162177 | Q6: =generacion_bruta!Q51 -> -0.01751874719 | R6: =generacion_bruta!R51 -> 0.01138394609 | S6: =generacion_bruta!S51 -> 0.0339367014 | T6: =generacion_bruta!T51 -> -0.02987157311 | U6: =generacion_bruta!U51 -> -0.05803702744 | V6: =generacion_bruta!V51 -> -0.01282204667
A7: 2013 | B7: demanda | C7: =generacion_bruta!C78 -> 38187.73775 | D7: =generacion_bruta!D78 -> 10104.85378 | E7: =generacion_bruta!E78 -> 10414.68943 | F7: =generacion_bruta!F78 -> 5673.537346 | G7: =generacion_bruta!G78 -> 25895.09406 | H7: =generacion_bruta!H78 -> 8623.683298 | I7: =generacion_bruta!I78 -> 4385.465202 | J7: =generacion_bruta!J78 -> 11630.98445 | K7: =generacion_bruta!K78 -> 13681.21204 | L7: =generacion_bruta!L78 -> 46273.06628 | M7: =generacion_bruta!M78 -> 201.959 | N7: =generacion_bruta!N78 -> 4866.329772 | O7: =generacion_bruta!O78 -> 19870.36523 | P7: =generacion_bruta!P78 -> 1704.234748 | Q7: =generacion_bruta!Q78 -> 29707.6145 | R7: =generacion_bruta!R78 -> 209.66712 | S7: =generacion_bruta!S78 -> 8314.669342 | T7: =generacion_bruta!T78 -> 4776.086574 | U7: =generacion_bruta!U78 -> 16556.00696 | V7: =SUM(C7:U7) -> 261077.2569 | W7: =V7-F7-H7-M7-R7 -> 246368.4101 | X7: =F7+H7+M7+R7 -> 14708.84676 | Z7: =V7-D7 -> 250972.4031
A8: 2013 | B8: =CONCATENATE("Δ",A7,"/",A7-1) -> Δ2013/2012 | C8: =generacion_bruta!C79 -> -0.03830694746 | D8: =generacion_bruta!D79 -> -0.01307636451 | E8: =generacion_bruta!E79 -> 0.007279546242 | F8: =generacion_bruta!F79 -> -0.02560096084 | G8: =generacion_bruta!G79 -> -0.02195843994 | H8: =generacion_bruta!H79 -> -0.03023401043 | I8: =generacion_bruta!I79 -> -0.00319258771 | J8: =generacion_bruta!J79 -> -0.0323824595 | K8: =generacion_bruta!K79 -> -0.003517632808 | L8: =generacion_bruta!L79 -> -0.03095219489 | M8: =generacion_bruta!M79 -> -0.04770010609 | N8: =generacion_bruta!N79 -> -0.004753465434 | O8: =generacion_bruta!O79 -> 0.01117908762 | P8: =generacion_bruta!P79 -> -0.01653153182 | Q8: =generacion_bruta!Q79 -> -0.04173280698 | R8: =generacion_bruta!R79 -> -0.0353615982 | S8: =generacion_bruta!S79 -> -0.03397635047 | T8: =generacion_bruta!T79 -> -0.004739121568 | U8: =generacion_bruta!U79 -> -0.006834461226 | V8: =generacion_bruta!V79 -> -0.02276374363
A9: 2014 | B9: demanda | C9: =generacion_bruta!C106 -> 37538.08093 | D9: =generacion_bruta!D106 -> 10089.684 | E9: =generacion_bruta!E106 -> 10312.64725 | F9: =generacion_bruta!F106 -> 5585.426861 | G9: =generacion_bruta!G106 -> 25885.87139 | H9: =generacion_bruta!H106 -> 8579.968659 | I9: =generacion_bruta!I106 -> 4321.61151 | J9: =generacion_bruta!J106 -> 11650.85579 | K9: =generacion_bruta!K106 -> 13556.98558 | L9: =generacion_bruta!L106 -> 45622.19095 | M9: =generacion_bruta!M106 -> 212.253 | N9: =generacion_bruta!N106 -> 4637.777792 | O9: =generacion_bruta!O106 -> 19748.98903 | P9: =generacion_bruta!P106 -> 1690.385009 | Q9: =generacion_bruta!Q106 -> 28447.6183 | R9: =generacion_bruta!R106 -> 209.863147 | S9: =generacion_bruta!S106 -> 8468.668156 | T9: =generacion_bruta!T106 -> 4779.990057 | U9: =generacion_bruta!U106 -> 16792.37089 | V9: =SUM(C9:U9) -> 258131.2383 | W9: =V9-F9-H9-M9-R9 -> 243543.7266 | X9: =F9+H9+M9+R9 -> 14587.51167 | Z9: =V9-D9 -> 248041.5543
A10: 2014 | B10: =CONCATENATE("Δ",A9,"/",A9-1) -> Δ2014/2013 | C10: =generacion_bruta!C107 -> -0.01701218393 | D10: =generacion_bruta!D107 -> -0.001501236677 | E10: =generacion_bruta!E107 -> -0.009797909077 | F10: =generacion_bruta!F107 -> -0.01553007932 | G10: =generacion_bruta!G107 -> -0.0003561548871 | H10: =generacion_bruta!H107 -> -0.005069137802 | I10: =generacion_bruta!I107 -> -0.01456030053 | J10: =generacion_bruta!J107 -> 0.001708483202 | K10: =generacion_bruta!K107 -> -0.009080077265 | L10: =generacion_bruta!L107 -> -0.01406596482 | M10: =generacion_bruta!M107 -> 0.05097074159 | N10: =generacion_bruta!N107 -> -0.04696598693 | O10: =generacion_bruta!O107 -> -0.00610840291 | P10: =generacion_bruta!P107 -> -0.008126661255 | Q10: =generacion_bruta!Q107 -> -0.04241324066 | R10: =generacion_bruta!R107 -> 0.0009349439244 | S10: =generacion_bruta!S107 -> 0.01852133955 | T10: =generacion_bruta!T107 -> 0.000817297245 | U10: =generacion_bruta!U107 -> 0.01427662634 | V10: =generacion_bruta!V107 -> -0.01128408734
A11: 2015 | B11: demanda | C11: =generacion_bruta!C134 -> 38660.47861 | D11: =generacion_bruta!D134 -> 10301.00592 | E11: =generacion_bruta!E134 -> 10467.80608 | F11: =generacion_bruta!F134 -> 5796.417939 | G11: =generacion_bruta!G134 -> 26745.56468 | H11: =generacion_bruta!H134 -> 8669.37689 | I11: =generacion_bruta!I134 -> 4247.892238 | J11: =generacion_bruta!J134 -> 11570.99265 | K11: =generacion_bruta!K134 -> 13864.63565 | L11: =generacion_bruta!L134 -> 46646.98387 | M11: =generacion_bruta!M134 -> 205.438 | N11: =generacion_bruta!N134 -> 4835.611856 | O11: =generacion_bruta!O134 -> 19718.19707 | P11: =generacion_bruta!P134 -> 1725.117343 | Q11: =generacion_bruta!Q134 -> 28873.94439 | R11: =generacion_bruta!R134 -> 213.485818 | S11: =generacion_bruta!S134 -> 8920.197421 | T11: =generacion_bruta!T134 -> 4843.122513 | U11: =generacion_bruta!U134 -> 16976.66416 | V11: =SUM(C11:U11) -> 263282.9331 | W11: =V11-F11-H11-M11-R11 -> 248398.2145 | X11: =F11+H11+M11+R11 -> 14884.71865 | Z11: =V11-D11 -> 252981.9272
A12: 2015 | B12: =CONCATENATE("Δ",A11,"/",A11-1) -> Δ2015/2014 | C12: =generacion_bruta!C135 -> 0.02990024135 | D12: =generacion_bruta!D135 -> 0.0209443546 | E12: =generacion_bruta!E135 -> 0.01504548953 | F12: =generacion_bruta!F135 -> 0.03777528258 | G12: =generacion_bruta!G135 -> 0.03321090799 | H12: =generacion_bruta!H135 -> 0.01042057781 | I12: =generacion_bruta!I135 -> -0.01705828299 | J12: =generacion_bruta!J135 -> -0.006854701559 | K12: =generacion_bruta!K135 -> 0.02269310326 | L12: =generacion_bruta!L135 -> 0.02246259759 | M12: =generacion_bruta!M135 -> -0.03210790896 | N12: =generacion_bruta!N135 -> 0.04265708123 | O12: =generacion_bruta!O135 -> -0.001559166633 | P12: =generacion_bruta!P135 -> 0.02054699581 | Q12: =generacion_bruta!Q135 -> 0.01498635433 | R12: =generacion_bruta!R135 -> 0.01726206364 | S12: =generacion_bruta!S135 -> 0.053317624 | T12: =generacion_bruta!T135 -> 0.01320765424 | U12: =generacion_bruta!U135 -> 0.01097482162 | V12: =generacion_bruta!V135 -> 0.0199580447
A13: 2016 | B13: demanda | C13: =generacion_bruta!C162 -> 39606.13782 | D13: =generacion_bruta!D162 -> 10437.90516 | E13: =generacion_bruta!E162 -> 10508.5981 | F13: =generacion_bruta!F162 -> 5832.243884 | G13: =generacion_bruta!G162 -> 26852.69428 | H13: =generacion_bruta!H162 -> 8776.831921 | I13: =generacion_bruta!I162 -> 4204.47169 | J13: =generacion_bruta!J162 -> 11711.10045 | K13: =generacion_bruta!K162 -> 14026.16729 | L13: =generacion_bruta!L162 -> 46910.91129 | M13: =generacion_bruta!M162 -> 210.736 | N13: =generacion_bruta!N162 -> 4968.626308 | O13: =generacion_bruta!O162 -> 19961.37982 | P13: =generacion_bruta!P162 -> 1732.053863 | Q13: =generacion_bruta!Q162 -> 28968.7365 | R13: =generacion_bruta!R162 -> 208.348187 | S13: =generacion_bruta!S162 -> 9053.1127 | T13: =generacion_bruta!T162 -> 4948.564616 | U13: =generacion_bruta!U162 -> 16208.42851 | V13: =generacion_bruta!V162 -> 265127.1484 | W13: =V13-F13-H13-M13-R13 -> 250098.9884 | X13: =F13+H13+M13+R13 -> 15028.15999 | Z13: =V13-D13 -> 254689.2432
A14: 2016 | B14: =CONCATENATE("Δ",A13,"/",A13-1) -> Δ2016/2015 | C14: =generacion_bruta!C163 -> 0.02446061844 | D14: =generacion_bruta!D163 -> 0.01328989048 | E14: =generacion_bruta!E163 -> 0.003896902438 | F14: =generacion_bruta!F163 -> 0.006180704252 | G14: =generacion_bruta!G163 -> 0.004005508696 | H14: =generacion_bruta!H163 -> 0.01239478135 | I14: =generacion_bruta!I163 -> -0.01022166885 | J14: =generacion_bruta!J163 -> 0.01210853761 | K14: =generacion_bruta!K163 -> 0.01165062269 | L14: =generacion_bruta!L163 -> 0.005657973843 | M14: =generacion_bruta!M163 -> 0.02578880246 | N14: =generacion_bruta!N163 -> 0.02750726417 | O14: =generacion_bruta!O163 -> 0.01233290992 | P14: =generacion_bruta!P163 -> 0.00402089758 | Q14: =generacion_bruta!Q163 -> 0.003282963623 | R14: =generacion_bruta!R163 -> -0.02406544401 | S14: =generacion_bruta!S163 -> 0.01490048625 | T14: =generacion_bruta!T163 -> 0.02177151267 | U14: =generacion_bruta!U163 -> -0.04525245045 | V14: =generacion_bruta!V163 -> 0.00700430732

Sheet datos_genanual (hidden)
B1: CCAA | C1: Andalucía | D1: Aragón | E1: Asturias | F1: Baleares | G1: C. Valenciana | H1: Canarias | I1: Cantabria | J1: Castilla-La Mancha | K1: Castilla y León | L1: Cataluña | M1: Ceuta | N1: Extremadura | O1: Galicia | P1: La Rioja | Q1: Madrid | R1: Melilla | S1: Murcia | T1: Navarra | U1: País Vasco | V1: España
A2: 2011 | B2: Hidráulica | C2: =generacion_bruta!C6 -> 1410.802301 | D2: =generacion_bruta!D6 -> 2756.013441 | E2: =generacion_bruta!E6 -> 1283.31285 | F2: =generacion_bruta!F6 -> 0 | G2: =generacion_bruta!G6 -> 1313.849514 | H2: =generacion_bruta!H6 -> 1.675408 | I2: =generacion_bruta!I6 -> 628.5001387 | J2: =generacion_bruta!J6 -> 991.7118138 | K2: =generacion_bruta!K6 -> 9030.928262 | L2: =generacion_bruta!L6 -> 3936.325731 | M2: =generacion_bruta!M6 -> 0 | N2: =generacion_bruta!N6 -> 3516.54536 | O2: =generacion_bruta!O6 -> 6430.280244 | P2: =generacion_bruta!P6 -> 138.4303762 | Q2: =generacion_bruta!Q6 -> 244.5265792 | R2: =generacion_bruta!R6 -> 0 | S2: =generacion_bruta!S6 -> 110.8419762 | T2: =generacion_bruta!T6 -> 426.0136072 | U2: =generacion_bruta!U6 -> 302.1399822 | V2: =generacion_bruta!V6 -> 44954.22052
B3: Nuclear | C3: =generacion_bruta!C7 -> 0 | D3: =generacion_bruta!D7 -> 0 | E3: =generacion_bruta!E7 -> 0 | F3: =generacion_bruta!F7 -> 0 | G3: =generacion_bruta!G7 -> 7588.829 | H3: =generacion_bruta!H7 -> 0 | I3: =generacion_bruta!I7 -> 0 | J3: =generacion_bruta!J7 -> 7834.508 | K3: =generacion_bruta!K7 -> 3576.987 | L3: =generacion_bruta!L7 -> 20854.211 | M3: =generacion_bruta!M7 -> 0 | N3: =generacion_bruta!N7 -> 15249.396 | O3: =generacion_bruta!O7 -> 0 | P3: =generacion_bruta!P7 -> 0 | Q3: =generacion_bruta!Q7 -> 0 | R3: =generacion_bruta!R7 -> 0 | S3: =generacion_bruta!S7 -> 0 | T3: =generacion_bruta!T7 -> 0 | U3: =generacion_bruta!U7 -> 0 | V3: =generacion_bruta!V7 -> 55103.931
B4: Carbón | C4: =generacion_bruta!C8 -> 8190.58 | D4: =generacion_bruta!D8 -> 6135.081 | E4: =generacion_bruta!E8 -> 7237.303 | F4: =generacion_bruta!F8 -> 2764.867 | G4: =generacion_bruta!G8 -> 0 | H4: =generacion_bruta!H8 -> 0 | I4: =generacion_bruta!I8 -> 0 | J4: =generacion_bruta!J8 -> 1458.417 | K4: =generacion_bruta!K8 -> 9029.328 | L4: =generacion_bruta!L8 -> 11.689 | M4: =generacion_bruta!M8 -> 0 | N4: =generacion_bruta!N8 -> 0 | O4: =generacion_bruta!O8 -> 8099.336 | P4: =generacion_bruta!P8 -> 0 | Q4: =generacion_bruta!Q8 -> 0 | R4: =generacion_bruta!R8 -> 0 | S4: =generacion_bruta!S8 -> 0 | T4: =generacion_bruta!T8 -> 0 | U4: =generacion_bruta!U8 -> 340.093 | V4: =generacion_bruta!V8 -> 43266.694
B5: Fuel / gas | C5: =generacion_bruta!C9 -> 0 | D5: =generacion_bruta!D9 -> 0 | E5: =generacion_bruta!E9 -> 0 | F5: =generacion_bruta!F9 -> 1283.414 | G5: =generacion_bruta!G9 -> 0 | H5: =generacion_bruta!H9 -> 5330.241485 | I5: =generacion_bruta!I9 -> 0 | J5: =generacion_bruta!J9 -> 0 | K5: =generacion_bruta!K9 -> 0 | L5: =generacion_bruta!L9 -> 0 | M5: =generacion_bruta!M9 -> 202.977 | N5: =generacion_bruta!N9 -> 0 | O5: =generacion_bruta!O9 -> 0 | P5: =generacion_bruta!P9 -> 0 | Q5: =generacion_bruta!Q9 -> 0 | R5: =generacion_bruta!R9 -> 207.799894 | S5: =generacion_bruta!S9 -> 0 | T5: =generacion_bruta!T9 -> 0 | U5: =generacion_bruta!U9 -> 0 | V5: =generacion_bruta!V9 -> 7024.432379
B6: Ciclo combinado | C6: =generacion_bruta!C10 -> 13707.538 | D6: =generacion_bruta!D10 -> 1455.274 | E6: =generacion_bruta!E10 -> 1770.412 | F6: =generacion_bruta!F10 -> 1326.735 | G6: =generacion_bruta!G10 -> 6703.781 | H6: =generacion_bruta!H10 -> 2918.875237 | I6: =generacion_bruta!I10 -> 0 | J6: =generacion_bruta!J10 -> 3267.006 | K6: =generacion_bruta!K10 -> 0 | L6: =generacion_bruta!L10 -> 9288.028 | M6: =generacion_bruta!M10 -> 0 | N6: =generacion_bruta!N10 -> 0 | O6: =generacion_bruta!O10 -> 2236.705 | P6: =generacion_bruta!P10 -> 969.807 | Q6: =generacion_bruta!Q10 -> 0 | R6: =generacion_bruta!R10 -> 0 | S6: =generacion_bruta!S10 -> 5398.342 | T6: =generacion_bruta!T10 -> 1184.17 | U6: =generacion_bruta!U10 -> 3430.594 | V6: =generacion_bruta!V10 -> 53657.26724
B7: Hidroeólica | C7: =generacion_bruta!C12 -> 0 | D7: =generacion_bruta!D12 -> 0 | E7: =generacion_bruta!E12 -> 0 | F7: =generacion_bruta!F12 -> 0 | G7: =generacion_bruta!G12 -> 0 | H7: =generacion_bruta!H12 -> 0 | I7: =generacion_bruta!I12 -> 0 | J7: =generacion_bruta!J12 -> 0 | K7: =generacion_bruta!K12 -> 0 | L7: =generacion_bruta!L12 -> 0 | M7: =generacion_bruta!M12 -> 0 | N7: =generacion_bruta!N12 -> 0 | O7: =generacion_bruta!O12 -> 0 | P7: =generacion_bruta!P12 -> 0 | Q7: =generacion_bruta!Q12 -> 0 | R7: =generacion_bruta!R12 -> 0 | S7: =generacion_bruta!S12 -> 0 | T7: =generacion_bruta!T12 -> 0 | U7: =generacion_bruta!U12 -> 0 | V7: =generacion_bruta!V12 -> 0
B8: Eólica | C8: =generacion_bruta!C13 -> 6220.839045 | D8: =generacion_bruta!D13 -> 3850.018531 | E8: =generacion_bruta!E13 -> 677.451925 | F8: =generacion_bruta!F13 -> 5.828257 | G8: =generacion_bruta!G13 -> 1968.392594 | H8: =generacion_bruta!H13 -> 354.155113 | I8: =generacion_bruta!I13 -> 62.816259 | J8: =generacion_bruta!J13 -> 6827.344728 | K8: =generacion_bruta!K13 -> 8932.136042 | L8: =generacion_bruta!L13 -> 1929.497932 | M8: =generacion_bruta!M13 -> 0 | N8: =generacion_bruta!N13 -> 0 | O8: =generacion_bruta!O13 -> 7432.761868 | P8: =generacion_bruta!P13 -> 936.956756 | Q8: =generacion_bruta!Q13 -> 0 | R8: =generacion_bruta!R13 -> 0 | S8: =generacion_bruta!S13 -> 308.955818 | T8: =generacion_bruta!T13 -> 2606.162161 | U8: =generacion_bruta!U13 -> 352.098922 | V8: =generacion_bruta!V13 -> 42465.41595
B9: Solar fotovoltaica | C9: =generacion_bruta!C14 -> 1403.847436 | D9: =generacion_bruta!D14 -> 267.267879 | E9: =generacion_bruta!E14 -> 0.6527 | F9: =generacion_bruta!F14 -> 101.220757 | G9: =generacion_bruta!G14 -> 443.512721 | H9: =generacion_bruta!H14 -> 232.139978 | I9: =generacion_bruta!I14 -> 2.057955 | J9: =generacion_bruta!J14 -> 1660.969432 | K9: =generacion_bruta!K14 -> 764.075673 | L9: =generacion_bruta!L14 -> 358.767106 | M9: =generacion_bruta!M14 -> 0 | N9: =generacion_bruta!N14 -> 1013.327131 | O9: =generacion_bruta!O14 -> 15.168364 | P9: =generacion_bruta!P14 -> 135.544298 | Q9: =generacion_bruta!Q14 -> 59.462192 | R9: =generacion_bruta!R14 -> 0.071472 | S9: =generacion_bruta!S14 -> 653.359282 | T9: =generacion_bruta!T14 -> 288.557236 | U9: =generacion_bruta!U14 -> 25.11789 | V9: =generacion_bruta!V14 -> 7425.119502
B10: Solar térmica | C10: =generacion_bruta!C15 -> 853.175229 | D10: =generacion_bruta!D15 -> 0 | E10: =generacion_bruta!E15 -> 0 | F10: =generacion_bruta!F15 -> 0 | G10: =generacion_bruta!G15 -> 0 | H10: =generacion_bruta!H15 -> 0 | I10: =generacion_bruta!I15 -> 0 | J10: =generacion_bruta!J15 -> 236.233022 | K10: =generacion_bruta!K15 -> 0 | L10: =generacion_bruta!L15 -> 0 | M10: =generacion_bruta!M15 -> 0 | N10: =generacion_bruta!N15 -> 742.750939 | O10: =generacion_bruta!O15 -> 0 | P10: =generacion_bruta!P15 -> 0 | Q10: =generacion_bruta!Q15 -> 0 | R10: =generacion_bruta!R15 -> 0 | S10: =generacion_bruta!S15 -> 0.198689 | T10: =generacion_bruta!T15 -> 0 | U10: =generacion_bruta!U15 -> 0 | V10: =generacion_bruta!V15 -> 1832.357879
B11: Térmica renovable | C11: =generacion_bruta!C16 -> 1306.369732 | D11: =generacion_bruta!D16 -> 144.323288 | E11: =generacion_bruta!E16 -> 653.32137 | F11: =generacion_bruta!F16 -> 0 | G11: =generacion_bruta!G16 -> 46.790627 | H11: =generacion_bruta!H16 -> 33.148213 | I11: =generacion_bruta!I16 -> 14.08182 | J11: =generacion_bruta!J16 -> 265.414611 | K11: =generacion_bruta!K16 -> 157.26787 | L11: =generacion_bruta!L16 -> 194.758561 | M11: =generacion_bruta!M16 -> 0 | N11: =generacion_bruta!N16 -> 144.721376 | O11: =generacion_bruta!O16 -> 571.000883 | P11: =generacion_bruta!P16 -> 9.241383 | Q11: =generacion_bruta!Q16 -> 311.643361 | R11: =generacion_bruta!R16 -> 0 | S11: =generacion_bruta!S16 -> 22.972127 | T11: =generacion_bruta!T16 -> 276.370736 | U11: =generacion_bruta!U16 -> 166.564071 | V11: =generacion_bruta!V16 -> 4317.990029
B12: Cogeneración y resto | C12: =generacion_bruta!C17 -> 5568.600099 | D12: =generacion_bruta!D17 -> 3334.036493 | E12: =generacion_bruta!E17 -> 704.806026 | F12: =generacion_bruta!F17 -> 260.747524 | G12: =generacion_bruta!G17 -> 2095.323074 | H12: =generacion_bruta!H17 -> 0 | I12: =generacion_bruta!I17 -> 1351.119613 | J12: =generacion_bruta!J17 -> 1769.386232 | K12: =generacion_bruta!K17 -> 3380.518144 | L12: =generacion_bruta!L17 -> 5608.776871 | M12: =generacion_bruta!M17 -> 0 | N12: =generacion_bruta!N17 -> 30.167911 | O12: =generacion_bruta!O17 -> 1895.297029 | P12: =generacion_bruta!P17 -> 173.77921 | Q12: =generacion_bruta!Q17 -> 1134.117065 | R12: =generacion_bruta!R17 -> 7.035221 | S12: =generacion_bruta!S17 -> 1598.858151 | T12: =generacion_bruta!T17 -> 848.98653 | U12: =generacion_bruta!U17 -> 2557.237537 | V12: =generacion_bruta!V17 -> 32318.79273
B13: Residuos
A14: 2012 | B14: Hidráulica | C14: =generacion_bruta!C34 -> 1017.386024 | D14: =generacion_bruta!D34 -> 2525.99888 | E14: =generacion_bruta!E34 -> 1251.210304 | F14: =generacion_bruta!F34 -> 0 | G14: =generacion_bruta!G34 -> 1214.917722 | H14: =generacion_bruta!H34 -> 1.791301 | I14: =generacion_bruta!I34 -> 877.3730514 | J14: =generacion_bruta!J34 -> 793.5197509 | K14: =generacion_bruta!K34 -> 5570.024685 | L14: =generacion_bruta!L34 -> 3601.511409 | M14: =generacion_bruta!M34 -> 0 | N14: =generacion_bruta!N34 -> 1111.64069 | O14: =generacion_bruta!O34 -> 4759.060469 | P14: =generacion_bruta!P34 -> 123.6939669 | Q14: =generacion_bruta!Q34 -> 65.607027 | R14: =generacion_bruta!R34 -> 0 | S14: =generacion_bruta!S34 -> 108.1870743 | T14: =generacion_bruta!T34 -> 470.9745565 | U14: =generacion_bruta!U34 -> 333.2154926 | V14: =generacion_bruta!V34 -> 23826.1124
B15: Nuclear | C15: =generacion_bruta!C35 -> 0 | D15: =generacion_bruta!D35 -> 0 | E15: =generacion_bruta!E35 -> 0 | F15: =generacion_bruta!F35 -> 0 | G15: =generacion_bruta!G35 -> 9015.062 | H15: =generacion_bruta!H35 -> 0 | I15: =generacion_bruta!I35 -> 0 | J15: =generacion_bruta!J35 -> 7948.401 | K15: =generacion_bruta!K35 -> 3703.47 | L15: =generacion_bruta!L35 -> 22950.871 | M15: =generacion_bruta!M35 -> 0 | N15: =generacion_bruta!N35 -> 15049.183 | O15: =generacion_bruta!O35 -> 0 | P15: =generacion_bruta!P35 -> 0 | Q15: =generacion_bruta!Q35 -> 0 | R15: =generacion_bruta!R35 -> 0 | S15: =generacion_bruta!S35 -> 0 | T15: =generacion_bruta!T35 -> 0 | U15: =generacion_bruta!U35 -> 0 | V15: =generacion_bruta!V35 -> 58666.987
B16: Carbón | C16: =generacion_bruta!C36 -> 10920.123 | D16: =generacion_bruta!D36 -> 4836.636 | E16: =generacion_bruta!E36 -> 10061.81 | F16: =generacion_bruta!F36 -> 2682.533 | G16: =generacion_bruta!G36 -> 0 | H16: =generacion_bruta!H36 -> 0 | I16: =generacion_bruta!I36 -> 0 | J16: =generacion_bruta!J36 -> 1741.818 | K16: =generacion_bruta!K36 -> 10341.323 | L16: =generacion_bruta!L36 -> 0 | M16: =generacion_bruta!M36 -> 0 | N16: =generacion_bruta!N36 -> 0 | O16: =generacion_bruta!O36 -> 12248.726 | P16: =generacion_bruta!P36 -> 0 | Q16: =generacion_bruta!Q36 -> 0 | R16: =generacion_bruta!R36 -> 0 | S16: =generacion_bruta!S36 -> 0 | T16: =generacion_bruta!T36 -> 0 | U16: =generacion_bruta!U36 -> 980.45 | V16: =generacion_bruta!V36 -> 53813.419
B17: Fuel / gas | C17: =generacion_bruta!C37 -> 0 | D17: =generacion_bruta!D37 -> 0 | E17: =generacion_bruta!E37 -> 0 | F17: =generacion_bruta!F37 -> 1284.514 | G17: =generacion_bruta!G37 -> 0 | H17: =generacion_bruta!H37 -> 5386.647 | I17: =generacion_bruta!I37 -> 0 | J17: =generacion_bruta!J37 -> 0 | K17: =generacion_bruta!K37 -> 0 | L17: =generacion_bruta!L37 -> 0 | M17: =generacion_bruta!M37 -> 212.075 | N17: =generacion_bruta!N37 -> 0 | O17: =generacion_bruta!O37 -> 0 | P17: =generacion_bruta!P37 -> 0 | Q17: =generacion_bruta!Q37 -> 0 | R17: =generacion_bruta!R37 -> 214.961 | S17: =generacion_bruta!S37 -> 0 | T17: =generacion_bruta!T37 -> 0 | U17: =generacion_bruta!U37 -> 0 | V17: =generacion_bruta!V37 -> 7098.197
B18: Ciclo combinado | C18: =generacion_bruta!C38 -> 9738.885 | D18: =generacion_bruta!D38 -> 940.651 | E18: =generacion_bruta!E38 -> 774.103 | F18: =generacion_bruta!F38 -> 890.56 | G18: =generacion_bruta!G38 -> 4774.388 | H18: =generacion_bruta!H38 -> 2877.771 | I18: =generacion_bruta!I38 -> 0 | J18: =generacion_bruta!J38 -> 2553.928 | K18: =generacion_bruta!K38 -> 0 | L18: =generacion_bruta!L38 -> 8041.259 | M18: =generacion_bruta!M38 -> 0 | N18: =generacion_bruta!N38 -> 0 | O18: =generacion_bruta!O38 -> 1291.607 | P18: =generacion_bruta!P38 -> 1311.082 | Q18: =generacion_bruta!Q38 -> 0 | R18: =generacion_bruta!R38 -> 0 | S18: =generacion_bruta!S38 -> 3097.972 | T18: =generacion_bruta!T38 -> 832.767 | U18: =generacion_bruta!U38 -> 4175.024 | V18: =generacion_bruta!V38 -> 41299.997
B19: Hidroeólica | C19: =generacion_bruta!C40 -> 0 | D19: =generacion_bruta!D40 -> 0 | E19: =generacion_bruta!E40 -> 0 | F19: =generacion_bruta!F40 -> 0 | G19: =generacion_bruta!G40 -> 0 | H19: =generacion_bruta!H40 -> 0 | I19: =generacion_bruta!I40 -> 0 | J19: =generacion_bruta!J40 -> 0 | K19: =generacion_bruta!K40 -> 0 | L19: =generacion_bruta!L40 -> 0 | M19: =generacion_bruta!M40 -> 0 | N19: =generacion_bruta!N40 -> 0 | O19: =generacion_bruta!O40 -> 0 | P19: =generacion_bruta!P40 -> 0 | Q19: =generacion_bruta!Q40 -> 0 | R19: =generacion_bruta!R40 -> 0 | S19: =generacion_bruta!S40 -> 0 | T19: =generacion_bruta!T40 -> 0 | U19: =generacion_bruta!U40 -> 0 | V19: =generacion_bruta!V40 -> 0
B20: Eólica | C20: =generacion_bruta!C41 -> 5736.308595 | D20: =generacion_bruta!D41 -> 4453.409486 | E20: =generacion_bruta!E41 -> 884.396919 | F20: =generacion_bruta!F41 -> 6.504699 | G20: =generacion_bruta!G41 -> 2547.695238 | H20: =generacion_bruta!H41 -> 361.767325 | I20: =generacion_bruta!I41 -> 62.089362 | J20: =generacion_bruta!J41 -> 7948.26959 | K20: =generacion_bruta!K41 -> 11364.71053 | L20: =generacion_bruta!L41 -> 2647.569039 | M20: =generacion_bruta!M41 -> 0 | N20: =generacion_bruta!N41 -> 0 | O20: =generacion_bruta!O41 -> 8068.618604 | P20: =generacion_bruta!P41 -> 1005.869132 | Q20: =generacion_bruta!Q41 -> 0 | R20: =generacion_bruta!R41 -> 0 | S20: =generacion_bruta!S41 -> 403.316864 | T20: =generacion_bruta!T41 -> 2677.948193 | U20: =generacion_bruta!U41 -> 339.864375 | V20: =generacion_bruta!V41 -> 48508.33795
B21: Solar fotovoltaica | C21: =generacion_bruta!C42 -> 1530.531512 | D21: =generacion_bruta!D42 -> 285.432282 | E21: =generacion_bruta!E42 -> 0.733964 | F21: =generacion_bruta!F42 -> 115.593269 | G21: =generacion_bruta!G42 -> 527.544666 | H21: =generacion_bruta!H42 -> 256.513386 | I21: =generacion_bruta!I42 -> 2.136588 | J21: =generacion_bruta!J42 -> 1753.125784 | K21: =generacion_bruta!K42 -> 832.012892 | L21: =generacion_bruta!L42 -> 409.621922 | M21: =generacion_bruta!M42 -> 0 | N21: =generacion_bruta!N42 -> 1110.475662 | O21: =generacion_bruta!O42 -> 17.670515 | P21: =generacion_bruta!P42 -> 140.938202 | Q21: =generacion_bruta!Q42 -> 80.340488 | R21: =generacion_bruta!R42 -> 0.083114 | S21: =generacion_bruta!S42 -> 792.422075 | T21: =generacion_bruta!T42 -> 317.696116 | U21: =generacion_bruta!U42 -> 29.217547 | V21: =generacion_bruta!V42 -> 8202.089984
B22: Solar térmica | C22: =generacion_bruta!C43 -> 1837.631894 | D22: =generacion_bruta!D43 -> 0 | E22: =generacion_bruta!E43 -> 0 | F22: =generacion_bruta!F43 -> 0 | G22: =generacion_bruta!G43 -> 0 | H22: =generacion_bruta!H43 -> 0 | I22: =generacion_bruta!I43 -> 0 | J22: =generacion_bruta!J43 -> 524.685992 | K22: =generacion_bruta!K43 -> 0 | L22: =generacion_bruta!L43 -> 0.568335 | M22: =generacion_bruta!M43 -> 0 | N22: =generacion_bruta!N43 -> 1057.869002 | O22: =generacion_bruta!O43 -> 0 | P22: =generacion_bruta!P43 -> 0 | Q22: =generacion_bruta!Q43 -> 0 | R22: =generacion_bruta!R43 -> 0 | S22: =generacion_bruta!S43 -> 23.378823 | T22: =generacion_bruta!T43 -> 0 | U22: =generacion_bruta!U43 -> 0 | V22: =generacion_bruta!V43 -> 3444.134046
B23: Térmica renovable | C23: =generacion_bruta!C44 -> 1458.279697 | D23: =generacion_bruta!D44 -> 316.07291 | E23: =generacion_bruta!E44 -> 656.225611 | F23: =generacion_bruta!F44 -> 0.56983 | G23: =generacion_bruta!G44 -> 52.936557 | H23: =generacion_bruta!H44 -> 8.050447 | I23: =generacion_bruta!I44 -> 16.857638 | J23: =generacion_bruta!J44 -> 247.085179 | K23: =generacion_bruta!K44 -> 172.332889 | L23: =generacion_bruta!L44 -> 256.148812 | M23: =generacion_bruta!M44 -> 0 | N23: =generacion_bruta!N44 -> 150.31303 | O23: =generacion_bruta!O44 -> 597.385213 | P23: =generacion_bruta!P44 -> 15.679899 | Q23: =generacion_bruta!Q44 -> 298.03054 | R23: =generacion_bruta!R44 -> 0 | S23: =generacion_bruta!S44 -> 28.802132 | T23: =generacion_bruta!T44 -> 290.992634 | U23: =generacion_bruta!U44 -> 189.007369 | V23: =generacion_bruta!V44 -> 4754.770387
B24: Cogeneración y resto | C24: =generacion_bruta!C45 -> 5795.412355 | D24: =generacion_bruta!D45 -> 3260.802705 | E24: =generacion_bruta!E45 -> 724.315327 | F24: =generacion_bruta!F45 -> 272.075742 | G24: =generacion_bruta!G45 -> 2117.863985 | H24: =generacion_bruta!H45 -> 0 | I24: =generacion_bruta!I45 -> 1669.321387 | J24: =generacion_bruta!J45 -> 1356.04973 | K24: =generacion_bruta!K45 -> 3326.20841 | L24: =generacion_bruta!L45 -> 6185.693079 | M24: =generacion_bruta!M45 -> 0 | N24: =generacion_bruta!N45 -> 29.9208 | O24: =generacion_bruta!O45 -> 2257.787662 | P24: =generacion_bruta!P45 -> 167.901741 | Q24: =generacion_bruta!Q45 -> 1226.521454 | R24: =generacion_bruta!R45 -> 2.308958 | S24: =generacion_bruta!S45 -> 1959.679473 | T24: =generacion_bruta!T45 -> 960.600308 | U24: =generacion_bruta!U45 -> 2454.786218 | V24: =generacion_bruta!V45 -> 33767.24933
B25: Residuos
A26: 2013 | B26: Hidráulica | C26: =generacion_bruta!C62 -> 1618.761541 | D26: =generacion_bruta!D62 -> 4564.947185 | E26: =generacion_bruta!E62 -> 2220.269494 | F26: =generacion_bruta!F62 -> 0 | G26: =generacion_bruta!G62 -> 1590.568062 | H26: =generacion_bruta!H62 -> 3.049504 | I26: =generacion_bruta!I62 -> 882.8017005 | J26: =generacion_bruta!J62 -> 1036.161959 | K26: =generacion_bruta!K62 -> 8491.589215 | L26: =generacion_bruta!L62 -> 5651.995676 | M26: =generacion_bruta!M62 -> 0 | N26: =generacion_bruta!N62 -> 2860.291086 | O26: =generacion_bruta!O62 -> 9975.702003 | P26: =generacion_bruta!P62 -> 173.138124 | Q26: =generacion_bruta!Q62 -> 167.9867334 | R26: =generacion_bruta!R62 -> 0 | S26: =generacion_bruta!S62 -> 131.7705803 | T26: =generacion_bruta!T62 -> 770.7881584 | U26: =generacion_bruta!U62 -> 539.5644955 | V26: =generacion_bruta!V62 -> 40679.38552
B27: Nuclear | C27: =generacion_bruta!C63 -> 0 | D27: =generacion_bruta!D63 -> 0 | E27: =generacion_bruta!E63 -> 0 | F27: =generacion_bruta!F63 -> 0 | G27: =generacion_bruta!G63 -> 8004.864 | H27: =generacion_bruta!H63 -> 0 | I27: =generacion_bruta!I63 -> 0 | J27: =generacion_bruta!J63 -> 7484.576 | K27: =generacion_bruta!K63 -> 0 | L27: =generacion_bruta!L63 -> 23719.595 | M27: =generacion_bruta!M63 -> 0 | N27: =generacion_bruta!N63 -> 15097.852 | O27: =generacion_bruta!O63 -> 0 | P27: =generacion_bruta!P63 -> 0 | Q27: =generacion_bruta!Q63 -> 0 | R27: =generacion_bruta!R63 -> 0 | S27: =generacion_bruta!S63 -> 0 | T27: =generacion_bruta!T63 -> 0 | U27: =generacion_bruta!U63 -> 0 | V27: =generacion_bruta!V63 -> 54306.887
B28: Carbón | C28: =generacion_bruta!C64 -> 9277.597 | D28: =generacion_bruta!D64 -> 3435.268 | E28: =generacion_bruta!E64 -> 8564.474 | F28: =generacion_bruta!F64 -> 2350.681 | G28: =generacion_bruta!G64 -> 0 | H28: =generacion_bruta!H64 -> 0 | I28: =generacion_bruta!I64 -> 0 | J28: =generacion_bruta!J64 -> 786.558 | K28: =generacion_bruta!K64 -> 5717.388 | L28: =generacion_bruta!L64 -> 0 | M28: =generacion_bruta!M64 -> 0 | N28: =generacion_bruta!N64 -> 0 | O28: =generacion_bruta!O64 -> 9395.598 | P28: =generacion_bruta!P64 -> 0 | Q28: =generacion_bruta!Q64 -> 0 | R28: =generacion_bruta!R64 -> 0 | S28: =generacion_bruta!S64 -> 0 | T28: =generacion_bruta!T64 -> 0 | U28: =generacion_bruta!U64 -> 0 | V28: =generacion_bruta!V64 -> 39527.564
B29: Fuel / gas | C29: =generacion_bruta!C65 -> 0 | D29: =generacion_bruta!D65 -> 0 | E29: =generacion_bruta!E65 -> 0 | F29: =generacion_bruta!F65 -> 1260.156 | G29: =generacion_bruta!G65 -> 0 | H29: =generacion_bruta!H65 -> 4910.132 | I29: =generacion_bruta!I65 -> 0 | J29: =generacion_bruta!J65 -> 0 | K29: =generacion_bruta!K65 -> 0 | L29: =generacion_bruta!L65 -> 0 | M29: =generacion_bruta!M65 -> 201.959 | N29: =generacion_bruta!N65 -> 0 | O29: =generacion_bruta!O65 -> 0 | P29: =generacion_bruta!P65 -> 0 | Q29: =generacion_bruta!Q65 -> 0 | R29: =generacion_bruta!R65 -> 201.547 | S29: =generacion_bruta!S65 -> 0 | T29: =generacion_bruta!T65 -> 0 | U29: =generacion_bruta!U65 -> 0 | V29: =generacion_bruta!V65 -> 6573.794
B30: Ciclo combinado | C30: =generacion_bruta!C66 -> 5827.214 | D30: =generacion_bruta!D66 -> 89.443 | E30: =generacion_bruta!E66 -> 296.952 | F30: =generacion_bruta!F66 -> 413.575 | G30: =generacion_bruta!G66 -> 3940.293 | H30: =generacion_bruta!H66 -> 3052.68 | I30: =generacion_bruta!I66 -> 0 | J30: =generacion_bruta!J66 -> 1106.768 | K30: =generacion_bruta!K66 -> 0 | L30: =generacion_bruta!L66 -> 5685.038 | M30: =generacion_bruta!M66 -> 0 | N30: =generacion_bruta!N66 -> 0 | O30: =generacion_bruta!O66 -> 1157.169 | P30: =generacion_bruta!P66 -> 395.643 | Q30: =generacion_bruta!Q66 -> 0 | R30: =generacion_bruta!R66 -> 0 | S30: =generacion_bruta!S66 -> 2342.329 | T30: =generacion_bruta!T66 -> 361.286 | U30: =generacion_bruta!U66 -> 3158.445 | V30: =generacion_bruta!V66 -> 27826.835
B31: Hidroeólica | C31: =generacion_bruta!C68 -> 0 | D31: =generacion_bruta!D68 -> 0 | E31: =generacion_bruta!E68 -> 0 | F31: =generacion_bruta!F68 -> 0 | G31: =generacion_bruta!G68 -> 0 | H31: =generacion_bruta!H68 -> 0 | I31: =generacion_bruta!I68 -> 0 | J31: =generacion_bruta!J68 -> 0 | K31: =generacion_bruta!K68 -> 0 | L31: =generacion_bruta!L68 -> 0 | M31: =generacion_bruta!M68 -> 0 | N31: =generacion_bruta!N68 -> 0 | O31: =generacion_bruta!O68 -> 0 | P31: =generacion_bruta!P68 -> 0 | Q31: =generacion_bruta!Q68 -> 0 | R31: =generacion_bruta!R68 -> 0 | S31: =generacion_bruta!S68 -> 0 | T31: =generacion_bruta!T68 -> 0 | U31: =generacion_bruta!U68 -> 0 | V31: =generacion_bruta!V68 -> 0
B32: Eólica | C32: =generacion_bruta!C69 -> 6986.811481 | D32: =generacion_bruta!D69 -> 4869.472296 | E32: =generacion_bruta!E69 -> 1140.547903 | F32: =generacion_bruta!F69 -> 6.159468 | G32: =generacion_bruta!G69 -> 2594.854498 | H32: =generacion_bruta!H69 -> 362.733485 | I32: =generacion_bruta!I69 -> 74.550424 | J32: =generacion_bruta!J69 -> 8657.478624 | K32: =generacion_bruta!K69 -> 12684.69372 | L32: =generacion_bruta!L69 -> 3194.726668 | M32: =generacion_bruta!M69 -> 0 | N32: =generacion_bruta!N69 -> 0 | O32: =generacion_bruta!O69 -> 9497.906024 | P32: =generacion_bruta!P69 -> 1078.385075 | Q32: =generacion_bruta!Q69 -> 0 | R32: =generacion_bruta!R69 -> 0 | S32: =generacion_bruta!S69 -> 543.819978 | T32: =generacion_bruta!T69 -> 2664.752186 | U32: =generacion_bruta!U69 -> 356.35345 | V32: =generacion_bruta!V69 -> 54713.24529
B33: Solar fotovoltaica | C33: =generacion_bruta!C70 -> 1586.395935 | D33: =generacion_bruta!D70 -> 309.123951 | E33: =generacion_bruta!E70 -> 0.738135 | F33: =generacion_bruta!F70 -> 122.097173 | G33: =generacion_bruta!G70 -> 564.348676 | H33: =generacion_bruta!H70 -> 286.70133 | I33: =generacion_bruta!I70 -> 2.067143 | J33: =generacion_bruta!J70 -> 1697.856901 | K33: =generacion_bruta!K70 -> 848.076933 | L33: =generacion_bruta!L70 -> 431.350786 | M33: =generacion_bruta!M70 -> 0 | N33: =generacion_bruta!N70 -> 1110.442841 | O33: =generacion_bruta!O70 -> 20.475405 | P33: =generacion_bruta!P70 -> 130.107387 | Q33: =generacion_bruta!Q70 -> 92.065937 | R33: =generacion_bruta!R70 -> 0.082323 | S33: =generacion_bruta!S70 -> 801.930575 | T33: =generacion_bruta!T70 -> 295.442564 | U33: =generacion_bruta!U70 -> 27.615431 | V33: =generacion_bruta!V70 -> 8326.919426
B34: Solar térmica | C34: =generacion_bruta!C71 -> 1987.787339 | D34: =generacion_bruta!D71 -> 0 | E34: =generacion_bruta!E71 -> 0 | F34: =generacion_bruta!F71 -> 0 | G34: =generacion_bruta!G71 -> 9.833162 | H34: =generacion_bruta!H71 -> 0 | I34: =generacion_bruta!I71 -> 0 | J34: =generacion_bruta!J71 -> 678.244937 | K34: =generacion_bruta!K71 -> 0 | L34: =generacion_bruta!L71 -> 73.81801 | M34: =generacion_bruta!M71 -> 0 | N34: =generacion_bruta!N71 -> 1648.82012 | O34: =generacion_bruta!O71 -> 0 | P34: =generacion_bruta!P71 -> 0 | Q34: =generacion_bruta!Q71 -> 0 | R34: =generacion_bruta!R71 -> 0 | S34: =generacion_bruta!S71 -> 43.023967 | T34: =generacion_bruta!T71 -> 0 | U34: =generacion_bruta!U71 -> 0 | V34: =generacion_bruta!V71 -> 4441.527535
B35: Térmica renovable | C35: =generacion_bruta!C72 -> 1764.006542 | D35: =generacion_bruta!D72 -> 228.211921 | E35: =generacion_bruta!E72 -> 666.235381 | F35: =generacion_bruta!F72 -> 0.74475 | G35: =generacion_bruta!G72 -> 52.924032 | H35: =generacion_bruta!H72 -> 8.386979 | I35: =generacion_bruta!I72 -> 81.926784 | J35: =generacion_bruta!J72 -> 239.06713 | K35: =generacion_bruta!K72 -> 181.366081 | L35: =generacion_bruta!L72 -> 258.64171 | M35: =generacion_bruta!M72 -> 0 | N35: =generacion_bruta!N72 -> 150.034926 | O35: =generacion_bruta!O72 -> 597.001972 | P35: =generacion_bruta!P72 -> 11.889307 | Q35: =generacion_bruta!Q72 -> 286.105782 | R35: =generacion_bruta!R72 -> 0 | S35: =generacion_bruta!S72 -> 57.71906 | T35: =generacion_bruta!T72 -> 303.593267 | U35: =generacion_bruta!U72 -> 186.841747 | V35: =generacion_bruta!V72 -> 5074.697371
B36: Cogeneración y resto | C36: =generacion_bruta!C73 -> 5641.970907 | D36: =generacion_bruta!D73 -> 3287.808423 | E36: =generacion_bruta!E73 -> 756.72252 | F36: =generacion_bruta!F73 -> 251.614955 | G36: =generacion_bruta!G73 -> 2074.898626 | H36: =generacion_bruta!H73 -> 0 | I36: =generacion_bruta!I73 -> 1219.72415 | J36: =generacion_bruta!J73 -> 1145.635895 | K36: =generacion_bruta!K73 -> 2968.320088 | L36: =generacion_bruta!L73 -> 6131.311427 | M36: =generacion_bruta!M73 -> 0 | N36: =generacion_bruta!N73 -> 30.034799 | O36: =generacion_bruta!O73 -> 2441.242827 | P36: =generacion_bruta!P73 -> 149.740855 | Q36: =generacion_bruta!Q73 -> 1086.329052 | R36: =generacion_bruta!R73 -> 8.037797 | S36: =generacion_bruta!S73 -> 1960.369182 | T36: =generacion_bruta!T73 -> 981.567399 | U36: =generacion_bruta!U73 -> 2161.04884 | V36: =generacion_bruta!V73 -> 32296.37774
B37: Residuos
A38: 2014 | B38: Hidráulica | C38: =generacion_bruta!C90 -> 1276.86087 | D38: =generacion_bruta!D90 -> 4366.976734 | E38: =generacion_bruta!E90 -> 1949.968028 | F38: =generacion_bruta!F90 -> 0 | G38: =generacion_bruta!G90 -> 1777.22359 | H38: =generacion_bruta!H90 -> 3.478906 | I38: =generacion_bruta!I90 -> 878.4153042 | J38: =generacion_bruta!J90 -> 1067.303362 | K38: =generacion_bruta!K90 -> 10862.56798 | L38: =generacion_bruta!L90 -> 5515.653706 | M38: =generacion_bruta!M90 -> 0 | N38: =generacion_bruta!N90 -> 3120.871039 | O38: =generacion_bruta!O90 -> 10155.45075 | P38: =generacion_bruta!P90 -> 159.6494475 | Q38: =generacion_bruta!Q90 -> 205.9635249 | R38: =generacion_bruta!R90 -> 0 | S38: =generacion_bruta!S90 -> 126.6779254 | T38: =generacion_bruta!T90 -> 663.1264668 | U38: =generacion_bruta!U90 -> 401.6864306 | V38: =generacion_bruta!V90 -> 42531.87406
B39: Nuclear | C39: =generacion_bruta!C91 -> 0 | D39: =generacion_bruta!D91 -> 0 | E39: =generacion_bruta!E91 -> 0 | F39: =generacion_bruta!F91 -> 0 | G39: =generacion_bruta!G91 -> 9108.216 | H39: =generacion_bruta!H91 -> 0 | I39: =generacion_bruta!I91 -> 0 | J39: =generacion_bruta!J91 -> 7783.908 | K39: =generacion_bruta!K91 -> 0 | L39: =generacion_bruta!L91 -> 22776.108 | M39: =generacion_bruta!M91 -> 0 | N39: =generacion_bruta!N91 -> 15202.007 | O39: =generacion_bruta!O91 -> 0 | P39: =generacion_bruta!P91 -> 0 | Q39: =generacion_bruta!Q91 -> 0 | R39: =generacion_bruta!R91 -> 0 | S39: =generacion_bruta!S91 -> 0 | T39: =generacion_bruta!T91 -> 0 | U39: =generacion_bruta!U91 -> 0 | V39: =generacion_bruta!V91 -> 54870.239
B40: Carbón | C40: =generacion_bruta!C92 -> 9502.972 | D40: =generacion_bruta!D92 -> 4611.757 | E40: =generacion_bruta!E92 -> 8565.27 | F40: =generacion_bruta!F92 -> 2187.626 | G40: =generacion_bruta!G92 -> 0 | H40: =generacion_bruta!H92 -> 0 | I40: =generacion_bruta!I92 -> 0 | J40: =generacion_bruta!J92 -> 881.26 | K40: =generacion_bruta!K92 -> 8006.714 | L40: =generacion_bruta!L92 -> 0 | M40: =generacion_bruta!M92 -> 0 | N40: =generacion_bruta!N92 -> 0 | O40: =generacion_bruta!O92 -> 9564.704 | P40: =generacion_bruta!P92 -> 0 | Q40: =generacion_bruta!Q92 -> 0 | R40: =generacion_bruta!R92 -> 0 | S40: =generacion_bruta!S92 -> 0 | T40: =generacion_bruta!T92 -> 0 | U40: =generacion_bruta!U92 -> 0 | V40: =generacion_bruta!V92 -> 43320.303
B41: Fuel / gas | C41: =generacion_bruta!C93 -> 0 | D41: =generacion_bruta!D93 -> 0 | E41: =generacion_bruta!E93 -> 0 | F41: =generacion_bruta!F93 -> 1260.664 | G41: =generacion_bruta!G93 -> 0 | H41: =generacion_bruta!H93 -> 4582.909 | I41: =generacion_bruta!I93 -> 0 | J41: =generacion_bruta!J93 -> 0 | K41: =generacion_bruta!K93 -> 0 | L41: =generacion_bruta!L93 -> 0 | M41: =generacion_bruta!M93 -> 212.253 | N41: =generacion_bruta!N93 -> 0 | O41: =generacion_bruta!O93 -> 0 | P41: =generacion_bruta!P93 -> 0 | Q41: =generacion_bruta!Q93 -> 0 | R41: =generacion_bruta!R93 -> 200.881 | S41: =generacion_bruta!S93 -> 0 | T41: =generacion_bruta!T93 -> 0 | U41: =generacion_bruta!U93 -> 0 | V41: =generacion_bruta!V93 -> 6256.707
B42: Ciclo combinado | C42: =generacion_bruta!C94 -> 4403.777 | D42: =generacion_bruta!D94 -> 210.171 | E42: =generacion_bruta!E94 -> 289.476 | F42: =generacion_bruta!F94 -> 426.924 | G42: =generacion_bruta!G94 -> 4017.662 | H42: =generacion_bruta!H94 -> 3311.448 | I42: =generacion_bruta!I94 -> 0 | J42: =generacion_bruta!J94 -> 1045.816 | K42: =generacion_bruta!K94 -> 0 | L42: =generacion_bruta!L94 -> 5031.349 | M42: =generacion_bruta!M94 -> 0 | N42: =generacion_bruta!N94 -> 0 | O42: =generacion_bruta!O94 -> 509.427 | P42: =generacion_bruta!P94 -> 162.452 | Q42: =generacion_bruta!Q94 -> 0 | R42: =generacion_bruta!R94 -> 0 | S42: =generacion_bruta!S94 -> 2336.522 | T42: =generacion_bruta!T94 -> 369.635 | U42: =generacion_bruta!U94 -> 2960.466 | V42: =generacion_bruta!V94 -> 25075.125
B43: Hidroeólica | C43: =generacion_bruta!C96 -> 0 | D43: =generacion_bruta!D96 -> 0 | E43: =generacion_bruta!E96 -> 0 | F43: =generacion_bruta!F96 -> 0 | G43: =generacion_bruta!G96 -> 0 | H43: =generacion_bruta!H96 -> 1.071861 | I43: =generacion_bruta!I96 -> 0 | J43: =generacion_bruta!J96 -> 0 | K43: =generacion_bruta!K96 -> 0 | L43: =generacion_bruta!L96 -> 0 | M43: =generacion_bruta!M96 -> 0 | N43: =generacion_bruta!N96 -> 0 | O43: =generacion_bruta!O96 -> 0 | P43: =generacion_bruta!P96 -> 0 | Q43: =generacion_bruta!Q96 -> 0 | R43: =generacion_bruta!R96 -> 0 | S43: =generacion_bruta!S96 -> 0 | T43: =generacion_bruta!T96 -> 0 | U43: =generacion_bruta!U96 -> 0 | V43: =generacion_bruta!V96 -> 1.071861
B44: Eólica | C44: =generacion_bruta!C97 -> 6450.411707 | D44: =generacion_bruta!D97 -> 4314.413658 | E44: =generacion_bruta!E97 -> 1140.608134 | F44: =generacion_bruta!F97 -> 5.839578 | G44: =generacion_bruta!G97 -> 2577.391476 | H44: =generacion_bruta!H97 -> 389.963924 | I44: =generacion_bruta!I97 -> 76.30895 | J44: =generacion_bruta!J97 -> 8389.137337 | K44: =generacion_bruta!K97 -> 12274.49252 | L44: =generacion_bruta!L97 -> 2867.133966 | M44: =generacion_bruta!M97 -> 0 | N44: =generacion_bruta!N97 -> 0 | O44: =generacion_bruta!O97 -> 8316.470118 | P44: =generacion_bruta!P97 -> 947.718085 | Q44: =generacion_bruta!Q97 -> 0 | R44: =generacion_bruta!R97 -> 0 | S44: =generacion_bruta!S97 -> 512.017404 | T44: =generacion_bruta!T97 -> 2424.907764 | U44: =generacion_bruta!U97 -> 343.88037 | V44: =generacion_bruta!V97 -> 51030.69499
B45: Solar fotovoltaica | C45: =generacion_bruta!C98 -> 1574.750163 | D45: =generacion_bruta!D98 -> 297.545781 | E45: =generacion_bruta!E98 -> 0.666843 | F45: =generacion_bruta!F98 -> 122.773391 | G45: =generacion_bruta!G98 -> 549.127528 | H45: =generacion_bruta!H98 -> 282.290384 | I45: =generacion_bruta!I98 -> 2.218715 | J45: =generacion_bruta!J98 -> 1684.592289 | K45: =generacion_bruta!K98 -> 840.0779 | L45: =generacion_bruta!L98 -> 413.306628 | M45: =generacion_bruta!M98 -> 0 | N45: =generacion_bruta!N98 -> 1071.175215 | O45: =generacion_bruta!O98 -> 19.445383 | P45: =generacion_bruta!P98 -> 128.873369 | Q45: =generacion_bruta!Q98 -> 93.257066 | R45: =generacion_bruta!R98 -> 0.083833 | S45: =generacion_bruta!S98 -> 800.250034 | T45: =generacion_bruta!T98 -> 297.78241 | U45: =generacion_bruta!U98 -> 29.355719 | V45: =generacion_bruta!V98 -> 8207.572651
B46: Solar térmica | C46: =generacion_bruta!C99 -> 2124.235754 | D46: =generacion_bruta!D99 -> 0 | E46: =generacion_bruta!E99 -> 0 | F46: =generacion_bruta!F99 -> 0 | G46: =generacion_bruta!G99 -> 93.85092 | H46: =generacion_bruta!H99 -> 0 | I46: =generacion_bruta!I99 -> 0 | J46: =generacion_bruta!J99 -> 734.252687 | K46: =generacion_bruta!K99 -> 0 | L46: =generacion_bruta!L99 -> 65.812195 | M46: =generacion_bruta!M99 -> 0 | N46: =generacion_bruta!N99 -> 1899.40041 | O46: =generacion_bruta!O99 -> 0 | P46: =generacion_bruta!P99 -> 0 | Q46: =generacion_bruta!Q99 -> 0 | R46: =generacion_bruta!R99 -> 0 | S46: =generacion_bruta!S99 -> 41.36296 | T46: =generacion_bruta!T99 -> 0 | U46: =generacion_bruta!U99 -> 0 | V46: =generacion_bruta!V99 -> 4958.914926
B47: Térmica renovable | C47: =generacion_bruta!C100 -> 1419.812004 | D47: =generacion_bruta!D100 -> 349.101284 | E47: =generacion_bruta!E100 -> 643.85856 | F47: =generacion_bruta!F100 -> 1.945659 | G47: =generacion_bruta!G100 -> 41.399133 | H47: =generacion_bruta!H100 -> 8.806584 | I47: =generacion_bruta!I100 -> 85.795958 | J47: =generacion_bruta!J100 -> 182.617011 | K47: =generacion_bruta!K100 -> 249.127088 | L47: =generacion_bruta!L100 -> 150.037289 | M47: =generacion_bruta!M100 -> 0 | N47: =generacion_bruta!N100 -> 215.011765 | O47: =generacion_bruta!O100 -> 574.685349 | P47: =generacion_bruta!P100 -> 7.290583 | Q47: =generacion_bruta!Q100 -> 269.701459 | R47: =generacion_bruta!R100 -> 0 | S47: =generacion_bruta!S100 -> 53.782084 | T47: =generacion_bruta!T100 -> 306.316933 | U47: =generacion_bruta!U100 -> 169.441833 | V47: =generacion_bruta!V100 -> 4728.730576
B48: Cogeneración y resto | C48: =generacion_bruta!C101 -> 5244.119429 | D48: =generacion_bruta!D101 -> 2383.597542 | E48: =generacion_bruta!E101 -> 651.135688 | F48: =generacion_bruta!F101 -> 281.388233 | G48: =generacion_bruta!G101 -> 1795.944745 | H48: =generacion_bruta!H101 -> 0 | I48: =generacion_bruta!I101 -> 831.901583 | J48: =generacion_bruta!J101 -> 764.037102 | K48: =generacion_bruta!K101 -> 1682.016098 | L48: =generacion_bruta!L101 -> 4806.878171 | M48: =generacion_bruta!M101 -> 0 | N48: =generacion_bruta!N101 -> 13.840363 | O48: =generacion_bruta!O101 -> 2147.346433 | P48: =generacion_bruta!P101 -> 56.949525 | Q48: =generacion_bruta!Q101 -> 736.528251 | R48: =generacion_bruta!R101 -> 8.898314 | S48: =generacion_bruta!S101 -> 1496.429749 | T48: =generacion_bruta!T101 -> 710.155483 | U48: =generacion_bruta!U101 -> 2274.656536 | V48: =generacion_bruta!V101 -> 25885.82324
B49: Residuos
A50: 2015 | B50: Hidráulica | C50: =generacion_bruta!C118 -> 968.2283432 | D50: =generacion_bruta!D118 -> 3437.745127 | E50: =generacion_bruta!E118 -> 1634.046922 | F50: =generacion_bruta!F118 -> 0 | G50: =generacion_bruta!G118 -> 1607.076344 | H50: =generacion_bruta!H118 -> 3.585851 | I50: =generacion_bruta!I118 -> 763.3898711 | J50: =generacion_bruta!J118 -> 747.0851824 | K50: =generacion_bruta!K118 -> 7951.811574 | L50: =generacion_bruta!L118 -> 4735.497171 | M50: =generacion_bruta!M118 -> 0 | N50: =generacion_bruta!N118 -> 1611.757504 | O50: =generacion_bruta!O118 -> 6457.487115 | P50: =generacion_bruta!P118 -> 122.8522502 | Q50: =generacion_bruta!Q118 -> 132.7728345 | R50: =generacion_bruta!R118 -> 0 | S50: =generacion_bruta!S118 -> 108.505957 | T50: =generacion_bruta!T118 -> 534.1834837 | U50: =generacion_bruta!U118 -> 405.3483536 | V50: =generacion_bruta!V118 -> 31221.37388
B51: Nuclear | C51: =generacion_bruta!C119 -> 0 | D51: =generacion_bruta!D119 -> 0 | E51: =generacion_bruta!E119 -> 0 | F51: =generacion_bruta!F119 -> 0 | G51: =generacion_bruta!G119 -> 7430.802 | H51: =generacion_bruta!H119 -> 0 | I51: =generacion_bruta!I119 -> 0 | J51: =generacion_bruta!J119 -> 7926.359 | K51: =generacion_bruta!K119 -> 0 | L51: =generacion_bruta!L119 -> 23325.627 | M51: =generacion_bruta!M119 -> 0 | N51: =generacion_bruta!N119 -> 16072.051 | O51: =generacion_bruta!O119 -> 0 | P51: =generacion_bruta!P119 -> 0 | Q51: =generacion_bruta!Q119 -> 0 | R51: =generacion_bruta!R119 -> 0 | S51: =generacion_bruta!S119 -> 0 | T51: =generacion_bruta!T119 -> 0 | U51: =generacion_bruta!U119 -> 0 | V51: =generacion_bruta!V119 -> 54754.839
B52: Carbón | C52: =generacion_bruta!C120 -> 12701.04 | D52: =generacion_bruta!D120 -> 4459.456 | E52: =generacion_bruta!E120 -> 12480.174 | F52: =generacion_bruta!F120 -> 1865.27 | G52: =generacion_bruta!G120 -> 0 | H52: =generacion_bruta!H120 -> 0 | I52: =generacion_bruta!I120 -> 0 | J52: =generacion_bruta!J120 -> 906.899 | K52: =generacion_bruta!K120 -> 9310.097 | L52: =generacion_bruta!L120 -> 0 | M52: =generacion_bruta!M120 -> 0 | N52: =generacion_bruta!N120 -> 0 | O52: =generacion_bruta!O120 -> 11066.106 | P52: =generacion_bruta!P120 -> 0 | Q52: =generacion_bruta!Q120 -> 0 | R52: =generacion_bruta!R120 -> 0 | S52: =generacion_bruta!S120 -> 0 | T52: =generacion_bruta!T120 -> 0 | U52: =generacion_bruta!U120 -> 0 | V52: =generacion_bruta!V120 -> 52789.042
B53: Fuel / gas | C53: =generacion_bruta!C121 -> 0 | D53: =generacion_bruta!D121 -> 0 | E53: =generacion_bruta!E121 -> 0 | F53: =generacion_bruta!F121 -> 1322.478 | G53: =generacion_bruta!G121 -> 0 | H53: =generacion_bruta!H121 -> 4763.92 | I53: =generacion_bruta!I121 -> 0 | J53: =generacion_bruta!J121 -> 0 | K53: =generacion_bruta!K121 -> 0 | L53: =generacion_bruta!L121 -> 0 | M53: =generacion_bruta!M121 -> 205.438 | N53: =generacion_bruta!N121 -> 0 | O53: =generacion_bruta!O121 -> 0 | P53: =generacion_bruta!P121 -> 0 | Q53: =generacion_bruta!Q121 -> 0 | R53: =generacion_bruta!R121 -> 204.814 | S53: =generacion_bruta!S121 -> 0 | T53: =generacion_bruta!T121 -> 0 | U53: =generacion_bruta!U121 -> 0 | V53: =generacion_bruta!V121 -> 6496.65
B54: Ciclo combinado | C54: =generacion_bruta!C122 -> 5623.467 | D54: =generacion_bruta!D122 -> 177.911 | E54: =generacion_bruta!E122 -> 361.307 | F54: =generacion_bruta!F122 -> 809.239 | G54: =generacion_bruta!G122 -> 4858.863 | H54: =generacion_bruta!H122 -> 3213.044 | I54: =generacion_bruta!I122 -> 0 | J54: =generacion_bruta!J122 -> 1289.096 | K54: =generacion_bruta!K122 -> 0 | L54: =generacion_bruta!L122 -> 6831.698 | M54: =generacion_bruta!M122 -> 0 | N54: =generacion_bruta!N122 -> 0 | O54: =generacion_bruta!O122 -> 333.788 | P54: =generacion_bruta!P122 -> 590.159 | Q54: =generacion_bruta!Q122 -> 0 | R54: =generacion_bruta!R122 -> 0 | S54: =generacion_bruta!S122 -> 2072.432 | T54: =generacion_bruta!T122 -> 724.07 | U54: =generacion_bruta!U122 -> 2405.677 | V54: =generacion_bruta!V122 -> 29290.751
B55: Hidroeólica | C55: =generacion_bruta!C124 -> 0 | D55: =generacion_bruta!D124 -> 0 | E55: =generacion_bruta!E124 -> 0 | F55: =generacion_bruta!F124 -> 0 | G55: =generacion_bruta!G124 -> 0 | H55: =generacion_bruta!H124 -> 8.557066 | I55: =generacion_bruta!I124 -> 0 | J55: =generacion_bruta!J124 -> 0 | K55: =generacion_bruta!K124 -> 0 | L55: =generacion_bruta!L124 -> 0 | M55: =generacion_bruta!M124 -> 0 | N55: =generacion_bruta!N124 -> 0 | O55: =generacion_bruta!O124 -> 0 | P55: =generacion_bruta!P124 -> 0 | Q55: =generacion_bruta!Q124 -> 0 | R55: =generacion_bruta!R124 -> 0 | S55: =generacion_bruta!S124 -> 0 | T55: =generacion_bruta!T124 -> 0 | U55: =generacion_bruta!U124 -> 0 | V55: =generacion_bruta!V124 -> 8.557066
B56: Eólica | C56: =generacion_bruta!C125 -> 6363.837098 | D56: =generacion_bruta!D125 -> 4229.199223 | E56: =generacion_bruta!E125 -> 917.807752 | F56: =generacion_bruta!F125 -> 5.315563 | G56: =generacion_bruta!G125 -> 2195.993566 | H56: =generacion_bruta!H125 -> 396.660923 | I56: =generacion_bruta!I125 -> 70.740945 | J56: =generacion_bruta!J125 -> 7286.716406 | K56: =generacion_bruta!K125 -> 11135.29315 | L56: =generacion_bruta!L125 -> 2608.782257 | M56: =generacion_bruta!M125 -> 0 | N56: =generacion_bruta!N125 -> 0 | O56: =generacion_bruta!O125 -> 8554.758744 | P56: =generacion_bruta!P125 -> 934.741484 | Q56: =generacion_bruta!Q125 -> 0 | R56: =generacion_bruta!R125 -> 0 | S56: =generacion_bruta!S125 -> 435.397331 | T56: =generacion_bruta!T125 -> 2637.926023 | U56: =generacion_bruta!U125 -> 341.95555 | V56: =generacion_bruta!V125 -> 48115.12602
B57: Solar fotovoltaica | C57: =generacion_bruta!C126 -> 1570.07354 | D57: =generacion_bruta!D126 -> 304.325605 | E57: =generacion_bruta!E126 -> 0.651736 | F57: =generacion_bruta!F126 -> 122.646436 | G57: =generacion_bruta!G126 -> 523.085511 | H57: =generacion_bruta!H126 -> 275.555924 | I57: =generacion_bruta!I126 -> 2.05531 | J57: =generacion_bruta!J126 -> 1722.910268 | K57: =generacion_bruta!K126 -> 847.268851 | L57: =generacion_bruta!L126 -> 421.112084 | M57: =generacion_bruta!M126 -> 0 | N57: =generacion_bruta!N126 -> 1111.133989 | O57: =generacion_bruta!O126 -> 20.758184 | P57: =generacion_bruta!P126 -> 132.187662 | Q57: =generacion_bruta!Q126 -> 93.788112 | R57: =generacion_bruta!R126 -> 0.07996 | S57: =generacion_bruta!S126 -> 762.396862 | T57: =generacion_bruta!T126 -> 304.335307 | U57: =generacion_bruta!U126 -> 28.715117 | V57: =generacion_bruta!V126 -> 8243.080458
B58: Solar térmica | C58: =generacion_bruta!C127 -> 2110.236508 | D58: =generacion_bruta!D127 -> 0 | E58: =generacion_bruta!E127 -> 0 | F58: =generacion_bruta!F127 -> 0 | G58: =generacion_bruta!G127 -> 89.976464 | H58: =generacion_bruta!H127 -> 0 | I58: =generacion_bruta!I127 -> 0 | J58: =generacion_bruta!J127 -> 735.486298 | K58: =generacion_bruta!K127 -> 0 | L58: =generacion_bruta!L127 -> 75.591874 | M58: =generacion_bruta!M127 -> 0 | N58: =generacion_bruta!N127 -> 2037.844843 | O58: =generacion_bruta!O127 -> 0 | P58: =generacion_bruta!P127 -> 0 | Q58: =generacion_bruta!Q127 -> 0 | R58: =generacion_bruta!R127 -> 0 | S58: =generacion_bruta!S127 -> 36.099527 | T58: =generacion_bruta!T127 -> 0 | U58: =generacion_bruta!U127 -> 0 | V58: =generacion_bruta!V127 -> 5085.235514
B59: Térmica renovable | C59: =generacion_bruta!C128 -> 1265.903382 | D59: =generacion_bruta!D128 -> 57.287431 | E59: =generacion_bruta!E128 -> 228.786063 | F59: =generacion_bruta!F128 -> 1.971492 | G59: =generacion_bruta!G128 -> 40.643071 | H59: =generacion_bruta!H128 -> 8.053126 | I59: =generacion_bruta!I128 -> 85.075816 | J59: =generacion_bruta!J128 -> 240.960016 | K59: =generacion_bruta!K128 -> 201.185116 | L59: =generacion_bruta!L128 -> 174.427152 | M59: =generacion_bruta!M128 -> 0 | N59: =generacion_bruta!N128 -> 199.312358 | O59: =generacion_bruta!O128 -> 235.937514 | P59: =generacion_bruta!P128 -> 0.55284 | Q59: =generacion_bruta!Q128 -> 156.870739 | R59: =generacion_bruta!R128 -> 0 | S59: =generacion_bruta!S128 -> 39.185057 | T59: =generacion_bruta!T128 -> 233.270322 | U59: =generacion_bruta!U128 -> 14.552711 | V59: =generacion_bruta!V128 -> 3183.974206
B60: Cogeneración y resto | C60: =generacion_bruta!C129 -> 5207.042735 | D60: =generacion_bruta!D129 -> 2443.058358 | E60: =generacion_bruta!E129 -> 357.122571 | F60: =generacion_bruta!F129 -> 31.518989 | G60: =generacion_bruta!G129 -> 1531.552624 | H60: =generacion_bruta!H129 -> 0 | I60: =generacion_bruta!I129 -> 716.346056 | J60: =generacion_bruta!J129 -> 778.594478 | K60: =generacion_bruta!K129 -> 1850.746959 | L60: =generacion_bruta!L129 -> 4678.848313 | M60: =generacion_bruta!M129 -> 0 | N60: =generacion_bruta!N129 -> 69.638162 | O60: =generacion_bruta!O129 -> 2629.349461 | P60: =generacion_bruta!P129 -> 82.116107 | Q60: =generacion_bruta!Q129 -> 694.046949 | R60: =generacion_bruta!R129 -> 0 | S60: =generacion_bruta!S129 -> 1458.475687 | T60: =generacion_bruta!T129 -> 835.153377 | U60: =generacion_bruta!U129 -> 2085.884596 | V60: =generacion_bruta!V129 -> 25449.49542
B61: Residuos
A62: 2016 | B62: Hidráulica | C62: =generacion_bruta!C146 -> 955.6259599 | D62: =generacion_bruta!D146 -> 3333.331622 | E62: =generacion_bruta!E146 -> 1985.735507 | F62: =generacion_bruta!F146 -> 0 | G62: =generacion_bruta!G146 -> 1994.320784 | H62: =generacion_bruta!H146 -> 3.472192 | I62: =generacion_bruta!I146 -> 666.6792634 | J62: =generacion_bruta!J146 -> 874.1436662 | K62: =generacion_bruta!K146 -> 11569.94366 | L62: =generacion_bruta!L146 -> 4180.106891 | M62: =generacion_bruta!M146 -> 0 | N62: =generacion_bruta!N146 -> 2518.689713 | O62: =generacion_bruta!O146 -> 9841.578576 | P62: =generacion_bruta!P146 -> 174.4320363 | Q62: =generacion_bruta!Q146 -> 157.2971486 | R62: =generacion_bruta!R146 -> 0 | S62: =generacion_bruta!S146 -> 100.650005 | T62: =generacion_bruta!T146 -> 450.3620599 | U62: =generacion_bruta!U146 -> 370.5848097 | V62: =generacion_bruta!V146 -> 39176.95389
B63: Nuclear | C63: =generacion_bruta!C147 -> 0 | D63: =generacion_bruta!D147 -> 0 | E63: =generacion_bruta!E147 -> 0 | F63: =generacion_bruta!F147 -> 0 | G63: =generacion_bruta!G147 -> 9178.263 | H63: =generacion_bruta!H147 -> 0 | I63: =generacion_bruta!I147 -> 0 | J63: =generacion_bruta!J147 -> 8002.642 | K63: =generacion_bruta!K147 -> 0 | L63: =generacion_bruta!L147 -> 23743.211 | M63: =generacion_bruta!M147 -> 0 | N63: =generacion_bruta!N147 -> 15174.856 | O63: =generacion_bruta!O147 -> 0 | P63: =generacion_bruta!P147 -> 0 | Q63: =generacion_bruta!Q147 -> 0 | R63: =generacion_bruta!R147 -> 0 | S63: =generacion_bruta!S147 -> 0 | T63: =generacion_bruta!T147 -> 0 | U63: =generacion_bruta!U147 -> 0 | V63: =generacion_bruta!V147 -> 56098.972
B64: Carbón | C64: =generacion_bruta!C148 -> 8273.448 | D64: =generacion_bruta!D148 -> 3317.603 | E64: =generacion_bruta!E148 -> 7573.062 | F64: =generacion_bruta!F148 -> 2303.769 | G64: =generacion_bruta!G148 -> 0 | H64: =generacion_bruta!H148 -> 0 | I64: =generacion_bruta!I148 -> 0 | J64: =generacion_bruta!J148 -> 0.077 | K64: =generacion_bruta!K148 -> 6554.315 | L64: =generacion_bruta!L148 -> 0 | M64: =generacion_bruta!M148 -> 0 | N64: =generacion_bruta!N148 -> 0 | O64: =generacion_bruta!O148 -> 9468.999 | P64: =generacion_bruta!P148 -> 0 | Q64: =generacion_bruta!Q148 -> 0 | R64: =generacion_bruta!R148 -> 0 | S64: =generacion_bruta!S148 -> 0 | T64: =generacion_bruta!T148 -> 0 | U64: =generacion_bruta!U148 -> 0 | V64: =generacion_bruta!V148 -> 37491.273
B65: Fuel / gas | C65: =generacion_bruta!C149 -> 0 | D65: =generacion_bruta!D149 -> 0 | E65: =generacion_bruta!E149 -> 0 | F65: =generacion_bruta!F149 -> 1311.771 | G65: =generacion_bruta!G149 -> 0 | H65: =generacion_bruta!H149 -> 5043.461 | I65: =generacion_bruta!I149 -> 0 | J65: =generacion_bruta!J149 -> 0 | K65: =generacion_bruta!K149 -> 0 | L65: =generacion_bruta!L149 -> 0 | M65: =generacion_bruta!M149 -> 210.736 | N65: =generacion_bruta!N149 -> 0 | O65: =generacion_bruta!O149 -> 0 | P65: =generacion_bruta!P149 -> 0 | Q65: =generacion_bruta!Q149 -> 0 | R65: =generacion_bruta!R149 -> 198.57 | S65: =generacion_bruta!S149 -> 0 | T65: =generacion_bruta!T149 -> 0 | U65: =generacion_bruta!U149 -> 0 | V65: =generacion_bruta!V149 -> 6764.538
B66: Ciclo combinado | C66: =generacion_bruta!C150 -> 6185.609 | D66: =generacion_bruta!D150 -> 175.51 | E66: =generacion_bruta!E150 -> 354.817 | F66: =generacion_bruta!F150 -> 542.55 | G66: =generacion_bruta!G150 -> 4695.019 | H66: =generacion_bruta!H150 -> 3031.7 | I66: =generacion_bruta!I150 -> 0 | J66: =generacion_bruta!J150 -> 1266.46 | K66: =generacion_bruta!K150 -> 0 | L66: =generacion_bruta!L150 -> 6989.706 | M66: =generacion_bruta!M150 -> 0 | N66: =generacion_bruta!N150 -> 0 | O66: =generacion_bruta!O150 -> 670.215 | P66: =generacion_bruta!P150 -> 1015.822 | Q66: =generacion_bruta!Q150 -> 0 | R66: =generacion_bruta!R150 -> 0 | S66: =generacion_bruta!S150 -> 1114.862 | T66: =generacion_bruta!T150 -> 1287.686 | U66: =generacion_bruta!U150 -> 1930.442 | V66: =generacion_bruta!V150 -> 29260.398
B67: Hidroeólica | C67: =generacion_bruta!C152 -> 0 | D67: =generacion_bruta!D152 -> 0 | E67: =generacion_bruta!E152 -> 0 | F67: =generacion_bruta!F152 -> 0 | G67: =generacion_bruta!G152 -> 0 | H67: =generacion_bruta!H152 -> 18.102639 | I67: =generacion_bruta!I152 -> 0 | J67: =generacion_bruta!J152 -> 0 | K67: =generacion_bruta!K152 -> 0 | L67: =generacion_bruta!L152 -> 0 | M67: =generacion_bruta!M152 -> 0 | N67: =generacion_bruta!N152 -> 0 | O67: =generacion_bruta!O152 -> 0 | P67: =generacion_bruta!P152 -> 0 | Q67: =generacion_bruta!Q152 -> 0 | R67: =generacion_bruta!R152 -> 0 | S67: =generacion_bruta!S152 -> 0 | T67: =generacion_bruta!T152 -> 0 | U67: =generacion_bruta!U152 -> 0 | V67: =generacion_bruta!V152 -> 18.102639
B68: Eólica | C68: =generacion_bruta!C153 -> 7060.264593 | D68: =generacion_bruta!D153 -> 4225.959252 | E68: =generacion_bruta!E153 -> 798.145695 | F68: =generacion_bruta!F153 -> 5.416058 | G68: =generacion_bruta!G153 -> 2224.688286 | H68: =generacion_bruta!H153 -> 393.085554 | I68: =generacion_bruta!I153 -> 70.502809 | J68: =generacion_bruta!J153 -> 7680.537222 | K68: =generacion_bruta!K153 -> 10939.94373 | L68: =generacion_bruta!L153 -> 2683.941945 | M68: =generacion_bruta!M153 -> 0 | N68: =generacion_bruta!N153 -> 0 | O68: =generacion_bruta!O153 -> 7318.713076 | P68: =generacion_bruta!P153 -> 933.709781 | Q68: =generacion_bruta!Q153 -> 0 | R68: =generacion_bruta!R153 -> 0 | S68: =generacion_bruta!S153 -> 457.421152 | T68: =generacion_bruta!T153 -> 2571.923076 | U68: =generacion_bruta!U153 -> 332.418067 | V68: =generacion_bruta!V153 -> 47696.6703
B69: Solar fotovoltaica | C69: =generacion_bruta!C154 -> 1525.683551 | D69: =generacion_bruta!D154 -> 295.295939 | E69: =generacion_bruta!E154 -> 0.58737 | F69: =generacion_bruta!F154 -> 120.534661 | G69: =generacion_bruta!G154 -> 514.061468 | H69: =generacion_bruta!H154 -> 277.674761 | I69: =generacion_bruta!I154 -> 2.095262 | J69: =generacion_bruta!J154 -> 1624.757124 | K69: =generacion_bruta!K154 -> 829.744469 | L69: =generacion_bruta!L154 -> 413.621431 | M69: =generacion_bruta!M154 -> 0 | N69: =generacion_bruta!N154 -> 1061.744123 | O69: =generacion_bruta!O154 -> 20.147258 | P69: =generacion_bruta!P154 -> 131.425654 | Q69: =generacion_bruta!Q154 -> 88.527027 | R69: =generacion_bruta!R154 -> 0.078082 | S69: =generacion_bruta!S154 -> 747.019136 | T69: =generacion_bruta!T154 -> 294.940998 | U69: =generacion_bruta!U154 -> 29.661534 | V69: =generacion_bruta!V154 -> 7977.599848
B70: Solar térmica | C70: =generacion_bruta!C155 -> 2194.631009 | D70: =generacion_bruta!D155 -> 0 | E70: =generacion_bruta!E155 -> 0 | F70: =generacion_bruta!F155 -> 0 | G70: =generacion_bruta!G155 -> 70.150953 | H70: =generacion_bruta!H155 -> 0 | I70: =generacion_bruta!I155 -> 0 | J70: =generacion_bruta!J155 -> 721.879998 | K70: =generacion_bruta!K155 -> 0 | L70: =generacion_bruta!L155 -> 70.319427 | M70: =generacion_bruta!M155 -> 0 | N70: =generacion_bruta!N155 -> 1973.457652 | O70: =generacion_bruta!O155 -> 0 | P70: =generacion_bruta!P155 -> 0 | Q70: =generacion_bruta!Q155 -> 0 | R70: =generacion_bruta!R155 -> 0 | S70: =generacion_bruta!S155 -> 40.762663 | T70: =generacion_bruta!T155 -> 0 | U70: =generacion_bruta!U155 -> 0 | V70: =generacion_bruta!V155 -> 5071.201702
B71: Otras renovables | C71: =generacion_bruta!C156 -> 1367.772666 | D71: =generacion_bruta!D156 -> 53.330302 | E71: =generacion_bruta!E156 -> 245.265981 | F71: =generacion_bruta!F156 -> 1.309715 | G71: =generacion_bruta!G156 -> 38.907042 | H71: =generacion_bruta!H156 -> 9.335775 | I71: =generacion_bruta!I156 -> 76.573037 | J71: =generacion_bruta!J156 -> 238.410359 | K71: =generacion_bruta!K156 -> 246.51016 | L71: =generacion_bruta!L156 -> 174.026421 | M71: =generacion_bruta!M156 -> 0 | N71: =generacion_bruta!N156 -> 235.610537 | O71: =generacion_bruta!O156 -> 232.034116 | P71: =generacion_bruta!P156 -> 7.593838 | Q71: =generacion_bruta!Q156 -> 137.921649 | R71: =generacion_bruta!R156 -> 0 | S71: =generacion_bruta!S156 -> 55.348953 | T71: =generacion_bruta!T156 -> 273.716822 | U71: =generacion_bruta!U156 -> 30.889806 | V71: =generacion_bruta!V156 -> 3424.557179
B72: Cogeneración | C72: =generacion_bruta!C157 -> 5102.743263 | D72: =generacion_bruta!D157 -> 2498.912457 | E72: =generacion_bruta!E157 -> 369.745856 | F72: =generacion_bruta!F157 -> 34.701317 | G72: =generacion_bruta!G157 -> 1579.402809 | H72: =generacion_bruta!H157 -> 0 | I72: =generacion_bruta!I157 -> 831.309878 | J72: =generacion_bruta!J157 -> 988.741079 | K72: =generacion_bruta!K157 -> 1857.917275 | L72: =generacion_bruta!L157 -> 4689.194371 | M72: =generacion_bruta!M157 -> 0 | N72: =generacion_bruta!N157 -> 50.701283 | O72: =generacion_bruta!O157 -> 2801.991939 | P72: =generacion_bruta!P157 -> 65.604554 | Q72: =generacion_bruta!Q157 -> 709.290259 | R72: =generacion_bruta!R157 -> 0 | S72: =generacion_bruta!S157 -> 1446.650791 | T72: =generacion_bruta!T157 -> 850.04066 | U72: =generacion_bruta!U157 -> 2029.668237 | V72: =generacion_bruta!V157 -> 25906.61603
B73: Residuos | C73: =generacion_bruta!C158 -> 181.57978 | D73: =generacion_bruta!D158 -> 366.541587 | E73: =generacion_bruta!E158 -> 707.87569 | F73: =generacion_bruta!F158 -> 261.610133 | G73: =generacion_bruta!G158 -> 344.800935 | H73: =generacion_bruta!H158 -> 0 | I73: =generacion_bruta!I158 -> 78.184441 | J73: =generacion_bruta!J158 -> 0 | K73: =generacion_bruta!K158 -> 0 | L73: =generacion_bruta!L158 -> 270.5028 | M73: =generacion_bruta!M158 -> 0 | N73: =generacion_bruta!N158 -> 0 | O73: =generacion_bruta!O158 -> 338.234853 | P73: =generacion_bruta!P158 -> 0 | Q73: =generacion_bruta!Q158 -> 135.524414 | R73: =generacion_bruta!R158 -> 9.700105 | S73: =generacion_bruta!S158 -> 0 | T73: =generacion_bruta!T158 -> 0 | U73: =generacion_bruta!U158 -> 697.804056 | V73: =generacion_bruta!V158 -> 3392.358794

Sheet datos_RdT (hidden)
B1: 2011
B2: CCAA | C2: Andalucía | D2: Aragón | E2: Asturias | F2: Baleares | G2: C. Valenciana | H2: Canarias | I2: Cantabria | J2: Castilla-La Mancha | K2: Castilla y León | L2: Cataluña | M2: Ceuta | N2: Extremadura | O2: Galicia | P2: La Rioja | Q2: Madrid | R2: Melilla | S2: Murcia | T2: Navarra | U2: País Vasco | V2: TOTAL | W2: MÓVILES | X2: PENINSULAR | Y2: NO PENINSULAR
B3: km líneas 400 kV | C3: 2626.742078 | D3: 1287.54794 | E3: 423.5111643 | G3: 1007.200472 | I3: 238.8627043 | J3: 2308.788496 | K3: 4546.919032 | L3: 2038.357192 | N3: 1676.543958 | O3: 1086.732727 | P3: 114.9490595 | Q3: 915.3560257 | S3: 708.0041371 | T3: 175.9700702 | U3: 515.9183434 | V3: 19671.4034 | X3: 19671.4034 | Y3: 0
B4: km líneas 220 kV | C4: 2939.124155 | D4: 1690.596817 | E4: 420.2268202 | F4: 430.382 | G4: 1067.22226 | H4: 163.353 | I4: 276.5377929 | J4: 1427.686639 | K4: 3206.358862 | L4: 2452.097254 | N4: 735.4928674 | O4: 1318.563 | P4: 140.0535424 | Q4: 1150.106551 | S4: 92.85174 | T4: 318.8290202 | U4: 690.2796786 | V4: 18519.762 | X4: 17926.027 | Y4: 593.735
B5: km líneas <220 kV | F5: 1110.144 | H5: 1125.697 | L5: 39.44 | N5: 23 | O5: 12.3 | V5: 2310.581 | X5: 74.74 | Y5: 2235.841
B6: Total km líneas | C6: 5565.866233 | D6: 2978.144758 | E6: 843.7379845 | F6: 1540.526 | G6: 2074.422732 | H6: 1289.05 | I6: 515.4004973 | J6: 3736.475136 | K6: 7753.277894 | L6: 4529.894446 | M6: 0 | N6: 2435.036825 | O6: 2417.595727 | P6: 255.0026019 | Q6: 2065.462577 | R6: 0 | S6: 800.8558771 | T6: 494.7990904 | U6: 1206.198022 | V6: 40501.7464 | X6: 37672.1704 | Y6: 2829.576
B7: Δ 2011/2010 | C7: 0.8056678223 | D7: 7.994308977 | E7: 36.36843416 | F7: 20.33648341 | G7: 19.76277794 | H7: 0 | I7: 14.30532545 | J7: 0.2351309432 | K7: 5.103284444 | L7: 1.015868681 | N7: 3.195581922 | O7: 1.442801495 | P7: 7.644814509 | Q7: 0.8869222591 | S7: 0.5715147717 | T7: 0 | U7: 0.08546526137 | V7: 4.487716443 | X7: 4.086964232 | Y7: 10.13314485
B8: Posiciones 400 kV | C8: 176 | D8: 83 | E8: 43 | G8: 136 | I8: 10 | J8: 91 | K8: 190 | L8: 120 | N8: 81 | O8: 59 | P8: 6 | Q8: 103 | S8: 53 | T8: 27 | U8: 75 | V8: 1253 | X8: 1253 | Y8: 0
B9: Posiciones 220 kV | C9: 397 | D9: 203 | E9: 45 | F9: 69 | G9: 226 | H9: 40 | I9: 42 | J9: 123 | K9: 233 | L9: 549 | N9: 65 | O9: 205 | P9: 24 | Q9: 471 | S9: 34 | T9: 48 | U9: 145 | V9: 2926 | W9: 7 | X9: 2817 | Y9: 109
B10: Posiciones <220 kV | F10: 435 | H10: 363 | L10: 3 | O10: 1 | V10: 802 | X10: 4 | Y10: 798
B11: Total posiciones | C11: 573 | D11: 286 | E11: 88 | F11: 504 | G11: 362 | H11: 403 | I11: 52 | J11: 214 | K11: 423 | L11: 672 | M11: 0 | N11: 146 | O11: 265 | P11: 30 | Q11: 574 | R11: 0 | S11: 87 | T11: 75 | U11: 220 | V11: 4981 | W11: 7 | X11: 4074 | Y11: 907
B12: Δ 2011/2010 | C12: 4.181818182 | D12: 15.78947368 | E12: 7.317073171 | F12: 6.779661017 | G12: 10.36585366 | H12: 1.767676768 | I12: 0 | J12: 8.080808081 | K12: 2.173913043 | L12: 3.384615385 | N12: 2.097902098 | O12: 7.723577236 | P12: 7.142857143 | Q12: 3.237410072 | S12: 8.75 | T12: 0 | U12: 0.4566210046 | V12: 5.017921147 | W12: 0 | X12: 5.135483871 | Y12: 4.493087558
B13: Transformadores | C13: 13620 | D13: 4074 | E13: 1299.2 | F13: 2248 | G13: 6925 | H13: 1625 | I13: 1500 | J13: 600 | K13: 6131 | L13: 9350 | N13: 1798.875 | O13: 5700 | Q13: 10348.4 | S13: 3150 | T13: 1000 | U13: 3200 | V13: 72869.475 | W13: 300 | X13: =V13-F13-H13-M13-R13 -> 68996.475 | Y13: 3873
B14: Δ 2011/2010 | C14: 4.608294931 | D14: 0 | E14: 0 | F14: 12.51251251 | G14: 0 | H14: 0 | I14: 0 | K14: 0 | L14: 0 | N14: 0 | O14: 0 | Q14: 0 | S14: 61.53846154 | T14: 0 | U14: 0 | V14: 3.773881818 | W14: 0 | X14: -99.54952571 | Y14: 6.900358819
B15: 2012
B16: CCAA | C16: Andalucía | D16: Aragón | E16: Asturias | F16: Baleares | G16: C. Valenciana | H16: Canarias | I16: Cantabria | J16: Castilla-La Mancha | K16: Castilla y León | L16: Cataluña | M16: Ceuta | N16: Extremadura | O16: Galicia | P16: La Rioja | Q16: Madrid | R16: Melilla | S16: Murcia | T16: Navarra | U16: País Vasco | V16: TOTAL | W16: MÓVILES | X16: PENINSULAR | Y16: NO PENINSULAR
B17: km líneas 400 kV | C17: 2693.820078 | D17: 1287.54794 | E17: 423.5111643 | G17: 1010.000472 | I17: 238.8627043 | J17: 2538.284496 | K17: 4571.073032 | L17: 2038.357192 | N17: 1676.543958 | O17: 1200.592727 | P17: 114.9490595 | Q17: 915.3560257 | S17: 708.1121371 | T17: 175.9700702 | U17: 515.9183434 | V17: =SUM(C17:U17)+W17 -> 20108.8994 | X17: =V17-F17-H17-M17-R17 -> 20108.8994 | Y17: =F17+H17+M17+R17 -> 0
B18: km líneas 220 kV | C18: 2978.804155 | D18: 1848.840817 | E18: 420.2268202 | F18: 430.382 | G18: 1116.58226 | H18: 163.353 | I18: 276.5377929 | J18: 1496.730639 | K18: 3206.358862 | L18: 2455.433254 | N18: 740.3378674 | O18: 1318.563 | P18: 156.3322424 | Q18: 1163.770551 | S18: 107.27374 | T18: 318.8290202 | U18: 690.2796786 | V18: =SUM(C18:U18)+W18 -> 18888.6357 | X18: =V18-F18-H18-M18-R18 -> 18294.9007 | Y18: =F18+H18+M18+R18 -> 593.735
B19: km líneas <220 kV | F19: 1113.149 | H19: 1125.697 | L19: 39.44 | N19: 23 | O19: 12.3 | V19: 2313.586 | X19: =V19-F19-H19-M19-R19 -> 74.74 | Y19: =F19+H19+M19+R19 -> 2238.846
B20: Total km líneas | C20: =SUM(C17:C19) -> 5672.624233 | D20: =SUM(D17:D19) -> 3136.388758 | E20: 843.7379845 | F20: 1543.531 | G20: 2126.582732 | H20: 1289.05 | I20: 515.4004973 | J20: 4035.015136 | K20: 7777.431894 | L20: 4533.230446 | M20: 0 | N20: 2439.881825 | O20: 2531.455727 | P20: 271.2813019 | Q20: 2079.126577 | R20: 0 | S20: 815.3858771 | T20: 494.7990904 | U20: 1206.198022 | V20: =SUM(V17:V19) -> 41311.1211 | X20: =SUM(X17:X19) -> 38478.5401 | Y20: 2832.581
B21: Δ 2012/2011 | C21: =(C20/C6-1)*100 -> 1.918084185 | D21: =(D20/D6-1)*100 -> 5.313509345 | E21: 0 | F21: 0.1950632446 | G21: 2.51443446 | H21: 0 | I21: 0 | J21: 7.989883223 | K21: 0.3115327521 | L21: 0.0736441001 | N21: 0.1989702968 | O21: 4.709637708 | P21: 6.383738785 | Q21: 0.6615467235 | S21: 1.814308968 | T21: 0 | U21: 0 | V21: 1.998369878 | X21: 2.140491751 | Y21: 0.1061996568
B22: Posiciones 400 kV | C22: 182 | D22: 84 | E22: 43 | G22: 143 | I22: 10 | J22: 104 | K22: 199 | L22: 122 | N22: 84 | O22: 65 | P22: 8 | Q22: 103 | S22: 67 | T22: 27 | U22: 78 | V22: =SUM(C22:U22)+W22 -> 1319 | X22: =V22-F22-H22-M22-R22 -> 1319 | Y22: =F22+H22+M22+R22 -> 0
B23: Posiciones 220 kV | C23: 401 | D23: 211 | E23: 45 | F23: 69 | G23: 245 | H23: 40 | I23: 46 | J23: 136 | K23: 234 | L23: 575 | N23: 80 | O23: 206 | P23: 30 | Q23: 496 | S23: 34 | T23: 48 | U23: 146 | V23: 3049 | W23: 7 | X23: =V23-F23-H23-M23-R23 -> 2940 | Y23: =F23+H23+M23+R23 -> 109
B24: Posiciones <220 kV | F24: 435 | H24: 363 | L24: 3 | O24: 1 | V24: 802 | X24: =V24-F24-H24-M24-R24 -> 4 | Y24: =F24+H24+M24+R24 -> 798
B25: Total posiciones | C25: =SUM(C22:C24) -> 583 | D25: =SUM(D22:D24) -> 295 | E25: 88 | F25: 504 | G25: 388 | H25: 403 | I25: 56 | J25: 240 | K25: 433 | L25: 700 | M25: 0 | N25: 164 | O25: 272 | P25: 38 | Q25: 599 | R25: 0 | S25: 101 | T25: 75 | U25: 224 | V25: =SUM(V22:V24) -> 5170 | W25: =SUM(W22:W24) -> 7 | X25: =SUM(X22:X24) -> 4263 | Y25: 907
B26: Δ 2012/2011 | C26: =(C25/C11-1)*100 -> 1.745200698 | D26: =(D25/D11-1)*100 -> 3.146853147 | E26: 0 | F26: 0 | G26: 7.182320442 | H26: 0 | I26: 7.692307692 | J26: 12.14953271 | K26: 2.364066194 | L26: 4.166666667 | N26: 12.32876712 | O26: 2.641509434 | P26: 26.66666667 | Q26: 4.355400697 | S26: 16.09195402 | T26: 0 | U26: 1.818181818 | V26: 3.794418791 | W26: 0 | X26: 4.639175258 | Y26: 0
B27: Transformadores | C27: 14420 | D27: 4674 | E27: 1299.2 | F27: 2408 | G27: 7525 | H27: 1625 | I27: 1500 | J27: 1200 | K27: 6131 | L27: 10450 | N27: 1798.875 | O27: 5700 | P27: 600 | Q27: 10348.4 | S27: 3150 | T27: 1000 | U27: 4300 | V27: =SUM(C27:U27)+W27 -> 78629.475 | W27: 500 | X27: =V27-F27-H27-M27-R27 -> 74596.475 | Y27: =F27+H27+M27+R27 -> 4033
B28: Δ 2012/2011 | C28: =(C27/C13-1)*100 -> 5.873715125 | D28: =(D27/D13-1)*100 -> 14.7275405 | E28: 0 | F28: 7.117437722 | G28: 8.664259928 | H28: 0 | I28: 0 | K28: 0 | L28: 11.76470588 | N28: 0 | O28: 0 | Q28: 0 | S28: 0 | T28: 0 | U28: 34.375 | V28: 7.904544393 | W28: 66.66666667 | X28: =(X27/X13-1)*100 -> 8.116356669 | Y28: 4.131164472
B29: 2013
B30: CCAA | C30: Andalucía | D30: Aragón | E30: Asturias | F30: Baleares | G30: C. Valenciana | H30: Canarias | I30: Cantabria | J30: Castilla-La Mancha | K30: Castilla y León | L30: Cataluña | M30: Ceuta | N30: Extremadura | O30: Galicia | P30: La Rioja | Q30: Madrid | R30: Melilla | S30: Murcia | T30: Navarra | U30: País Vasco | V30: TOTAL | W30: MÓVILES | X30: PENINSULAR | Y30: NO PENINSULAR
B31: km líneas 400 kV | C31: 2693.820078 | D31: 1288.14794 | E31: 491.6751643 | G31: 1010.000472 | I31: 238.8627043 | J31: 2538.284496 | K31: 4571.073032 | L31: 2038.357192 | N31: 2094.405958 | O31: 1200.592727 | P31: 114.9490595 | Q31: 915.3560257 | S31: 708.1121371 | T31: 175.9700702 | U31: 559.8823434 | V31: =SUM(C31:U31)+W31 -> 20639.4894 | X31: =V31-F31-H31-M31-R31 -> 20639.4894 | Y31: =F31+H31+M31+R31 -> 0
B32: km líneas 220 kV | C32: 3137.746795 | D32: 1848.840817 | E32: 420.2268202 | F32: 430.382 | G32: 1223.09026 | H32: 163.353 | I32: 276.5377929 | J32: 1496.730639 | K32: 3206.358862 | L32: 2455.433254 | N32: 741.3038674 | O32: 1318.563 | P32: 156.3322424 | Q32: 1170.656551 | S32: 107.27374 | T32: 318.8290202 | U32: 690.2796786 | V32: =SUM(C32:U32)+W32 -> 19161.93834 | X32: =V32-F32-H32-M32-R32 -> 18568.20334 | Y32: =F32+H32+M32+R32 -> 593.735
B33: km líneas <220 kV | F33: 1113.149 | H33: 1125.697 | L33: 39.44 | N33: 23 | O33: 12.3 | V33: 2313.586 | X33: =V33-F33-H33-M33-R33 -> 74.74 | Y33: =F33+H33+M33+R33 -> 2238.846
B34: Total km líneas | C34: =SUM(C31:C33) -> 5831.566873 | D34: =SUM(D31:D33) -> 3136.988758 | E34: 911.9019845 | F34: 1543.531 | G34: 2233.090732 | H34: 1289.05 | I34: 515.4004973 | J34: 4035.015136 | K34: 7777.431894 | L34: 4533.230446 | M34: 0 | N34: 2858.709825 | O34: 2531.455727 | P34: 271.2813019 | Q34: 2086.012577 | R34: 0 | S34: 815.3858771 | T34: 494.7990904 | U34: 1250.162022 | V34: =SUM(V31:V33) -> 42115.01374 | X34: =SUM(X31:X33) -> 39282.43274 | Y34: 2832.581
B35: Δ 2013/2012 | C35: =(C34/C20-1)*100 -> 2.801924356 | D35: =(D34/D20-1)*100 -> 0.01913028156 | E35: 8.078811344 | F35: 0 | G35: 5.008410838 | H35: 0 | I35: 0 | J35: 0 | K35: 0 | L35: 0 | N35: 17.16591335 | O35: -2.220446049e-14 | P35: 0 | Q35: 0.3311967668 | S35: 0 | T35: 0 | U35: 3.644840996 | V35: 1.945947286 | X35: 2.08919735 | Y35: 0
B36: Posiciones 400 kV | C36: 195 | D36: 89 | E36: 52 | G36: 143 | I36: 10 | J36: 106 | K36: 199 | L36: 122 | N36: 103 | O36: 71 | P36: 8 | Q36: 103 | S36: 67 | T36: 28 | U36: 78 | V36: =SUM(C36:U36)+W36 -> 1374 | X36: =V36-F36-H36-M36-R36 -> 1374 | Y36: =F36+H36+M36+R36 -> 0
B37: Posiciones 220 kV | C37: 412 | D37: 213 | E37: 45 | F37: 69 | G37: 271 | H37: 40 | I37: 46 | J37: 137 | K37: 234 | L37: 583 | N37: 87 | O37: 213 | P37: 30 | Q37: 517 | S37: 40 | T37: 49 | U37: 146 | V37: 3139 | W37: 7 | X37: =V37-F37-H37-M37-R37 -> 3030 | Y37: =F37+H37+M37+R37 -> 109
B38: Posiciones <220 kV | F38: 437 | H38: 363 | L38: 3 | O38: 1 | V38: 804 | X38: =V38-F38-H38-M38-R38 -> 4 | Y38: =F38+H38+M38+R38 -> 800
B39: Total posiciones | C39: =SUM(C36:C38) -> 607 | D39: =SUM(D36:D38) -> 302 | E39: 97 | F39: 506 | G39: 414 | H39: 403 | I39: 56 | J39: 243 | K39: 433 | L39: 708 | M39: 0 | N39: 190 | O39: 285 | P39: 38 | Q39: 620 | R39: 0 | S39: 107 | T39: 77 | U39: 224 | V39: =SUM(V36:V38) -> 5317 | W39: =SUM(W36:W38) -> 7 | X39: =SUM(X36:X38) -> 4408 | Y39: 909
B40: Δ 2013/2012 | C40: =(C39/C25-1)*100 -> 4.116638079 | D40: =(D39/D25-1)*100 -> 2.372881356 | E40: 10.22727273 | F40: 0.3968253968 | G40: 6.701030928 | H40: 0 | I40: 0 | J40: 1.25 | K40: 0 | L40: 1.142857143 | N40: 15.85365854 | O40: 4.779411765 | P40: 0 | Q40: 3.505843072 | S40: 5.940594059 | T40: 2.666666667 | U40: 0 | V40: 2.843326886 | W40: 0 | X40: 3.401360544 | Y40: 0.2205071665
B41: Transformadores | C41: 14420 | D41: 4674 | E41: 1299.2 | F41: 2793 | G41: 7600 | H41: 1625 | I41: 2100 | J41: 1200 | K41: 6131 | L41: 10450 | N41: 2398.875 | O41: 5700 | P41: 600 | Q41: 10348.4 | S41: 3150 | T41: 1600 | U41: 4300 | V41: =SUM(C41:U41)+W41 -> 81289.475 | W41: 900 | X41: =V41-F41-H41-M41-R41 -> 76871.475 | Y41: =F41+H41+M41+R41 -> 4418
B42: Δ 2013/2012 | C42: =(C41/C27-1)*100 -> 0 | D42: =(D41/D27-1)*100 -> 0 | E42: 0 | F42: 15.98837209 | G42: 0.9966777409 | H42: 0 | I42: 40 | J42: 0 | K42: 0 | L42: 0 | N42: 33.3541797 | O42: 0 | Q42: 0 | S42: 0 | T42: 60 | U42: 0 | V42: 3.38295531 | W42: 80 | X42: 3.049741962 | Y42: 9.546243491
B43: 2014
B44: CCAA | C44: Andalucía | D44: Aragón | E44: Asturias | F44: Baleares | G44: C. Valenciana | H44: Canarias | I44: Cantabria | J44: Castilla-La Mancha | K44: Castilla y León | L44: Cataluña | M44: Ceuta | N44: Extremadura | O44: Galicia | P44: La Rioja | Q44: Madrid | R44: Melilla | S44: Murcia | T44: Navarra | U44: País Vasco | V44: TOTAL | W44: MÓVILES | X44: PENINSULAR | Y44: NO PENINSULAR
B45: km líneas 400 kV | C45: 2769.149578 | D45: 1288.14794 | E45: 491.6751643 | F45: 0 | G45: 1010.000472 | H45: 0 | I45: 238.8627043 | J45: 2578.534496 | K45: 4571.073032 | L45: 2185.196192 | N45: 2285.508458 | O45: 1201.105727 | P45: 114.9490595 | Q45: 915.3560257 | S45: 708.1121371 | T45: 175.9700702 | U45: 559.8823434 | V45: =SUM(C45:U45)+W45 -> 21093.5234 | X45: =V45-F45-H45-M45-R45 -> 21093.5234 | Y45: =F45+H45+M45+R45 -> 0
B46: km líneas 220 kV | C46: 3168.957795 | D46: 1848.840817 | E46: 420.2268202 | F46: 431.098 | G46: 1264.01826 | H46: 163.353 | I46: 276.5377929 | J46: 1496.730639 | K46: 3206.358862 | L46: 2463.693254 | N46: 787.3738674 | O46: 1324.479 | P46: 156.3322424 | Q46: 1177.349551 | S46: 107.27374 | T46: 318.8290202 | U46: 690.2796786 | V46: =SUM(C46:U46)+W46 -> 19301.73234 | X46: =V46-F46-H46-M46-R46 -> 18707.28134 | Y46: =F46+H46+M46+R46 -> 594.451
B47: km líneas <220 kV | F47: 1113.884 | H47: 1125.782 | L47: 39.44 | N47: 23 | O47: 12.3 | V47: 2314.406 | X47: =V47-F47-H47-M47-R47 -> 74.74 | Y47: =F47+H47+M47+R47 -> 2239.666
B48: Total km líneas | C48: =SUM(C45:C47) -> 5938.107373 | D48: =SUM(D45:D47) -> 3136.988758 | E48: 911.9019845 | F48: 1544.982 | G48: 2274.018732 | H48: 1289.135 | I48: 515.4004973 | J48: 4075.265136 | K48: 7777.431894 | L48: 4688.329446 | M48: 0 | N48: 3095.882325 | O48: 2537.884727 | P48: 271.2813019 | Q48: 2092.705577 | R48: 0 | S48: 815.3858771 | T48: 494.7990904 | U48: 1250.162022 | V48: =SUM(V45:V47) -> 42709.66174 | X48: =SUM(X45:X47) -> 39875.54474 | Y48: 2834.117
B49: Δ2014/2013 | C49: =(C48/C34-1)*100 -> 1.826961815 | D49: =(D48/D34-1)*100 -> 0 | E49: 0 | F49: 0.09400523864 | G49: 1.832796107 | H49: 0.006594003336 | I49: 0 | J49: 0.9975179435 | K49: 0 | L49: 3.421379121 | N49: 8.296487383 | O49: 0.2539645442 | P49: 0 | Q49: 0.3208513734 | S49: =(S48/S34-1)*100 -> 0 | T49: 0 | U49: 0 | V49: 1.411962023 | X49: =(X48/X34-1)*100 -> 1.509865756 | Y49: 0.05422616335
B50: Posiciones 400 kV | C50: 195 | D50: 89 | E50: 52 | G50: 143 | I50: 10 | J50: 112 | K50: 200 | L50: 133 | N50: 103 | O50: 71 | P50: 8 | Q50: 103 | S50: 69 | T50: 28 | U50: 78 | V50: =SUM(C50:U50)+W50 -> 1394 | X50: =V50-F50-H50-M50-R50 -> 1394 | Y50: =F50+H50+M50+R50 -> 0
B51: Posiciones 220 kV | C51: 416 | D51: 213 | E51: 45 | F51: 75 | G51: 291 | H51: 40 | I51: 46 | J51: 137 | K51: 234 | L51: 589 | N51: 88 | O51: 216 | P51: 30 | Q51: 521 | S51: 46 | T51: 49 | U51: 147 | V51: 3190 | W51: 7 | X51: =V51-F51-H51-M51-R51 -> 3075 | Y51: =F51+H51+M51+R51 -> 115
B52: Posiciones <220 kV | F52: 455 | H52: 369 | L52: 3 | O52: 1 | V52: 828 | X52: =V52-F52-H52-M52-R52 -> 4 | Y52: =F52+H52+M52+R52 -> 824
B53: Total posiciones | C53: =SUM(C50:C52) -> 611 | D53: =SUM(D50:D52) -> 302 | E53: 97 | F53: 530 | G53: 434 | H53: 409 | I53: 56 | J53: 249 | K53: 434 | L53: 725 | M53: 0 | N53: 191 | O53: 288 | P53: 38 | Q53: 624 | R53: 0 | S53: 115 | T53: 77 | U53: 225 | V53: =SUM(V50:V52) -> 5412 | W53: =SUM(W50:W52) -> 7 | X53: =SUM(X50:X52) -> 4473 | Y53: 939
B54: Δ2014/2013 | C54: =(C53/C39-1)*100 -> 0.6589785832 | D54: =(D53/D39-1)*100 -> 0 | E54: 0 | F54: 4.743083004 | G54: 4.830917874 | H54: 1.488833747 | I54: 0 | J54: 2.469135802 | K54: 0.2309468822 | L54: 2.401129944 | N54: 0.5263157895 | O54: 1.052631579 | P54: 0 | Q54: 0.6451612903 | S54: 7.476635514 | T54: 0 | U54: 0.4464285714 | V54: 1.786721836 | W54: 0 | X54: 1.474591652 | Y54: 3.300330033
B55: Transformadores | C55: 14420 | D55: 4674 | E55: 1299.2 | F55: 2793 | G55: 7600 | H55: 1875 | I55: 2100 | J55: 1200 | K55: 6131 | L55: 11650 | N55: 2398.875 | O55: 5700 | P55: 600 | Q55: 11548.4 | S55: 3150 | T55: 1600 | U55: 4300 | V55: =SUM(C55:U55)+W55 -> 83939.475 | W55: 900 | X55: =V55-F55-H55-M55-R55 -> 79271.475 | Y55: =F55+H55+M55+R55 -> 4668
B56: Δ2014/2013 | C56: =(C55/C41-1)*100 -> 0 | D56: =(D55/D41-1)*100 -> 0 | E56: 0 | F56: 0 | G56: 0 | H56: 15.38461538 | I56: 0 | J56: 0 | K56: 0 | L56: 11.48325359 | N56: 0 | O56: 0 | P56: 0 | Q56: 11.59599552 | S56: 0 | T56: 0 | U56: 0 | V56: 3.259954625 | W56: 0 | X56: 3.122094379 | Y56: =(Y55/Y41-1)*100 -> 5.658669081
B57: 2015
B58: CCAA | C58: Andalucía | D58: Aragón | E58: Asturias | F58: Baleares | G58: C. Valenciana | H58: Canarias | I58: Cantabria | J58: Castilla-La Mancha | K58: Castilla y León | L58: Cataluña | M58: Ceuta | N58: Extremadura | O58: Galicia | P58: La Rioja | Q58: Madrid | R58: Melilla | S58: Murcia | T58: Navarra | U58: País Vasco | V58: TOTAL | W58: MÓVILES | X58: PENINSULAR | Y58: NO PENINSULAR
B59: km líneas 400 kV | C59: 2769.149578 | D59: 1331.49794 | E59: 491.6751643 | F59: 0 | G59: 1018.009472 | H59: 0 | I59: 240.5127043 | J59: 2578.534496 | K59: 4572.484032 | L59: 2185.196192 | N59: 2285.508458 | O59: 1201.105727 | P59: 114.9490595 | Q59: 915.3560257 | S59: 708.1121371 | T59: 175.9700702 | U59: 595.7783434 | V59: =SUM(C59:U59)+W59 -> 21183.8394 | X59: =V59-F59-H59-M59-R59 -> 21183.8394 | Y59: =F59+H59+M59+R59 -> 0
B60: km líneas 220 kV | C60: 3201.047795 | D60: 1848.840817 | E60: 420.2268202 | F60: 431.37 | G60: 1264.14826 | H60: 215.867 | I60: 293.0877929 | J60: 1496.730639 | K60: 3206.358862 | L60: 2481.353254 | N60: 861.2438674 | O60: 1324.479 | P60: 156.3322424 | Q60: 1177.349551 | S60: 107.27374 | T60: 318.8290202 | U60: 690.2796786 | V60: =SUM(C60:U60)+W60 -> 19494.81834 | X60: =V60-F60-H60-M60-R60 -> 18847.58134 | Y60: =F60+H60+M60+R60 -> 647.237
B61: km líneas <220 kV | F61: 1242.324 | H61: 1131.092 | L61: 39.44 | N61: 23 | O61: 12.3 | V61: 2448.156 | X61: =V61-F61-H61-M61-R61 -> 74.74 | Y61: =F61+H61+M61+R61 -> 2373.416
B62: Total km líneas | C62: =SUM(C59:C61) -> 5970.197373 | D62: =SUM(D59:D61) -> 3180.338758 | E62: 911.9019845 | F62: 1673.694 | G62: 2282.157732 | H62: 1346.959 | I62: 533.6004973 | J62: 4075.265136 | K62: 7778.842894 | L62: 4705.989446 | M62: 0 | N62: 3169.752325 | O62: 2537.884727 | P62: 271.2813019 | Q62: 2092.705577 | R62: 0 | S62: 815.3858771 | T62: 494.7990904 | U62: 1286.058022 | V62: =SUM(V59:V61) -> 43126.81374 | X62: 40106.16074 | Y62: 3020.653
B63: Δ2015/2014 | C63: =(C62/C48-1)*100 -> 0.5404078772 | D63: =(D62/D48-1)*100 -> 1.381898481 | E63: 0 | F63: 8.330970846 | G63: 0.3579126191 | H63: 4.485488331 | I63: 3.531234467 | J63: 0 | K63: 0.01814223537 | L63: 0.3766800137 | N63: 2.386072603 | O63: 0 | P63: 0 | Q63: 0 | S63: 0 | T63: 0 | U63: 2.871307828 | V63: 0.9767157664 | X63: 0.5783394346 | Y63: 6.58180308
B64: Posiciones 400 kV | C64: 195 | D64: 98 | E64: 52 | G64: 153 | I64: 15 | J64: 112 | K64: 219 | L64: 136 | N64: 103 | O64: 71 | P64: 8 | Q64: 103 | S64: 69 | T64: 28 | U64: 79 | V64: =SUM(C64:U64)+W64 -> 1441 | X64: =V64-F64-H64-M64-R64 -> 1441 | Y64: =F64+H64+M64+R64 -> 0
B65: Posiciones 220 kV | C65: 436 | D65: 214 | E65: 45 | F65: 75 | G65: 291 | H65: 46 | I65: 50 | J65: 137 | K65: 242 | L65: 595 | N65: 88 | O65: 216 | P65: 30 | Q65: 521 | S65: 48 | T65: 49 | U65: 147 | V65: =SUM(C65:U65)+W65 -> 3237 | W65: 7 | X65: =V65-F65-H65-M65-R65 -> 3116 | Y65: =F65+H65+M65+R65 -> 121
B66: Posiciones <220 kV | F66: 488 | H66: 378 | L66: 3 | O66: 1 | V66: 870 | X66: =V66-F66-H66-M66-R66 -> 4 | Y66: =F66+H66+M66+R66 -> 866
B67: Total posiciones | C67: =SUM(C64:C66) -> 631 | D67: =SUM(D64:D66) -> 312 | E67: 97 | F67: 563 | G67: 444 | H67: 424 | I67: 65 | J67: 249 | K67: 461 | L67: 734 | M67: 0 | N67: 191 | O67: 288 | P67: 38 | Q67: 624 | R67: 0 | S67: 117 | T67: 77 | U67: 226 | V67: =SUM(V64:V66) -> 5548 | W67: =SUM(W64:W66) -> 7 | X67: =SUM(X64:X66) -> 4561 | Y67: 987
B68: Δ2015/2014 | C68: =(C67/C53-1)*100 -> 3.273322422 | D68: =(D67/D53-1)*100 -> 3.311258278 | E68: 0 | F68: 6.226415094 | G68: 2.304147465 | H68: 3.667481663 | I68: 16.07142857 | J68: 0 | K68: 6.221198157 | L68: 1.24137931 | N68: 0 | O68: 0 | P68: 0 | Q68: 0 | S68: 1.739130435 | T68: 0 | U68: 0.4444444444 | V68: 2.51293422 | W68: 0 | X68: 1.967359714 | Y68: 5.111821086
B69: Transformadores | C69: 14420 | D69: 4674 | E69: 1299.2 | F69: 3273 | G69: 7600 | H69: 2000 | I69: 2100 | J69: 1200 | K69: 6131 | L69: 11650 | N69: 2398.875 | O69: 5700 | P69: 600 | Q69: 11548.4 | S69: 3150 | T69: 1600 | U69: 4300 | V69: =SUM(C69:U69)+W69 -> 84544.475 | W69: 900 | X69: =V69-F69-H69-M69-R69 -> 79271.475 | Y69: =F69+H69+M69+R69 -> 5273
B70: Δ2015/2014 | C70: =(C69/C55-1)*100 -> 0 | D70: =(D69/D55-1)*100 -> 0 | E70: 0 | F70: 17.1858217 | G70: 0 | H70: 6.666666667 | I70: 0 | J70: 0 | K70: 0 | L70: 0 | N70: 0 | O70: 0 | P70: 0 | Q70: 0 | S70: 0 | T70: 0 | U70: 0 | V70: 0.7207574267 | W70: 0 | X70: 0 | Y70: 12.96058269
B71: 2016
B72: CCAA | C72: Andalucía | D72: Aragón | E72: Asturias | F72: Baleares | G72: C. Valenciana | H72: Canarias | I72: Cantabria | J72: Castilla-La Mancha | K72: Castilla y León | L72: Cataluña | M72: Ceuta | N72: Extremadura | O72: Galicia | P72: La Rioja | Q72: Madrid | R72: Melilla | S72: Murcia | T72: Navarra | U72: País Vasco | V72: TOTAL | W72: MÓVILES | X72: PENINSULAR | Y72: NO PENINSULAR
B73: km líneas 400 kV | C73: 2769.149578 | D73: 1520.63494 | E73: 529.2951643 | F73: 0 | G73: 1100.562472 | H73: 0 | I73: 240.5127043 | J73: 2578.534496 | K73: 4572.484032 | L73: 2185.196192 | N73: 2285.508458 | O73: 1326.937727 | P73: 114.9490595 | Q73: 915.3560257 | S73: 708.1121371 | T73: 175.9700702 | U73: 595.7783434 | V73: =SUM(C73:U73)+W73 -> 21618.9814 | X73: =V73-F73-H73-M73-R73 -> 21618.9814 | Y73: =F73+H73+M73+R73 -> 0
B74: km líneas 220 kV | C74: 3225.994 | D74: 1848.84 | E74: 420.226 | F74: 432.224 | G74: 1291.975 | H74: 220.243 | I74: 293.087 | J74: 1496.73 | K74: 3206.358862 | L74: 2499.21 | N74: 861.24 | O74: 1325.179 | P74: 156.3322424 | Q74: 1177.34 | S74: 123.86974 | T74: 318.82 | U74: 690.309 | V74: =SUM(C74:U74)+W74 -> 19587.97784 | X74: =V74-F74-H74-M74-R74 -> 18935.51084 | Y74: =F74+H74+M74+R74 -> 652.467
B75: km líneas <220 kV | F75: 1367.809 | H75: 1133.922 | L75: 39.44 | N75: 23 | O75: 12.3 | V75: 2576.471 | X75: =V75-F75-H75-M75-R75 -> 74.74 | Y75: =F75+H75+M75+R75 -> 2501.731
B76: Total km líneas | C76: =SUM(C73:C75) -> 5995.143578 | D76: =SUM(D73:D75) -> 3369.47494 | E76: 949.5211643 | F76: 1800.033 | G76: 2392.537472 | H76: 1354.165 | I76: 533.5997043 | J76: 4075.264496 | K76: 7778.842894 | L76: 4723.846192 | M76: 0 | N76: 3169.748458 | O76: 2664.416727 | P76: 271.2813019 | Q76: 2092.696026 | R76: 0 | S76: 831.9818771 | T76: 494.7900702 | U76: 1286.087343 | V76: =SUM(V73:V75) -> 43783.43024 | X76: =SUM(X73:X75) -> 40629.23224 | Y76: 3154.198
B77: Δ2016/2015 | C77: =(C76/C62-1)*100 -> 0.4178455667 | D77: =(D76/D62-1)*100 -> 5.947045186 | E77: 4.12535343 | F77: 7.548512452 | G77: 4.836639399 | H77: 0.5349828762 | I77: -0.000148599804 | J77: -1.569217195e-05 | K77: 0 | L77: 0.3794472157 | N77: -0.0001220102962 | O77: 4.985726839 | P77: 0 | Q77: -0.0004563879442 | S77: 2.035355341 | T77: -0.001823002951 | U77: 0.002279944526 | V77: =(V76/V62-1)*100 -> 1.522524961 | X77: =(X76/X62-1)*100 -> 1.304217344 | Y77: 4.421063922
B78: Posiciones 400 kV | C78: 196 | D78: 98 | E78: 52 | G78: 167 | I78: 15 | J78: 113 | K78: 219 | L78: 136 | N78: 103 | O78: 71 | P78: 8 | Q78: 103 | S78: 69 | T78: 28 | U78: 80 | V78: =SUM(C78:U78)+W78 -> 1458 | X78: =V78-F78-H78-M78-R78 -> 1458 | Y78: =F78+H78+M78+R78 -> 0
B79: Posiciones 220 kV | C79: 438 | D79: 214 | E79: 45 | F79: 76 | G79: 297 | H79: 55 | I79: 50 | J79: 137 | K79: 243 | L79: 595 | N79: 88 | O79: 222 | P79: 30 | Q79: 523 | S79: 48 | T79: 49 | U79: 148 | V79: =SUM(C79:U79)+W79 -> 3265 | W79: 7 | X79: =V79-F79-H79-M79-R79 -> 3134 | Y79: =F79+H79+M79+R79 -> 131
B80: Posiciones <220 kV | F80: 495 | H80: 389 | L80: 3 | O80: 1 | V80: 888 | X80: =V80-F80-H80-M80-R80 -> 4 | Y80: =F80+H80+M80+R80 -> 884
B81: Total posiciones | C81: =SUM(C78:C80) -> 634 | D81: =SUM(D78:D80) -> 312 | E81: 97 | F81: 571 | G81: 464 | H81: 444 | I81: 65 | J81: 250 | K81: 462 | L81: 734 | M81: 0 | N81: 191 | O81: 294 | P81: 38 | Q81: 626 | R81: 0 | S81: 117 | T81: 77 | U81: 228 | V81: =SUM(V78:V80) -> 5611 | W81: =SUM(W78:W80) -> 7 | X81: =SUM(X78:X80) -> 4596 | Y81: 1015
B82: Δ2016/2015 | C82: =(C81/C67-1)*100 -> 0.4754358162 | D82: =(D81/D67-1)*100 -> 0 | E82: 0 | F82: 1.420959147 | G82: 4.504504505 | H82: 4.716981132 | I82: 0 | J82: 0.4016064257 | K82: 0.2169197397 | L82: 0 | N82: 0 | O82: 2.083333333 | P82: 0 | Q82: 0.3205128205 | S82: 0 | T82: 0 | U82: 0.8849557522 | V82: =(V81/V67-1)*100 -> 1.13554434 | W82: 0 | X82: 0.7673755755 | Y82: 2.836879433
B83: Transformadores | C83: 14420 | D83: =4674+300 -> 4974 | E83: 1299.2 | F83: 3273 | G83: 8200 | H83: 2000 | I83: 2100 | J83: 1200 | K83: 6131 | L83: 11650 | N83: 2398.875 | O83: 5700 | P83: 600 | Q83: 11548.4 | S83: 3150 | T83: 1600 | U83: 4300 | V83: =SUM(C83:U83)+W83 -> 85444.475 | W83: 900 | X83: =V83-F83-H83-M83-R83 -> 80171.475 | Y83: =F83+H83+M83+R83 -> 5273
B84: Δ2016/2015 | C84: =(C83/C69-1)*100 -> 0 | D84: =(D83/D69-1)*100 -> 6.418485237 | E84: 0 | F84: 0 | G84: 7.894736842 | H84: 0 | I84: 0 | J84: 0 | K84: 0 | L84: 0 | N84: 0 | O84: 0 | P84: 0 | Q84: 0 | S84: 0 | T84: 0 | U84: 0 | V84: =(V83/V69-1)*100 -> 1.064528463 | W84: 0 | X84: 1.135339036 | Y84: 0

Sheet EVOLUCION_RdT (hidden)
B2: evolución líneas | C2: Andalucía | D2: Aragón | E2: Asturias | F2: Baleares | G2: C. Valenciana | H2: Canarias | I2: Cantabria | J2: Castilla-La Mancha | K2: Castilla y León | L2: Cataluña | M2: Ceuta | N2: Extremadura | O2: Galicia | P2: La Rioja | Q2: Madrid | R2: Melilla | S2: Murcia | T2: Navarra | U2: País Vasco | V2: TOTAL | W2: MÓVILES | X2: Resto nacional
A3: 2011 | B3: líneas | C3: =datos_RdT!C6 -> 5565.866233 | D3: =datos_RdT!D6 -> 2978.144758 | E3: =datos_RdT!E6 -> 843.7379845 | F3: =datos_RdT!F6 -> 1540.526 | G3: =datos_RdT!G6 -> 2074.422732 | H3: =datos_RdT!H6 -> 1289.05 | I3: =datos_RdT!I6 -> 515.4004973 | J3: =datos_RdT!J6 -> 3736.475136 | K3: =datos_RdT!K6 -> 7753.277894 | L3: =datos_RdT!L6 -> 4529.894446 | M3: =datos_RdT!M6 -> 0 | N3: =datos_RdT!N6 -> 2435.036825 | O3: =datos_RdT!O6 -> 2417.595727 | P3: =datos_RdT!P6 -> 255.0026019 | Q3: =datos_RdT!Q6 -> 2065.462577 | R3: =datos_RdT!R6 -> 0 | S3: =datos_RdT!S6 -> 800.8558771 | T3: =datos_RdT!T6 -> 494.7990904 | U3: =datos_RdT!U6 -> 1206.198022 | V3: =SUM(C3:U3) -> 40501.7464 | X3: =V3-D3 -> 37523.60164
A4: 2011 | B4: posiciones | C4: =datos_RdT!C11 -> 573 | D4: =datos_RdT!D11 -> 286 | E4: =datos_RdT!E11 -> 88 | F4: =datos_RdT!F11 -> 504 | G4: =datos_RdT!G11 -> 362 | H4: =datos_RdT!H11 -> 403 | I4: =datos_RdT!I11 -> 52 | J4: =datos_RdT!J11 -> 214 | K4: =datos_RdT!K11 -> 423 | L4: =datos_RdT!L11 -> 672 | M4: =datos_RdT!M11 -> 0 | N4: =datos_RdT!N11 -> 146 | O4: =datos_RdT!O11 -> 265 | P4: =datos_RdT!P11 -> 30 | Q4: =datos_RdT!Q11 -> 574 | R4: =datos_RdT!R11 -> 0 | S4: =datos_RdT!S11 -> 87 | T4: =datos_RdT!T11 -> 75 | U4: =datos_RdT!U11 -> 220 | V4: =SUM(C4:U4)+W4 -> 4981 | W4: =datos_RdT!W11 -> 7 | X4: =V4-D4 -> 4695
A5: 2011 | B5: transformadores | C5: =datos_RdT!C13 -> 13620 | D5: =datos_RdT!D13 -> 4074 | E5: =datos_RdT!E13 -> 1299.2 | F5: =datos_RdT!F13 -> 2248 | G5: =datos_RdT!G13 -> 6925 | H5: =datos_RdT!H13 -> 1625 | I5: =datos_RdT!I13 -> 1500 | J5: =datos_RdT!J13 -> 600 | K5: =datos_RdT!K13 -> 6131 | L5: =datos_RdT!L13 -> 9350 | M5: =datos_RdT!M13 -> 0 | N5: =datos_RdT!N13 -> 1798.875 | O5: =datos_RdT!O13 -> 5700 | P5: =datos_RdT!P13 -> 0 | Q5: =datos_RdT!Q13 -> 10348.4 | R5: =datos_RdT!R13 -> 0 | S5: =datos_RdT!S13 -> 3150 | T5: =datos_RdT!T13 -> 1000 | U5: =datos_RdT!U13 -> 3200 | V5: =SUM(C5:U5) -> 72569.475 | W5: =datos_RdT!W13 -> 300 | X5: =V5-D5 -> 68495.475
A6: 2011 | B6: líneas | C6: =datos_RdT!C7/100 -> 0.008056678223 | D6: =datos_RdT!D7/100 -> 0.07994308977 | E6: =datos_RdT!E7/100 -> 0.3636843416 | F6: =datos_RdT!F7/100 -> 0.2033648341 | G6: =datos_RdT!G7/100 -> 0.1976277794 | H6: =datos_RdT!H7/100 -> 0 | I6: =datos_RdT!I7/100 -> 0.1430532545 | J6: =datos_RdT!J7/100 -> 0.002351309432 | K6: =datos_RdT!K7/100 -> 0.05103284444 | L6: =datos_RdT!L7/100 -> 0.01015868681 | M6: =datos_RdT!M7/100 -> 0 | N6: =datos_RdT!N7/100 -> 0.03195581922 | O6: =datos_RdT!O7/100 -> 0.01442801495 | P6: =datos_RdT!P7/100 -> 0.07644814509 | Q6: =datos_RdT!Q7/100 -> 0.008869222591 | R6: =datos_RdT!R7/100 -> 0 | S6: =datos_RdT!S7/100 -> 0.005715147717 | T6: =datos_RdT!T7/100 -> 0 | U6: =datos_RdT!U7/100 -> 0.0008546526137 | V6: =datos_RdT!V7/100 -> 0.04487716443
A7: 2011 | B7: posiciones | C7: =datos_RdT!C12/100 -> 0.04181818182 | D7: =datos_RdT!D12/100 -> 0.1578947368 | E7: =datos_RdT!E12/100 -> 0.07317073171 | F7: =datos_RdT!F12/100 -> 0.06779661017 | G7: =datos_RdT!G12/100 -> 0.1036585366 | H7: =datos_RdT!H12/100 -> 0.01767676768 | I7: =datos_RdT!I12/100 -> 0 | J7: =datos_RdT!J12/100 -> 0.08080808081 | K7: =datos_RdT!K12/100 -> 0.02173913043 | L7: =datos_RdT!L12/100 -> 0.03384615385 | M7: =datos_RdT!M12/100 -> 0 | N7: =datos_RdT!N12/100 -> 0.02097902098 | O7: =datos_RdT!O12/100 -> 0.07723577236 | P7: =datos_RdT!P12/100 -> 0.07142857143 | Q7: =datos_RdT!Q12/100 -> 0.03237410072 | R7: =datos_RdT!R12/100 -> 0 | S7: =datos_RdT!S12/100 -> 0.0875 | T7: =datos_RdT!T12/100 -> 0 | U7: =datos_RdT!U12/100 -> 0.004566210046 | V7: =datos_RdT!V12/100 -> 0.05017921147
A8: 2011 | B8: transformadores | C8: =datos_RdT!C14/100 -> 0.04608294931 | D8: =datos_RdT!D14/100 -> 0 | E8: =datos_RdT!E14/100 -> 0 | F8: =datos_RdT!F14/100 -> 0.1251251251 | G8: =datos_RdT!G14/100 -> 0 | H8: =datos_RdT!H14/100 -> 0 | I8: =datos_RdT!I14/100 -> 0 | J8: =datos_RdT!J14/100 -> 0 | K8: =datos_RdT!K14/100 -> 0 | L8: =datos_RdT!L14/100 -> 0 | M8: =datos_RdT!M14/100 -> 0 | N8: =datos_RdT!N14/100 -> 0 | O8: =datos_RdT!O14/100 -> 0 | P8: =datos_RdT!P14/100 -> 0 | Q8: =datos_RdT!Q14/100 -> 0 | R8: =datos_RdT!R14/100 -> 0 | S8: =datos_RdT!S14/100 -> 0.6153846154 | T8: =datos_RdT!T14/100 -> 0 | U8: =datos_RdT!U14/100 -> 0 | V8: =datos_RdT!V14/100 -> 0.03773881818
A9: 2012 | B9: líneas | C9: =datos_RdT!C20 -> 5672.624233 | D9: =datos_RdT!D20 -> 3136.388758 | E9: =datos_RdT!E20 -> 843.7379845 | F9: =datos_RdT!F20 -> 1543.531 | G9: =datos_RdT!G20 -> 2126.582732 | H9: =datos_RdT!H20 -> 1289.05 | I9: =datos_RdT!I20 -> 515.4004973 | J9: =datos_RdT!J20 -> 4035.015136 | K9: =datos_RdT!K20 -> 7777.431894 | L9: =datos_RdT!L20 -> 4533.230446 | M9: =datos_RdT!M20 -> 0 | N9: =datos_RdT!N20 -> 2439.881825 | O9: =datos_RdT!O20 -> 2531.455727 | P9: =datos_RdT!P20 -> 271.2813019 | Q9: =datos_RdT!Q20 -> 2079.126577 | R9: =datos_RdT!R20 -> 0 | S9: =datos_RdT!S20 -> 815.3858771 | T9: =datos_RdT!T20 -> 494.7990904 | U9: =datos_RdT!U20 -> 1206.198022 | V9: =SUM(C9:U9) -> 41311.1211 | X9: =V9-D9 -> 38174.73234
A10: 2012 | B10: posiciones | C10: =datos_RdT!C25 -> 583 | D10: =datos_RdT!D25 -> 295 | E10: =datos_RdT!E25 -> 88 | F10: =datos_RdT!F25 -> 504 | G10: =datos_RdT!G25 -> 388 | H10: =datos_RdT!H25 -> 403 | I10: =datos_RdT!I25 -> 56 | J10: =datos_RdT!J25 -> 240 | K10: =datos_RdT!K25 -> 433 | L10: =datos_RdT!L25 -> 700 | M10: =datos_RdT!M25 -> 0 | N10: =datos_RdT!N25 -> 164 | O10: =datos_RdT!O25 -> 272 | P10: =datos_RdT!P25 -> 38 | Q10: =datos_RdT!Q25 -> 599 | R10: =datos_RdT!R25 -> 0 | S10: =datos_RdT!S25 -> 101 | T10: =datos_RdT!T25 -> 75 | U10: =datos_RdT!U25 -> 224 | V10: =SUM(C10:U10)+W10 -> 5170 | W10: =datos_RdT!W25 -> 7 | X10: =V10-D10 -> 4875
A11: 2012 | B11: transformadores | C11: =datos_RdT!C27 -> 14420 | D11: =datos_RdT!D27 -> 4674 | E11: =datos_RdT!E27 -> 1299.2 | F11: =datos_RdT!F27 -> 2408 | G11: =datos_RdT!G27 -> 7525 | H11: =datos_RdT!H27 -> 1625 | I11: =datos_RdT!I27 -> 1500 | J11: =datos_RdT!J27 -> 1200 | K11: =datos_RdT!K27 -> 6131 | L11: =datos_RdT!L27 -> 10450 | M11: =datos_RdT!M27 -> 0 | N11: =datos_RdT!N27 -> 1798.875 | O11: =datos_RdT!O27 -> 5700 | P11: =datos_RdT!P27 -> 600 | Q11: =datos_RdT!Q27 -> 10348.4 | R11: =datos_RdT!R27 -> 0 | S11: =datos_RdT!S27 -> 3150 | T11: =datos_RdT!T27 -> 1000 | U11: =datos_RdT!U27 -> 4300 | V11: =SUM(C11:U11) -> 78129.475 | W11: =datos_RdT!W27 -> 500 | X11: =V11-D11 -> 73455.475
A12: 2012 | B12: líneas | C12: =(C9/C3-1) -> 0.01918084185 | D12: =(D9/D3-1) -> 0.05313509345 | E12: =(E9/E3-1) -> 0 | F12: =(F9/F3-1) -> 0.001950632446 | G12: 0.0251443446 | H12: 0 | I12: 0 | J12: 0.07989883223 | K12: 0.003115327521 | L12: 0.000736441001 | N12: 0.001989702968 | O12: 0.04709637708 | P12: 0.06383738785 | Q12: 0.006615467235 | S12: 0.01814308968 | T12: 0 | U12: 0 | V12: 0.01998369878
A13: 2012 | B13: posiciones | C13: =(C10/C4-1) -> 0.01745200698 | D13: =(D10/D4-1) -> 0.03146853147 | E13: 0 | F13: 0 | G13: 0.07182320442 | H13: 0 | I13: 0.07692307692 | J13: 0.1214953271 | K13: 0.02364066194 | L13: 0.04166666667 | N13: 0.1232876712 | O13: 0.02641509434 | P13: 0.2666666667 | Q13: 0.04355400697 | S13: 0.1609195402 | T13: 0 | U13: 0.01818181818 | V13: 0.03794418791
A14: 2012 | B14: transformadores | C14: =(C11/C5-1) -> 0.05873715125 | D14: =(D11/D5-1) -> 0.147275405 | E14: 0 | F14: 0.07117437722 | G14: 0.08664259928 | H14: 0 | I14: 0 | K14: 0 | L14: 0.1176470588 | N14: 0 | O14: 0 | Q14: 0 | S14: 0 | T14: 0 | U14: 0.34375 | V14: 0.07661623568
A15: 2013 | B15: líneas | C15: =datos_RdT!C34 -> 5831.566873 | D15: =datos_RdT!D34 -> 3136.988758 | E15: =datos_RdT!E34 -> 911.9019845 | F15: =datos_RdT!F34 -> 1543.531 | G15: =datos_RdT!G34 -> 2233.090732 | H15: =datos_RdT!H34 -> 1289.05 | I15: =datos_RdT!I34 -> 515.4004973 | J15: =datos_RdT!J34 -> 4035.015136 | K15: =datos_RdT!K34 -> 7777.431894 | L15: =datos_RdT!L34 -> 4533.230446 | M15: =datos_RdT!M34 -> 0 | N15: =datos_RdT!N34 -> 2858.709825 | O15: =datos_RdT!O34 -> 2531.455727 | P15: =datos_RdT!P34 -> 271.2813019 | Q15: =datos_RdT!Q34 -> 2086.012577 | R15: =datos_RdT!R34 -> 0 | S15: =datos_RdT!S34 -> 815.3858771 | T15: =datos_RdT!T34 -> 494.7990904 | U15: =datos_RdT!U34 -> 1250.162022 | V15: =SUM(C15:U15) -> 42115.01374 | X15: =V15-D15 -> 38978.02498
A16: 2013 | B16: posiciones | C16: =datos_RdT!C39 -> 607 | D16: =datos_RdT!D39 -> 302 | E16: =datos_RdT!E39 -> 97 | F16: =datos_RdT!F39 -> 506 | G16: =datos_RdT!G39 -> 414 | H16: =datos_RdT!H39 -> 403 | I16: =datos_RdT!I39 -> 56 | J16: =datos_RdT!J39 -> 243 | K16: =datos_RdT!K39 -> 433 | L16: =datos_RdT!L39 -> 708 | M16: =datos_RdT!M39 -> 0 | N16: =datos_RdT!N39 -> 190 | O16: =datos_RdT!O39 -> 285 | P16: =datos_RdT!P39 -> 38 | Q16: =datos_RdT!Q39 -> 620 | R16: =datos_RdT!R39 -> 0 | S16: =datos_RdT!S39 -> 107 | T16: =datos_RdT!T39 -> 77 | U16: =datos_RdT!U39 -> 224 | V16: =SUM(C16:U16)+W16 -> 5317 | W16: =datos_RdT!W39 -> 7 | X16: =V16-D16 -> 5015
A17: 2013 | B17: transformadores | C17: =datos_RdT!C41 -> 14420 | D17: =datos_RdT!D41 -> 4674 | E17: =datos_RdT!E41 -> 1299.2 | F17: =datos_RdT!F41 -> 2793 | G17: =datos_RdT!G41 -> 7600 | H17: =datos_RdT!H41 -> 1625 | I17: =datos_RdT!I41 -> 2100 | J17: =datos_RdT!J41 -> 1200 | K17: =datos_RdT!K41 -> 6131 | L17: =datos_RdT!L41 -> 10450 | M17: =datos_RdT!M41 -> 0 | N17: =datos_RdT!N41 -> 2398.875 | O17: =datos_RdT!O41 -> 5700 | P17: =datos_RdT!P41 -> 600 | Q17: =datos_RdT!Q41 -> 10348.4 | R17: =datos_RdT!R41 -> 0 | S17: =datos_RdT!S41 -> 3150 | T17: =datos_RdT!T41 -> 1600 | U17: =datos_RdT!U41 -> 4300 | V17: =SUM(C17:U17) -> 80389.475 | W17: =datos_RdT!W41 -> 900 | X17: =V17-D17 -> 75715.475
A18: 2013 | B18: líneas | C18: =(C15/C9-1) -> 0.02801924356 | D18: =(D15/D9-1) -> 0.0001913028156 | E18: 0.08078811344 | F18: 0 | G18: 0.05008410838 | H18: 0 | I18: 0 | J18: 0 | K18: 0 | L18: 0 | N18: 0.1716591335 | O18: -2.220446049e-16 | P18: 0 | Q18: 0.003311967668 | S18: 0 | T18: 0 | U18: 0.03644840996 | V18: 0.01945947286
A19: 2013 | B19: posiciones | C19: =(C16/C10-1) -> 0.04116638079 | D19: =(D16/D10-1) -> 0.02372881356 | E19: 0.1022727273 | F19: 0.003968253968 | G19: 0.06701030928 | H19: 0 | I19: 0 | J19: 0.0125 | K19: 0 | L19: 0.01142857143 | N19: 0.1585365854 | O19: 0.04779411765 | P19: 0 | Q19: 0.03505843072 | S19: 0.05940594059 | T19: 0.02666666667 | U19: 0 | V19: 0.02843326886
A20: 2013 | B20: transformadores | C20: =(C17/C11-1) -> 0 | D20: =(D17/D11-1) -> 0 | E20: 0 | F20: 0.1598837209 | G20: 0.009966777409 | H20: 0 | I20: 0.4 | J20: =(J17/J11-1) -> 0 | K20: 0 | L20: 0 | N20: 0.333541797 | O20: 0 | Q20: 0 | S20: 0 | T20: 0.6 | U20: 0 | V20: 0.0289263431
A21: 2014 | B21: líneas | C21: =datos_RdT!C48 -> 5938.107373 | D21: =datos_RdT!D48 -> 3136.988758 | E21: =datos_RdT!E48 -> 911.9019845 | F21: =datos_RdT!F48 -> 1544.982 | G21: =datos_RdT!G48 -> 2274.018732 | H21: =datos_RdT!H48 -> 1289.135 | I21: =datos_RdT!I48 -> 515.4004973 | J21: =datos_RdT!J48 -> 4075.265136 | K21: =datos_RdT!K48 -> 7777.431894 | L21: =datos_RdT!L48 -> 4688.329446 | M21: =datos_RdT!M48 -> 0 | N21: =datos_RdT!N48 -> 3095.882325 | O21: =datos_RdT!O48 -> 2537.884727 | P21: =datos_RdT!P48 -> 271.2813019 | Q21: =datos_RdT!Q48 -> 2092.705577 | R21: =datos_RdT!R48 -> 0 | S21: =datos_RdT!S48 -> 815.3858771 | T21: =datos_RdT!T48 -> 494.7990904 | U21: =datos_RdT!U48 -> 1250.162022 | V21: =SUM(C21:U21) -> 42709.66174 | X21: =V21-D21 -> 39572.67298
A22: 2014 | B22: posiciones | C22: =datos_RdT!C53 -> 611 | D22: =datos_RdT!D53 -> 302 | E22: =datos_RdT!E53 -> 97 | F22: =datos_RdT!F53 -> 530 | G22: =datos_RdT!G53 -> 434 | H22: =datos_RdT!H53 -> 409 | I22: =datos_RdT!I53 -> 56 | J22: =datos_RdT!J53 -> 249 | K22: =datos_RdT!K53 -> 434 | L22: =datos_RdT!L53 -> 725 | M22: =datos_RdT!M53 -> 0 | N22: =datos_RdT!N53 -> 191 | O22: =datos_RdT!O53 -> 288 | P22: =datos_RdT!P53 -> 38 | Q22: =datos_RdT!Q53 -> 624 | R22: =datos_RdT!R53 -> 0 | S22: =datos_RdT!S53 -> 115 | T22: =datos_RdT!T53 -> 77 | U22: =datos_RdT!U53 -> 225 | V22: =SUM(C22:U22)+W22 -> 5412 | W22: =datos_RdT!W53 -> 7 | X22: =V22-D22 -> 5110
A23: 2014 | B23: transformadores | C23: =datos_RdT!C55 -> 14420 | D23: =datos_RdT!D55 -> 4674 | E23: =datos_RdT!E55 -> 1299.2 | F23: =datos_RdT!F55 -> 2793 | G23: =datos_RdT!G55 -> 7600 | H23: =datos_RdT!H55 -> 1875 | I23: =datos_RdT!I55 -> 2100 | J23: =datos_RdT!J55 -> 1200 | K23: =datos_RdT!K55 -> 6131 | L23: =datos_RdT!L55 -> 11650 | M23: =datos_RdT!M55 -> 0 | N23: =datos_RdT!N55 -> 2398.875 | O23: =datos_RdT!O55 -> 5700 | P23: =datos_RdT!P55 -> 600 | Q23: =datos_RdT!Q55 -> 11548.4 | R23: =datos_RdT!R55 -> 0 | S23: =datos_RdT!S55 -> 3150 | T23: =datos_RdT!T55 -> 1600 | U23: =datos_RdT!U55 -> 4300 | V23: =SUM(C23:U23) -> 83039.475 | W23: =datos_RdT!W55 -> 900 | X23: =V23-D23 -> 78365.475
A24: 2014 | B24: líneas | C24: =(C21/C15-1) -> 0.01826961815 | D24: =(D21/D15-1) -> 0 | E24: 0 | F24: 0.0009400523864 | G24: 0.01832796107 | H24: 6.594003336e-05 | I24: 0 | J24: 0.009975179435 | K24: 0 | L24: 0.03421379121 | N24: 0.08296487383 | O24: 0.002539645442 | P24: 0 | Q24: 0.003208513734 | S24: 0 | T24: 0 | U24: 0 | V24: 0.01411962023
A25: 2014 | B25: posiciones | C25: =(C22/C16-1) -> 0.006589785832 | D25: =(D22/D16-1) -> 0 | E25: 0 | F25: 0.04743083004 | G25: 0.04830917874 | H25: 0.01488833747 | I25: 0 | J25: 0.02469135802 | K25: 0.002309468822 | L25: 0.02401129944 | N25: 0.005263157895 | O25: 0.01052631579 | P25: 0 | Q25: 0.006451612903 | S25: 0.07476635514 | T25: 0 | U25: 0.004464285714 | V25: 0.01786721836
A26: 2014 | B26: transformadores | C26: =(C23/C17-1) -> 0 | D26: =(D23/D17-1) -> 0 | E26: 0 | F26: 0 | G26: 0 | H26: 0.1538461538 | I26: 0 | J26: 0 | K26: 0 | L26: 0.1148325359 | N26: 0 | O26: 0 | P26: 0 | Q26: 0.1159599552 | S26: 0 | T26: 0 | U26: 0 | V26: 0.03296451432
A27: 2015 | B27: líneas | C27: =datos_RdT!C62 -> 5970.197373 | D27: =datos_RdT!D62 -> 3180.338758 | E27: =datos_RdT!E62 -> 911.9019845 | F27: =datos_RdT!F62 -> 1673.694 | G27: =datos_RdT!G62 -> 2282.157732 | H27: =datos_RdT!H62 -> 1346.959 | I27: =datos_RdT!I62 -> 533.6004973 | J27: =datos_RdT!J62 -> 4075.265136 | K27: =datos_RdT!K62 -> 7778.842894 | L27: =datos_RdT!L62 -> 4705.989446 | M27: =datos_RdT!M62 -> 0 | N27: =datos_RdT!N62 -> 3169.752325 | O27: =datos_RdT!O62 -> 2537.884727 | P27: =datos_RdT!P62 -> 271.2813019 | Q27: =datos_RdT!Q62 -> 2092.705577 | R27: =datos_RdT!R62 -> 0 | S27: =datos_RdT!S62 -> 815.3858771 | T27: =datos_RdT!T62 -> 494.7990904 | U27: =datos_RdT!U62 -> 1286.058022 | V27: 43126.81374 | X27: =V27-D27 -> 39946.47498
A28: 2015 | B28: posiciones | C28: =datos_RdT!C67 -> 631 | D28: =datos_RdT!D67 -> 312 | E28: =datos_RdT!E67 -> 97 | F28: =datos_RdT!F67 -> 563 | G28: =datos_RdT!G67 -> 444 | H28: =datos_RdT!H67 -> 424 | I28: =datos_RdT!I67 -> 65 | J28: =datos_RdT!J67 -> 249 | K28: =datos_RdT!K67 -> 461 | L28: =datos_RdT!L67 -> 734 | M28: =datos_RdT!M67 -> 0 | N28: =datos_RdT!N67 -> 191 | O28: =datos_RdT!O67 -> 288 | P28: =datos_RdT!P67 -> 38 | Q28: =datos_RdT!Q67 -> 624 | R28: =datos_RdT!R67 -> 0 | S28: =datos_RdT!S67 -> 117 | T28: =datos_RdT!T67 -> 77 | U28: =datos_RdT!U67 -> 226 | V28: =SUM(C28:U28)+W28 -> 5548 | W28: =datos_RdT!W67 -> 7 | X28: =V28-D28 -> 5236
A29: 2015 | B29: transformadores | C29: =datos_RdT!C69 -> 14420 | D29: =datos_RdT!D69 -> 4674 | E29: =datos_RdT!E69 -> 1299.2 | F29: =datos_RdT!F69 -> 3273 | G29: =datos_RdT!G69 -> 7600 | H29: =datos_RdT!H69 -> 2000 | I29: =datos_RdT!I69 -> 2100 | J29: =datos_RdT!J69 -> 1200 | K29: =datos_RdT!K69 -> 6131 | L29: =datos_RdT!L69 -> 11650 | M29: =datos_RdT!M69 -> 0 | N29: =datos_RdT!N69 -> 2398.875 | O29: =datos_RdT!O69 -> 5700 | P29: =datos_RdT!P69 -> 600 | Q29: =datos_RdT!Q69 -> 11548.4 | R29: =datos_RdT!R69 -> 0 | S29: =datos_RdT!S69 -> 3150 | T29: =datos_RdT!T69 -> 1600 | U29: =datos_RdT!U69 -> 4300 | V29: =SUM(C29:U29) -> 83644.475 | W29: =datos_RdT!W69 -> 900 | X29: =V29-D29 -> 78970.475
A30: 2015 | B30: líneas | C30: =(C27/C21-1) -> 0.005404078772 | D30: =(D27/D21-1) -> 0.01381898481 | E30: 0 | F30: 0.08330970846 | G30: 0.003579126191 | H30: 0.04485488331 | I30: 0.03531234467 | J30: 0 | K30: 0.0001814223537 | L30: 0.003766800137 | N30: 0.02386072603 | O30: 0 | P30: 0 | Q30: 0 | S30: 0 | T30: 0 | U30: 0.02871307828 | V30: 0.009767157664
A31: 2015 | B31: posiciones | C31: =(C28/C22-1) -> 0.03273322422 | D31: =(D28/D22-1) -> 0.03311258278 | E31: 0 | F31: 0.06226415094 | G31: 0.02304147465 | H31: 0.03667481663 | I31: 0.1607142857 | J31: 0 | K31: 0.06221198157 | L31: 0.0124137931 | N31: 0 | O31: 0 | P31: 0 | Q31: 0 | S31: 0.01739130435 | T31: 0 | U31: 0.004444444444 | V31: 0.0251293422
A32: 2015 | B32: transformadores | C32: =(C29/C23-1) -> 0 | D32: =(D29/D23-1) -> 0 | E32: 0 | F32: 0.171858217 | G32: 0 | H32: 0.06666666667 | I32: 0 | J32: 0 | K32: 0 | L32: 0 | N32: 0 | O32: 0 | P32: 0 | Q32: 0 | S32: 0 | T32: 0 | U32: 0 | V32: 0.007285691534
A33: 2016 | B33: líneas | C33: =datos_RdT!C76 -> 5995.143578 | D33: =datos_RdT!D76 -> 3369.47494 | E33: =datos_RdT!E76 -> 949.5211643 | F33: =datos_RdT!F76 -> 1800.033 | G33: =datos_RdT!G76 -> 2392.537472 | H33: =datos_RdT!H76 -> 1354.165 | I33: =datos_RdT!I76 -> 533.5997043 | J33: =datos_RdT!J76 -> 4075.264496 | K33: =datos_RdT!K76 -> 7778.842894 | L33: =datos_RdT!L76 -> 4723.846192 | M33: =datos_RdT!M76 -> 0 | N33: =datos_RdT!N76 -> 3169.748458 | O33: =datos_RdT!O76 -> 2664.416727 | P33: =datos_RdT!P76 -> 271.2813019 | Q33: =datos_RdT!Q76 -> 2092.696026 | R33: =datos_RdT!R76 -> 0 | S33: =datos_RdT!S76 -> 831.9818771 | T33: =datos_RdT!T76 -> 494.7900702 | U33: =datos_RdT!U76 -> 1286.087343 | V33: =datos_RdT!V76 -> 43783.43024 | X33: =V33-D33 -> 40413.9553
A34: 2016 | B34: posiciones | C34: =datos_RdT!C81 -> 634 | D34: =datos_RdT!D81 -> 312 | E34: =datos_RdT!E81 -> 97 | F34: =datos_RdT!F81 -> 571 | G34: =datos_RdT!G81 -> 464 | H34: =datos_RdT!H81 -> 444 | I34: =datos_RdT!I81 -> 65 | J34: =datos_RdT!J81 -> 250 | K34: =datos_RdT!K81 -> 462 | L34: =datos_RdT!L81 -> 734 | M34: =datos_RdT!M81 -> 0 | N34: =datos_RdT!N81 -> 191 | O34: =datos_RdT!O81 -> 294 | P34: =datos_RdT!P81 -> 38 | Q34: =datos_RdT!Q81 -> 626 | R34: =datos_RdT!R81 -> 0 | S34: =datos_RdT!S81 -> 117 | T34: =datos_RdT!T81 -> 77 | U34: =datos_RdT!U81 -> 228 | V34: =datos_RdT!V81 -> 5611 | W34: =datos_RdT!W81 -> 7 | X34: =V34-D34 -> 5299
A35: 2016 | B35: transformadores | C35: =datos_RdT!C83 -> 14420 | D35: =datos_RdT!D83 -> 4974 | E35: =datos_RdT!E83 -> 1299.2 | F35: =datos_RdT!F83 -> 3273 | G35: =datos_RdT!G83 -> 8200 | H35: =datos_RdT!H83 -> 2000 | I35: =datos_RdT!I83 -> 2100 | J35: =datos_RdT!J83 -> 1200 | K35: =datos_RdT!K83 -> 6131 | L35: =datos_RdT!L83 -> 11650 | M35: =datos_RdT!M83 -> 0 | N35: =datos_RdT!N83 -> 2398.875 | O35: =datos_RdT!O83 -> 5700 | P35: =datos_RdT!P83 -> 600 | Q35: =datos_RdT!Q83 -> 11548.4 | R35: =datos_RdT!R83 -> 0 | S35: =datos_RdT!S83 -> 3150 | T35: =datos_RdT!T83 -> 1600 | U35: =datos_RdT!U83 -> 4300 | V35: =datos_RdT!V83 -> 85444.475 | W35: =datos_RdT!W83 -> 900 | X35: =V35-D35 -> 80470.475
A36: 2016 | B36: líneas | C36: =(C33/C27-1) -> 0.004178455667 | D36: =(D33/D27-1) -> 0.05947045186 | E36: 0.0412535343 | F36: 0.07548512452 | G36: 0.04836639399 | H36: 0.005349828762 | I36: -1.48599804e-06 | J36: -1.569217195e-07 | K36: 0 | L36: 0.003794472157 | N36: -1.220102962e-06 | O36: 0.04985726839 | P36: 0 | Q36: -4.563879442e-06 | S36: 0.02035355341 | T36: -1.823002951e-05 | U36: 2.279944526e-05 | V36: 0.01522524961
A37: 2016 | B37: posiciones | C37: =(C34/C28-1) -> 0.004754358162 | D37: =(D34/D28-1) -> 0 | E37: 0 | F37: 0.01420959147 | G37: 0.04504504505 | H37: 0.04716981132 | I37: 0 | J37: 0.004016064257 | K37: 0.002169197397 | L37: 0 | N37: 0 | O37: 0.02083333333 | P37: 0 | Q37: 0.003205128205 | S37: 0 | T37: 0 | U37: 0.008849557522 | V37: 0.0113554434
A38: 2016 | B38: transformadores | C38: =(C35/C29-1) -> 0 | D38: =(D35/D29-1) -> 0.06418485237 | E38: 0 | F38: 0 | G38: 0.07894736842 | H38: 0 | I38: 0 | J38: 0 | K38: 0 | L38: 0 | N38: 0 | O38: 0 | P38: 0 | Q38: 0 | S38: 0 | T38: 0 | U38: 0 | V38: 0.02151965208

Sheet Año (hidden)
B2: 2011
B3: 2012
B4: 2013
B5: 2014
B6: 2015
B7: 2016

Sheet datos_anual (hidden)
B2: CCAA | C2: Andalucía | D2: Aragón | E2: Asturias | F2: Baleares | G2: C. Valenciana | H2: Canarias | I2: Cantabria | J2: Castilla-La Mancha | K2: Castilla y León | L2: Cataluña | M2: Ceuta | N2: Extremadura | O2: Galicia | P2: La Rioja | Q2: Madrid | R2: Melilla | S2: Murcia | T2: Navarra | U2: País Vasco | V2: España
A3: 2011 | B3: Generación neta | C3: =generacion_bruta!C19 -> 38661.75184 | D3: =generacion_bruta!D19 -> 17942.01463 | E3: =generacion_bruta!E19 -> 12327.25987 | F3: =generacion_bruta!F19 -> 5742.812538 | G3: =generacion_bruta!G19 -> 20160.47853 | H3: =generacion_bruta!H19 -> 8870.235434 | I3: =generacion_bruta!I19 -> 2058.575786 | J3: =generacion_bruta!J19 -> 24310.99084 | K3: =generacion_bruta!K19 -> 34871.24099 | L3: =generacion_bruta!L19 -> 42182.0542 | M3: =generacion_bruta!M19 -> 202.977 | N3: =generacion_bruta!N19 -> 20696.90872 | O3: =generacion_bruta!O19 -> 26680.54939 | P3: =generacion_bruta!P19 -> 2363.759023 | Q3: =generacion_bruta!Q19 -> 1749.749197 | R3: =generacion_bruta!R19 -> 214.906587 | S3: =generacion_bruta!S19 -> 8093.528043 | T3: =generacion_bruta!T19 -> 5630.26027 | U3: =generacion_bruta!U19 -> 7173.845402 | V3: =SUM(C3:U3) -> 279933.8983
B4: Consumos en bombeo | C4: =generacion_bruta!C20 -> -301.622 | D4: =generacion_bruta!D20 -> -278.551 | E4: =generacion_bruta!E20 -> -25.335 | F4: =generacion_bruta!F20 -> 0 | G4: =generacion_bruta!G20 -> -1126.206 | H4: =generacion_bruta!H20 -> 0 | I4: =generacion_bruta!I20 -> -498.878 | J4: =generacion_bruta!J20 -> -129.734 | K4: =generacion_bruta!K20 -> -367.044 | L4: =generacion_bruta!L20 -> -276.003 | M4: =generacion_bruta!M20 -> 0 | N4: =generacion_bruta!N20 -> -62.634 | O4: =generacion_bruta!O20 -> -148.955 | P4: =generacion_bruta!P20 -> 0 | Q4: =generacion_bruta!Q20 -> 0 | R4: =generacion_bruta!R20 -> 0 | S4: =generacion_bruta!S20 -> 0 | T4: =generacion_bruta!T20 -> 0 | U4: =generacion_bruta!U20 -> 0 | V4: =SUM(C4:U4) -> -3214.962
B5: Saldo Intercambios | C5: =generacion_bruta!C21 -> 1613.575 | D5: =generacion_bruta!D21 -> -7260.331 | E5: =generacion_bruta!E21 -> -1342.445 | F5: =generacion_bruta!F21 -> 0.476 | G5: =generacion_bruta!G21 -> 8191.669 | H5: =generacion_bruta!H21 -> 0 | I5: =generacion_bruta!I21 -> 2912.849 | J5: =generacion_bruta!J21 -> -12181.779 | K5: =generacion_bruta!K21 -> -20964.058 | L5: =generacion_bruta!L21 -> 6288.486 | M5: =generacion_bruta!M21 -> 0 | N5: =generacion_bruta!N21 -> -15916.135 | O5: =generacion_bruta!O21 -> -6691.629 | P5: =generacion_bruta!P21 -> -615.813 | Q5: =generacion_bruta!Q21 -> 29804.43 | R5: =generacion_bruta!R21 -> 0 | S5: =generacion_bruta!S21 -> 231.07 | T5: =generacion_bruta!T21 -> -683.669 | U5: =generacion_bruta!U21 -> 10523.174 | V5: -6090.13
B6: Demanda B.C | C6: =generacion_bruta!C22 -> 39973.70484 | D6: =generacion_bruta!D22 -> 10403.13263 | E6: =generacion_bruta!E22 -> 10959.47987 | F6: =generacion_bruta!F22 -> 5743.288538 | G6: =generacion_bruta!G22 -> 27225.94153 | H6: =generacion_bruta!H22 -> 8870.235434 | I6: =generacion_bruta!I22 -> 4472.546786 | J6: =generacion_bruta!J22 -> 11999.47784 | K6: =generacion_bruta!K22 -> 13540.13899 | L6: =generacion_bruta!L22 -> 48194.5372 | M6: =generacion_bruta!M22 -> 202.977 | N6: =generacion_bruta!N22 -> 4718.139717 | O6: =generacion_bruta!O22 -> 19839.96539 | P6: =generacion_bruta!P22 -> 1747.946023 | Q6: =generacion_bruta!Q22 -> 31554.1792 | R6: =generacion_bruta!R22 -> 214.906587 | S6: =generacion_bruta!S22 -> 8324.598043 | T6: =generacion_bruta!T22 -> 4946.59127 | U6: =generacion_bruta!U22 -> 17697.0194 | V6: 270628.8063
B7: Renovable | C7: =generacion_bruta!C52 -> 11275.89532 | D7: =generacion_bruta!D24 -> 6822.637439 | E7: =generacion_bruta!E24 -> 2597.004345 | F7: =generacion_bruta!F24 -> 107.049014 | G7: =generacion_bruta!G24 -> 2984.201256 | H7: =generacion_bruta!H24 -> 621.118712 | I7: =generacion_bruta!I24 -> 358.2415727 | J7: =generacion_bruta!J24 -> 9890.859807 | K7: =generacion_bruta!K24 -> 18627.47705 | L7: =generacion_bruta!L24 -> 6226.14723 | M7: =generacion_bruta!M24 -> 0 | N7: =generacion_bruta!N24 -> 5373.501006 | O7: =generacion_bruta!O24 -> 14344.94286 | P7: =generacion_bruta!P24 -> 1220.172813 | Q7: =generacion_bruta!Q24 -> 615.6321322 | R7: =generacion_bruta!R24 -> 0.071472 | S7: =generacion_bruta!S24 -> 1096.327892 | T7: =generacion_bruta!T24 -> 3597.10374 | U7: =generacion_bruta!U24 -> 845.9208652 | V7: =SUM(C7:U7) -> 86604.30452
B8: No renovable | C8: =generacion_bruta!C53 -> 26454.42036 | D8: =generacion_bruta!D25 -> 10924.39149 | E8: =generacion_bruta!E25 -> 9712.521026 | F8: =generacion_bruta!F25 -> 5635.763524 | G8: =generacion_bruta!G25 -> 16387.93307 | H8: =generacion_bruta!H25 -> 8249.116722 | I8: =generacion_bruta!I25 -> 1351.119613 | J8: =generacion_bruta!J25 -> 14329.31723 | K8: =generacion_bruta!K25 -> 15986.83314 | L8: =generacion_bruta!L25 -> 35762.70487 | M8: =generacion_bruta!M25 -> 202.977 | N8: =generacion_bruta!N25 -> 15279.56391 | O8: =generacion_bruta!O25 -> 12231.33803 | P8: =generacion_bruta!P25 -> 1143.58621 | Q8: =generacion_bruta!Q25 -> 1134.117065 | R8: =generacion_bruta!R25 -> 214.835115 | S8: =generacion_bruta!S25 -> 6997.200151 | T8: =generacion_bruta!T25 -> 2033.15653 | U8: =generacion_bruta!U25 -> 6327.924537 | V8: =SUM(C8:U8) -> 190358.8196
A9: 2012 | B9: Generación neta | C9: =generacion_bruta!C47 -> 38034.55808 | D9: =generacion_bruta!D47 -> 16619.00326 | E9: =generacion_bruta!E47 -> 14352.79512 | F9: =generacion_bruta!F47 -> 5252.35054 | G9: =generacion_bruta!G47 -> 20250.40817 | H9: =generacion_bruta!H47 -> 8892.540459 | I9: =generacion_bruta!I47 -> 2627.778026 | J9: =generacion_bruta!J47 -> 24866.88303 | K9: =generacion_bruta!K47 -> 35310.08241 | L9: =generacion_bruta!L47 -> 44093.2426 | M9: =generacion_bruta!M47 -> 212.075 | N9: =generacion_bruta!N47 -> 18509.40218 | O9: =generacion_bruta!O47 -> 29240.85546 | P9: =generacion_bruta!P47 -> 2765.164941 | Q9: =generacion_bruta!Q47 -> 1670.499509 | R9: =generacion_bruta!R47 -> 217.353072 | S9: =generacion_bruta!S47 -> 6413.758441 | T9: =generacion_bruta!T47 -> 5550.978807 | U9: =generacion_bruta!U47 -> 8501.565002 | V9: 283381.2941
B10: Consumos en bombeo | C10: =generacion_bruta!C48 -> -434.632 | D10: =generacion_bruta!D48 -> -351.542 | E10: =generacion_bruta!E48 -> -52.418 | F10: =generacion_bruta!F48 -> 0 | G10: =generacion_bruta!G48 -> -1114.342 | H10: =generacion_bruta!H48 -> 0 | I10: =generacion_bruta!I48 -> -795.603 | J10: =generacion_bruta!J48 -> -156.032 | K10: =generacion_bruta!K48 -> -1401.482 | L10: =generacion_bruta!L48 -> -381.441 | M10: =generacion_bruta!M48 -> 0 | N10: =generacion_bruta!N48 -> -15.193 | O10: =generacion_bruta!O48 -> -319.864 | P10: =generacion_bruta!P48 -> 0 | Q10: =generacion_bruta!Q48 -> 0 | R10: =generacion_bruta!R48 -> 0 | S10: =generacion_bruta!S48 -> 0 | T10: =generacion_bruta!T48 -> 0 | U10: =generacion_bruta!U48 -> 0 | V10: -5022.549
B11: Saldo Intercambios | C11: =generacion_bruta!C49 -> 2108.937 | D11: =generacion_bruta!D49 -> -6028.722 | E11: =generacion_bruta!E49 -> -3960.954 | F11: =generacion_bruta!F49 -> 570.251 | G11: =generacion_bruta!G49 -> 7340.41 | H11: =generacion_bruta!H49 -> 0 | I11: =generacion_bruta!I49 -> 2567.336 | J11: =generacion_bruta!J49 -> -12690.622 | K11: =generacion_bruta!K49 -> -20179.093 | L11: =generacion_bruta!L49 -> 4039.265 | M11: =generacion_bruta!M49 -> 0 | N11: =generacion_bruta!N49 -> -13604.637 | O11: =generacion_bruta!O49 -> -9270.303 | P11: =generacion_bruta!P49 -> -1032.283 | Q11: =generacion_bruta!Q49 -> 29330.89 | R11: =generacion_bruta!R49 -> 0 | S11: =generacion_bruta!S49 -> 2193.349 | T11: =generacion_bruta!T49 -> -752.15 | U11: =generacion_bruta!U49 -> 8168.372 | V11: -11199.954
B12: Demanda B.C | C12: =generacion_bruta!C50 -> 39708.86308 | D12: =generacion_bruta!D50 -> 10238.73926 | E12: =generacion_bruta!E50 -> 10339.42312 | F12: =generacion_bruta!F50 -> 5822.60154 | G12: =generacion_bruta!G50 -> 26476.47617 | H12: =generacion_bruta!H50 -> 8892.540459 | I12: =generacion_bruta!I50 -> 4399.511026 | J12: =generacion_bruta!J50 -> 12020.22903 | K12: =generacion_bruta!K50 -> 13729.50741 | L12: =generacion_bruta!L50 -> 47751.0666 | M12: =generacion_bruta!M50 -> 212.075 | N12: =generacion_bruta!N50 -> 4889.572184 | O12: =generacion_bruta!O50 -> 19650.68846 | P12: =generacion_bruta!P50 -> 1732.881941 | Q12: =generacion_bruta!Q50 -> 31001.38951 | R12: =generacion_bruta!R50 -> 217.353072 | S12: =generacion_bruta!S50 -> 8607.107441 | T12: =generacion_bruta!T50 -> 4798.828807 | U12: =generacion_bruta!U50 -> 16669.937 | V12: 267158.7911
B13: Renovable | C13: =generacion_bruta!C52 -> 11275.89532 | D13: =generacion_bruta!D52 -> 7334.834158 | E13: =generacion_bruta!E52 -> 2755.874198 | F13: =generacion_bruta!F52 -> 122.667798 | G13: =generacion_bruta!G52 -> 3563.054783 | H13: =generacion_bruta!H52 -> 628.122459 | I13: =generacion_bruta!I52 -> 401.5345394 | J13: =generacion_bruta!J52 -> 11157.4639 | K13: =generacion_bruta!K52 -> 16958.0436 | L13: =generacion_bruta!L52 -> 6648.410817 | M13: =generacion_bruta!M52 -> 0 | N13: =generacion_bruta!N52 -> 3419.663284 | O13: =generacion_bruta!O52 -> 13218.83 | P13: =generacion_bruta!P52 -> 1286.1812 | Q13: =generacion_bruta!Q52 -> 443.978055 | R13: =generacion_bruta!R52 -> 0.083114 | S13: =generacion_bruta!S52 -> 1356.106968 | T13: =generacion_bruta!T52 -> 3757.611499 | U13: =generacion_bruta!U52 -> 891.3047836 | V13: =generacion_bruta!V52 -> 85219.66047
B14: No renovable | C14: =generacion_bruta!C53 -> 26454.42036 | D14: =generacion_bruta!D53 -> 9038.089705 | E14: =generacion_bruta!E53 -> 11560.22833 | F14: =generacion_bruta!F53 -> 5129.682742 | G14: =generacion_bruta!G53 -> 15907.31399 | H14: =generacion_bruta!H53 -> 8264.418 | I14: =generacion_bruta!I53 -> 1669.321387 | J14: =generacion_bruta!J53 -> 13600.19673 | K14: =generacion_bruta!K53 -> 17371.00141 | L14: =generacion_bruta!L53 -> 37177.82308 | M14: =generacion_bruta!M53 -> 212.075 | N14: =generacion_bruta!N53 -> 15079.1038 | O14: =generacion_bruta!O53 -> 15798.12066 | P14: =generacion_bruta!P53 -> 1478.983741 | Q14: =generacion_bruta!Q53 -> 1226.521454 | R14: =generacion_bruta!R53 -> 217.269958 | S14: =generacion_bruta!S53 -> 5057.651473 | T14: =generacion_bruta!T53 -> 1793.367308 | U14: =generacion_bruta!U53 -> 7610.260218 | V14: =generacion_bruta!V53 -> 194645.8493
A15: 2013 | B15: Generación neta | C15: =generacion_bruta!C75 -> 34690.54475 | D15: =generacion_bruta!D75 -> 16784.27478 | E15: =generacion_bruta!E75 -> 13645.93943 | F15: =generacion_bruta!F75 -> 4405.028346 | G15: =generacion_bruta!G75 -> 18832.58406 | H15: =generacion_bruta!H75 -> 8623.683298 | I15: =generacion_bruta!I75 -> 2261.070202 | J15: =generacion_bruta!J75 -> 22832.34745 | K15: =generacion_bruta!K75 -> 30891.43404 | L15: =generacion_bruta!L75 -> 45146.47728 | M15: =generacion_bruta!M75 -> 201.959 | N15: =generacion_bruta!N75 -> 20897.47577 | O15: =generacion_bruta!O75 -> 33085.09523 | P15: =generacion_bruta!P75 -> 1938.903748 | Q15: =generacion_bruta!Q75 -> 1632.487504 | R15: =generacion_bruta!R75 -> 209.66712 | S15: =generacion_bruta!S75 -> 5880.962342 | T15: =generacion_bruta!T75 -> 5377.429574 | U15: =generacion_bruta!U75 -> 6429.868964 | V15: 273767.2329
B16: Consumos en bombeo | C16: =generacion_bruta!C76 -> -470.705 | D16: =generacion_bruta!D76 -> -367.52 | E16: =generacion_bruta!E76 -> -77.28 | F16: =generacion_bruta!F76 -> 0 | G16: =generacion_bruta!G76 -> -1520.008 | H16: =generacion_bruta!H76 -> 0 | I16: =generacion_bruta!I76 -> -758.749 | J16: =generacion_bruta!J76 -> -206.83 | K16: =generacion_bruta!K76 -> -1728.923 | L16: =generacion_bruta!L76 -> -335.168 | M16: =generacion_bruta!M76 -> 0 | N16: =generacion_bruta!N76 -> -56.837 | O16: =generacion_bruta!O76 -> -435.826 | P16: =generacion_bruta!P76 -> 0 | Q16: =generacion_bruta!Q76 -> 0 | R16: =generacion_bruta!R76 -> 0 | S16: =generacion_bruta!S76 -> 0 | T16: =generacion_bruta!T76 -> 0 | U16: =generacion_bruta!U76 -> 0 | V16: -5957.846
B17: Saldo Intercambios | C17: =generacion_bruta!C77 -> 3967.898 | D17: =generacion_bruta!D77 -> -6311.901 | E17: =generacion_bruta!E77 -> -3153.97 | F17: =generacion_bruta!F77 -> 1268.509 | G17: =generacion_bruta!G77 -> 8582.518 | H17: =generacion_bruta!H77 -> 0 | I17: =generacion_bruta!I77 -> 2883.144 | J17: =generacion_bruta!J77 -> -10994.533 | K17: =generacion_bruta!K77 -> -15481.299 | L17: =generacion_bruta!L77 -> 1461.757 | M17: =generacion_bruta!M77 -> 0 | N17: =generacion_bruta!N77 -> -15974.309 | O17: =generacion_bruta!O77 -> -12778.904 | P17: =generacion_bruta!P77 -> -234.669 | Q17: =generacion_bruta!Q77 -> 28075.127 | R17: =generacion_bruta!R77 -> 0 | S17: =generacion_bruta!S77 -> 2433.707 | T17: =generacion_bruta!T77 -> -601.343 | U17: =generacion_bruta!U77 -> 10126.138 | V17: -6732.13
B18: Demanda B.C | C18: =generacion_bruta!C78 -> 38187.73775 | D18: =generacion_bruta!D78 -> 10104.85378 | E18: =generacion_bruta!E78 -> 10414.68943 | F18: =generacion_bruta!F78 -> 5673.537346 | G18: =generacion_bruta!G78 -> 25895.09406 | H18: =generacion_bruta!H78 -> 8623.683298 | I18: =generacion_bruta!I78 -> 4385.465202 | J18: =generacion_bruta!J78 -> 11630.98445 | K18: =generacion_bruta!K78 -> 13681.21204 | L18: =generacion_bruta!L78 -> 46273.06628 | M18: =generacion_bruta!M78 -> 201.959 | N18: =generacion_bruta!N78 -> 4866.329772 | O18: =generacion_bruta!O78 -> 19870.36523 | P18: =generacion_bruta!P78 -> 1704.234748 | Q18: =generacion_bruta!Q78 -> 29707.6145 | R18: =generacion_bruta!R78 -> 209.66712 | S18: =generacion_bruta!S78 -> 8314.669342 | T18: =generacion_bruta!T78 -> 4776.086574 | U18: =generacion_bruta!U78 -> 16556.00696 | V18: 261077.2569
B19: Renovable | C19: =generacion_bruta!C80 -> 13614.26934 | D19: =generacion_bruta!D80 -> 9714.491353 | E19: =generacion_bruta!E80 -> 3973.694913 | F19: =generacion_bruta!F80 -> 129.001391 | G19: =generacion_bruta!G80 -> 3748.52283 | H19: =generacion_bruta!H80 -> 660.871298 | I19: =generacion_bruta!I80 -> 510.2217515 | J19: =generacion_bruta!J80 -> 12164.02855 | K19: =generacion_bruta!K80 -> 20995.47985 | L19: =generacion_bruta!L80 -> 9375.91525 | M19: =generacion_bruta!M80 -> 0 | N19: =generacion_bruta!N80 -> 5729.803073 | O19: =generacion_bruta!O80 -> 19786.0072 | P19: =generacion_bruta!P80 -> 1393.519893 | Q19: =generacion_bruta!Q80 -> 546.1584524 | R19: =generacion_bruta!R80 -> 0.082323 | S19: =generacion_bruta!S80 -> 1578.26416 | T19: =generacion_bruta!T80 -> 4034.576175 | U19: =generacion_bruta!U80 -> 1110.375124 | V19: 109065.2829
B20: No renovable | C20: =generacion_bruta!C81 -> 20746.78191 | D20: =generacion_bruta!D81 -> 6812.519423 | E20: =generacion_bruta!E81 -> 9618.14852 | F20: =generacion_bruta!F81 -> 4276.026955 | G20: =generacion_bruta!G81 -> 14020.05563 | H20: =generacion_bruta!H81 -> 7962.812 | I20: =generacion_bruta!I81 -> 1219.72415 | J20: =generacion_bruta!J81 -> 10523.53789 | K20: =generacion_bruta!K81 -> 8685.708088 | L20: =generacion_bruta!L81 -> 35535.94443 | M20: =generacion_bruta!M81 -> 201.959 | N20: =generacion_bruta!N81 -> 15127.8868 | O20: =generacion_bruta!O81 -> 12994.00983 | P20: =generacion_bruta!P81 -> 545.383855 | Q20: =generacion_bruta!Q81 -> 1086.329052 | R20: =generacion_bruta!R81 -> 209.584797 | S20: =generacion_bruta!S81 -> 4302.698182 | T20: =generacion_bruta!T81 -> 1342.853399 | U20: =generacion_bruta!U81 -> 5319.49384 | V20: 160531.4577
A21: 2014 | B21: Generación neta | C21: =generacion_bruta!C103 -> 31996.93893 | D21: =generacion_bruta!D103 -> 16533.563 | E21: =generacion_bruta!E103 -> 13240.98325 | F21: =generacion_bruta!F103 -> 4287.160861 | G21: =generacion_bruta!G103 -> 19960.81539 | H21: =generacion_bruta!H103 -> 8579.968659 | I21: =generacion_bruta!I103 -> 1874.64051 | J21: =generacion_bruta!J103 -> 22532.92379 | K21: =generacion_bruta!K103 -> 33914.99558 | L21: =generacion_bruta!L103 -> 41626.27895 | M21: =generacion_bruta!M103 -> 212.253 | N21: =generacion_bruta!N103 -> 21522.30579 | O21: =generacion_bruta!O103 -> 31287.52903 | P21: =generacion_bruta!P103 -> 1462.933009 | Q21: =generacion_bruta!Q103 -> 1305.450301 | R21: =generacion_bruta!R103 -> 209.863147 | S21: =generacion_bruta!S103 -> 5367.042156 | T21: =generacion_bruta!T103 -> 4771.924057 | U21: =generacion_bruta!U103 -> 6179.486889 | V21: 266867.0563
B22: Consumos en bombeo | C22: =generacion_bruta!C104 -> -480.846 | D22: =generacion_bruta!D104 -> -440.736 | E22: =generacion_bruta!E104 -> -78.978 | F22: =generacion_bruta!F104 -> 0 | G22: =generacion_bruta!G104 -> -1576.303 | H22: =generacion_bruta!H104 -> 0 | I22: =generacion_bruta!I104 -> -851.231 | J22: =generacion_bruta!J104 -> -100.736 | K22: =generacion_bruta!K104 -> -1107.249 | L22: =generacion_bruta!L104 -> -361.031 | M22: =generacion_bruta!M104 -> 0 | N22: =generacion_bruta!N104 -> -70.939 | O22: =generacion_bruta!O104 -> -261.542 | P22: =generacion_bruta!P104 -> 0 | Q22: =generacion_bruta!Q104 -> 0 | R22: =generacion_bruta!R104 -> 0 | S22: =generacion_bruta!S104 -> 0 | T22: =generacion_bruta!T104 -> 0 | U22: =generacion_bruta!U104 -> 0 | V22: -5329.591
B23: Saldo Intercambios | C23: =generacion_bruta!C105 -> 6021.988 | D23: =generacion_bruta!D105 -> -6003.143 | E23: =generacion_bruta!E105 -> -2849.358 | F23: =generacion_bruta!F105 -> 1298.266 | G23: =generacion_bruta!G105 -> 7501.359 | H23: =generacion_bruta!H105 -> 0 | I23: =generacion_bruta!I105 -> 3298.202 | J23: =generacion_bruta!J105 -> -10781.332 | K23: =generacion_bruta!K105 -> -19250.761 | L23: =generacion_bruta!L105 -> 4357.043 | M23: =generacion_bruta!M105 -> 0 | N23: =generacion_bruta!N105 -> -16813.589 | O23: =generacion_bruta!O105 -> -11276.998 | P23: =generacion_bruta!P105 -> 227.452 | Q23: =generacion_bruta!Q105 -> 27142.168 | R23: =generacion_bruta!R105 -> 0 | S23: =generacion_bruta!S105 -> 3101.626 | T23: =generacion_bruta!T105 -> 8.066 | U23: =generacion_bruta!U105 -> 10612.884 | V23: -3406.127
B24: Demanda B.C | C24: =generacion_bruta!C106 -> 37538.08093 | D24: =generacion_bruta!D106 -> 10089.684 | E24: =generacion_bruta!E106 -> 10312.64725 | F24: =generacion_bruta!F106 -> 5585.426861 | G24: =generacion_bruta!G106 -> 25885.87139 | H24: =generacion_bruta!H106 -> 8579.968659 | I24: =generacion_bruta!I106 -> 4321.61151 | J24: =generacion_bruta!J106 -> 11650.85579 | K24: =generacion_bruta!K106 -> 13556.98558 | L24: =generacion_bruta!L106 -> 45622.19095 | M24: =generacion_bruta!M106 -> 212.253 | N24: =generacion_bruta!N106 -> 4637.777792 | O24: =generacion_bruta!O106 -> 19748.98903 | P24: =generacion_bruta!P106 -> 1690.385009 | Q24: =generacion_bruta!Q106 -> 28447.6183 | R24: =generacion_bruta!R106 -> 209.863147 | S24: =generacion_bruta!S106 -> 8468.668156 | T24: =generacion_bruta!T106 -> 4779.990057 | U24: =generacion_bruta!U106 -> 16792.37089 | V24: 258131.2383
B25: Renovable | C25: =generacion_bruta!C108 -> 12509.4783 | D25: =generacion_bruta!D108 -> 9019.522257 | E25: =generacion_bruta!E108 -> 3679.816965 | F25: =generacion_bruta!F108 -> 130.558628 | G25: =generacion_bruta!G108 -> 3935.580547 | H25: =generacion_bruta!H108 -> 685.611659 | I25: =generacion_bruta!I108 -> 446.8772272 | J25: =generacion_bruta!J108 -> 11987.38749 | K25: =generacion_bruta!K108 -> 23451.19118 | L25: =generacion_bruta!L108 -> 8759.222084 | M25: =generacion_bruta!M108 -> 0 | N25: =generacion_bruta!N108 -> 6256.801129 | O25: =generacion_bruta!O108 -> 18882.9722 | P25: =generacion_bruta!P108 -> 1243.531484 | Q25: =generacion_bruta!Q108 -> 568.9220499 | R25: =generacion_bruta!R108 -> 0.083833 | S25: =generacion_bruta!S108 -> 1534.090407 | T25: =generacion_bruta!T108 -> 3692.133574 | U25: =generacion_bruta!U108 -> 944.3643526 | V25: =generacion_bruta!V108 -> 107728.1454
B26: No renovable | C26: =generacion_bruta!C109 -> 19150.86843 | D26: =generacion_bruta!D109 -> 7205.525542 | E26: =generacion_bruta!E109 -> 9505.881688 | F26: =generacion_bruta!F109 -> 4156.602233 | G26: =generacion_bruta!G109 -> 14921.82275 | H26: =generacion_bruta!H109 -> 7894.357 | I26: =generacion_bruta!I109 -> 831.901583 | J26: =generacion_bruta!J109 -> 10475.0211 | K26: =generacion_bruta!K109 -> 9688.730098 | L26: =generacion_bruta!L109 -> 32614.33517 | M26: =generacion_bruta!M109 -> 212.253 | N26: =generacion_bruta!N109 -> 15215.84736 | O26: =generacion_bruta!O109 -> 12221.47743 | P26: =generacion_bruta!P109 -> 219.401525 | Q26: =generacion_bruta!Q109 -> 736.528251 | R26: =generacion_bruta!R109 -> 209.779314 | S26: =generacion_bruta!S109 -> 3832.951749 | T26: =generacion_bruta!T109 -> 1079.790483 | U26: =generacion_bruta!U109 -> 5235.122536 | V26: =generacion_bruta!V109 -> 155408.1972
A27: 2015 | B27: Generación neta | C27: =generacion_bruta!C131 -> 35809.82861 | D27: =generacion_bruta!D131 -> 15513.28492 | E27: =generacion_bruta!E131 -> 16700.63708 | F27: =generacion_bruta!F131 -> 4460.634939 | G27: =generacion_bruta!G131 -> 18643.32068 | H27: =generacion_bruta!H131 -> 8669.37689 | I27: =generacion_bruta!I131 -> 1703.892238 | J27: =generacion_bruta!J131 -> 21634.10665 | K27: =generacion_bruta!K131 -> 31296.40265 | L27: =generacion_bruta!L131 -> 43124.67287 | M27: =generacion_bruta!M131 -> 205.438 | N27: =generacion_bruta!N131 -> 21101.73786 | O27: =generacion_bruta!O131 -> 29674.15307 | P27: =generacion_bruta!P131 -> 1862.609343 | Q27: =generacion_bruta!Q131 -> 1203.168389 | R27: =generacion_bruta!R131 -> 213.485818 | S27: =generacion_bruta!S131 -> 4912.492421 | T27: =generacion_bruta!T131 -> 5268.938513 | U27: =generacion_bruta!U131 -> 5938.101164 | V27: 267936.2821
B28: Consumos en bombeo | C28: =generacion_bruta!C132 -> -391.213 | D28: =generacion_bruta!D132 -> -410.178 | E28: =generacion_bruta!E132 -> -41.477 | F28: =generacion_bruta!F132 -> 0 | G28: =generacion_bruta!G132 -> -1352.201 | H28: =generacion_bruta!H132 -> 0 | I28: =generacion_bruta!I132 -> -684.933 | J28: =generacion_bruta!J132 -> -44.284 | K28: =generacion_bruta!K132 -> -854.155 | L28: =generacion_bruta!L132 -> -463.465 | M28: =generacion_bruta!M132 -> 0 | N28: =generacion_bruta!N132 -> -43.287 | O28: =generacion_bruta!O132 -> -234.901 | P28: =generacion_bruta!P132 -> 0 | Q28: =generacion_bruta!Q132 -> 0 | R28: =generacion_bruta!R132 -> 0 | S28: =generacion_bruta!S132 -> 0 | T28: =generacion_bruta!T132 -> 0 | U28: =generacion_bruta!U132 -> 0 | V28: -4520.094
B29: Saldo Intercambios | C29: =generacion_bruta!C133 -> 3241.863 | D29: =generacion_bruta!D133 -> -4802.101 | E29: =generacion_bruta!E133 -> -6191.354 | F29: =generacion_bruta!F133 -> 1335.783 | G29: =generacion_bruta!G133 -> 9454.445 | H29: =generacion_bruta!H133 -> 0 | I29: =generacion_bruta!I133 -> 3228.933 | J29: =generacion_bruta!J133 -> -10018.83 | K29: =generacion_bruta!K133 -> -16577.612 | L29: =generacion_bruta!L133 -> 3985.876 | M29: =generacion_bruta!M133 -> 0 | N29: =generacion_bruta!N133 -> -16222.839 | O29: =generacion_bruta!O133 -> -9721.055 | P29: =generacion_bruta!P133 -> -137.492 | Q29: =generacion_bruta!Q133 -> 27670.776 | R29: =generacion_bruta!R133 -> 0 | S29: =generacion_bruta!S133 -> 4007.705 | T29: =generacion_bruta!T133 -> -425.816 | U29: =generacion_bruta!U133 -> 11038.563 | V29: -133.155
B30: Demanda B.C | C30: =generacion_bruta!C134 -> 38660.47861 | D30: =generacion_bruta!D134 -> 10301.00592 | E30: =generacion_bruta!E134 -> 10467.80608 | F30: =generacion_bruta!F134 -> 5796.417939 | G30: =generacion_bruta!G134 -> 26745.56468 | H30: =generacion_bruta!H134 -> 8669.37689 | I30: =generacion_bruta!I134 -> 4247.892238 | J30: =generacion_bruta!J134 -> 11570.99265 | K30: =generacion_bruta!K134 -> 13864.63565 | L30: =generacion_bruta!L134 -> 46646.98387 | M30: =generacion_bruta!M134 -> 205.438 | N30: =generacion_bruta!N134 -> 4835.611856 | O30: =generacion_bruta!O134 -> 19718.19707 | P30: =generacion_bruta!P134 -> 1725.117343 | Q30: =generacion_bruta!Q134 -> 28873.94439 | R30: =generacion_bruta!R134 -> 213.485818 | S30: =generacion_bruta!S134 -> 8920.197421 | T30: =generacion_bruta!T134 -> 4843.122513 | U30: =generacion_bruta!U134 -> 16976.66416 | V30: 263282.9331
B31: Renovable | C31: =generacion_bruta!C136 -> 12004.42977 | D31: =generacion_bruta!D136 -> 7741.432786 | E31: =generacion_bruta!E136 -> 2752.258573 | F31: =generacion_bruta!F136 -> 281.0312205 | G31: =generacion_bruta!G136 -> 3510.234256 | H31: =generacion_bruta!H136 -> 692.41289 | I31: =generacion_bruta!I136 -> 474.9509621 | J31: =generacion_bruta!J136 -> 10702.15937 | K31: =generacion_bruta!K136 -> 19537.65019 | L31: =generacion_bruta!L136 -> 7827.529548 | M31: =generacion_bruta!M136 -> 0 | N31: =generacion_bruta!N136 -> 4929.747794 | O31: =generacion_bruta!O136 -> 15292.49488 | P31: =generacion_bruta!P136 -> 1190.334236 | Q31: =generacion_bruta!Q136 -> 446.2765625 | R31: =generacion_bruta!R136 -> 4.375889 | S31: =generacion_bruta!S136 -> 1381.584734 | T31: =generacion_bruta!T136 -> 3709.715136 | U31: =generacion_bruta!U136 -> 1032.711674 | V31: 93511.33048
B32: No renovable | C32: =generacion_bruta!C137 -> 23531.54974 | D32: =generacion_bruta!D137 -> 7484.727532 | E32: =generacion_bruta!E137 -> 13919.34461 | F32: =generacion_bruta!F137 -> 4179.603719 | G32: =generacion_bruta!G137 -> 14186.54573 | H32: =generacion_bruta!H137 -> 7976.964 | I32: =generacion_bruta!I137 -> 749.488176 | J32: =generacion_bruta!J137 -> 10900.94848 | K32: =generacion_bruta!K137 -> 11160.84396 | L32: =generacion_bruta!L137 -> 34972.71782 | M32: =generacion_bruta!M137 -> 205.438 | N32: =generacion_bruta!N137 -> 16141.68916 | O32: =generacion_bruta!O137 -> 14217.22749 | P32: =generacion_bruta!P137 -> 672.275107 | Q32: =generacion_bruta!Q137 -> 756.891826 | R32: =generacion_bruta!R137 -> 209.109929 | S32: =generacion_bruta!S137 -> 3530.907687 | T32: =generacion_bruta!T137 -> 1559.223377 | U32: =generacion_bruta!U137 -> 4905.389489 | V32: 171260.8858
A33: 2016 | B33: Generación neta | C33: =generacion_bruta!C159 -> 32847.35782 | D33: =generacion_bruta!D159 -> 14266.48416 | E33: =generacion_bruta!E159 -> 12035.2351 | F33: =generacion_bruta!F159 -> 4581.661884 | G33: =generacion_bruta!G159 -> 20639.61428 | H33: =generacion_bruta!H159 -> 8776.831921 | I33: =generacion_bruta!I159 -> 1725.34469 | J33: =generacion_bruta!J159 -> 21397.64845 | K33: =generacion_bruta!K159 -> 31998.37429 | L33: =generacion_bruta!L159 -> 43214.63029 | M33: =generacion_bruta!M159 -> 210.736 | N33: =generacion_bruta!N159 -> 21015.05931 | O33: =generacion_bruta!O159 -> 30691.91382 | P33: =generacion_bruta!P159 -> 2328.587863 | Q33: =generacion_bruta!Q159 -> 1228.560498 | R33: =generacion_bruta!R159 -> 208.348187 | S33: =generacion_bruta!S159 -> 3962.7147 | T33: =generacion_bruta!T159 -> 5728.669616 | U33: =generacion_bruta!U159 -> 5421.46851 | V33: =generacion_bruta!V159 -> 262279.2414
B34: Consumos en bombeo | C34: =generacion_bruta!C160 -> -370.583 | D34: =generacion_bruta!D160 -> -421.737 | E34: =generacion_bruta!E160 -> -38.751 | F34: =generacion_bruta!F160 -> 0 | G34: =generacion_bruta!G160 -> -1830.747 | H34: =generacion_bruta!H160 -> 0 | I34: =generacion_bruta!I160 -> -611.804 | J34: =generacion_bruta!J160 -> -65.597 | K34: =generacion_bruta!K160 -> -919.611 | L34: =generacion_bruta!L160 -> -303.502 | M34: =generacion_bruta!M160 -> 0 | N34: =generacion_bruta!N160 -> -84.442 | O34: =generacion_bruta!O160 -> -172.642 | P34: =generacion_bruta!P160 -> 0 | Q34: =generacion_bruta!Q160 -> 0 | R34: =generacion_bruta!R160 -> 0 | S34: =generacion_bruta!S160 -> 0 | T34: =generacion_bruta!T160 -> 0 | U34: =generacion_bruta!U160 -> 0 | V34: =generacion_bruta!V160 -> -4819.416
B35: Saldo Intercambios | C35: =generacion_bruta!C161 -> 7129.363 | D35: =generacion_bruta!D161 -> -3406.842 | E35: =generacion_bruta!E161 -> -1487.886 | F35: =generacion_bruta!F161 -> 1250.582 | G35: =generacion_bruta!G161 -> 8043.827 | H35: =generacion_bruta!H161 -> 0 | I35: =generacion_bruta!I161 -> 3090.931 | J35: =generacion_bruta!J161 -> -9620.951 | K35: =generacion_bruta!K161 -> -17052.596 | L35: =generacion_bruta!L161 -> 3999.883 | M35: =generacion_bruta!M161 -> 0 | N35: =generacion_bruta!N161 -> -15961.991 | O35: =generacion_bruta!O161 -> -10557.892 | P35: =generacion_bruta!P161 -> -596.534 | Q35: =generacion_bruta!Q161 -> 27740.176 | R35: =generacion_bruta!R161 -> 0 | S35: =generacion_bruta!S161 -> 5090.398 | T35: =generacion_bruta!T161 -> -780.105 | U35: =generacion_bruta!U161 -> 10786.96 | V35: =generacion_bruta!V161 -> 7667.323
B36: Demanda B.C | C36: =generacion_bruta!C162 -> 39606.13782 | D36: =generacion_bruta!D162 -> 10437.90516 | E36: =generacion_bruta!E162 -> 10508.5981 | F36: =generacion_bruta!F162 -> 5832.243884 | G36: =generacion_bruta!G162 -> 26852.69428 | H36: =generacion_bruta!H162 -> 8776.831921 | I36: =generacion_bruta!I162 -> 4204.47169 | J36: =generacion_bruta!J162 -> 11711.10045 | K36: =generacion_bruta!K162 -> 14026.16729 | L36: =generacion_bruta!L162 -> 46910.91129 | M36: =generacion_bruta!M162 -> 210.736 | N36: =generacion_bruta!N162 -> 4968.626308 | O36: =generacion_bruta!O162 -> 19961.37982 | P36: =generacion_bruta!P162 -> 1732.053863 | Q36: =generacion_bruta!Q162 -> 28968.7365 | R36: =generacion_bruta!R162 -> 208.348187 | S36: =generacion_bruta!S162 -> 9053.1127 | T36: =generacion_bruta!T162 -> 4948.564616 | U36: =generacion_bruta!U162 -> 16208.42851 | V36: =generacion_bruta!V162 -> 265127.1484
B37: Renovable | C37: =generacion_bruta!C164 -> 12844.56968 | D37: =generacion_bruta!D164 -> 7612.701215 | E37: =generacion_bruta!E164 -> 3002.608853 | F37: =generacion_bruta!F164 -> 258.0655005 | G37: =generacion_bruta!G164 -> 3560.605633 | H37: =generacion_bruta!H164 -> 701.670921 | I37: =generacion_bruta!I164 -> 426.6797919 | J37: =generacion_bruta!J164 -> 11093.81047 | K37: =generacion_bruta!K164 -> 22942.41432 | L37: =generacion_bruta!L164 -> 7443.608633 | M37: =generacion_bruta!M164 -> 0 | N37: =generacion_bruta!N164 -> 5730.392625 | O37: =generacion_bruta!O164 -> 17460.74105 | P37: =generacion_bruta!P164 -> 1247.161309 | Q37: =generacion_bruta!Q164 -> 451.5080316 | R37: =generacion_bruta!R164 -> 4.9281345 | S37: =generacion_bruta!S164 -> 1401.201909 | T37: =generacion_bruta!T164 -> 3590.942956 | U37: =generacion_bruta!U164 -> 1003.278355 | V37: =generacion_bruta!V164 -> 100776.8894
B38: No renovable | C38: =generacion_bruta!C165 -> 19743.38004 | D38: =generacion_bruta!D165 -> 6358.567044 | E38: =generacion_bruta!E165 -> 9005.500546 | F38: =generacion_bruta!F165 -> 4323.596384 | G38: =generacion_bruta!G165 -> 15797.48574 | H38: =generacion_bruta!H165 -> 8075.161 | I38: =generacion_bruta!I165 -> 870.4020985 | J38: =generacion_bruta!J165 -> 10257.92008 | K38: =generacion_bruta!K165 -> 8412.232275 | L38: =generacion_bruta!L165 -> 35558.57025 | M38: =generacion_bruta!M165 -> 210.736 | N38: =generacion_bruta!N165 -> 15225.55728 | O38: =generacion_bruta!O165 -> 13110.32337 | P38: =generacion_bruta!P165 -> 1081.426554 | Q38: =generacion_bruta!Q165 -> 777.052466 | R38: =generacion_bruta!R165 -> 203.4200525 | S38: =generacion_bruta!S165 -> 2561.512791 | T38: =generacion_bruta!T165 -> 2137.72666 | U38: =generacion_bruta!U165 -> 4418.190155 | V38: =generacion_bruta!V165 -> 158128.7608
